{"text_format":"1","workbook":"xlsx","n_sheets":11,"sheets":["4g4","Spst.4g4","4g3","Spst.4g3","3g4","Spst.3g4","3g3","Spst.3g3","HILFE","Spielleiter","Vereins Nummern"],"not_rendered":{"charts":0,"images":1,"macros":1,"external_links":11,"defined_names":331,"comments":0,"pivot_tables":0},"unopened":[],"bounds":{"document_bytes":16777216,"sheet_cells":100000,"rows_first":2000,"rows_last":500,"rows_between":2000,"halvings":0,"cell_chars":16384,"cell_head_chars":4096},"cells_cut":0,"cells_raw":0,"read":"whole","date_system":"1900"}

{"sheet":"4g4","index":0,"n_rows":62,"n_cols":149,"rows_kept":62,"cut":false,"hidden":false,"merged":[[0,149,61,152],[1,135,1,145],[2,6,2,41],[2,42,5,45],[2,46,2,94],[2,95,5,100],[2,101,2,145],[3,6,3,9],[3,10,3,23],[3,24,3,27],[3,28,3,41],[3,132,5,134],[3,135,5,145],[4,6,4,41],[4,46,5,76],[4,79,5,94],[4,101,4,120],[5,24,5,27],[5,28,5,41],[3,46,3,76],[3,77,5,78],[3,79,3,94],[3,101,3,104],[3,106,3,120],[1,6,1,18],[1,19,1,46],[1,47,1,50],[1,51,1,86],[1,87,1,90],[1,91,1,92],[1,93,1,134],[3,121,5,131],[5,101,5,104],[5,106,5,120],[5,6,5,9],[5,10,5,23],[6,139,6,145],[7,6,7,45],[7,46,7,53],[7,54,7,60],[7,61,8,71],[7,72,7,79],[7,80,7,86],[7,87,7,126],[7,130,7,145],[8,6,8,45],[6,6,6,60],[6,61,6,71],[6,72,6,126],[6,127,7,129],[6,130,6,136],[6,137,6,138],[8,46,8,60],[8,72,8,86],[8,87,8,145],[13,10,13,13],[13,14,13,66],[13,67,13,74],[13,81,13,84],[13,85,13,137],[9,6,9,145],[10,6,10,13],[10,14,10,66],[10,67,10,74],[10,75,16,76],[10,77,10,84],[10,85,10,137],[10,138,10,145],[11,6,14,9],[11,10,11,13],[11,14,11,66],[11,67,11,74],[11,77,14,80],[11,81,11,84],[11,85,11,137],[11,138,11,145],[12,10,12,13],[13,138,13,145],[14,10,14,13],[15,43,15,45],[15,46,15,74],[15,77,16,80],[16,114,16,116],[16,117,16,145],[12,14,12,66],[12,67,12,74],[12,81,12,84],[12,85,12,137],[12,138,12,145],[14,14,14,66],[14,67,14,74],[14,81,14,84],[14,85,14,137],[14,138,14,145],[17,6,17,145],[18,6,18,15],[18,16,18,46],[18,47,18,77],[18,78,18,87],[18,88,18,97],[18,98,18,107],[18,108,18,117],[15,6,16,9],[18,118,18,127],[18,128,18,137],[18,138,18,145],[15,81,15,84],[15,85,15,113],[15,114,15,116],[15,117,15,145],[16,10,16,13],[16,14,16,42],[16,43,16,45],[16,46,16,74],[16,81,16,84],[16,85,16,113],[15,10,15,13],[15,14,15,42],[19,6,19,15],[19,16,20,16],[19,17,19,45],[19,46,20,46],[19,47,20,47],[19,48,19,76],[19,77,20,77],[19,138,20,141],[19,142,20,145],[20,6,20,15],[20,17,20,45],[20,48,20,76],[19,128,20,132],[19,133,20,137],[19,108,20,112],[19,113,20,117],[19,118,20,122],[19,123,20,127],[19,78,20,82],[19,83,20,87],[19,88,20,92],[19,93,20,97],[19,98,20,102],[19,103,20,107],[21,128,22,132],[21,133,22,137],[21,138,22,141],[21,142,22,145],[22,6,22,15],[22,17,22,45],[22,48,22,76],[21,98,22,102],[21,103,22,107],[21,108,22,112],[21,113,22,117],[21,118,22,122],[21,123,22,127],[21,48,21,76],[21,77,22,77],[21,78,22,82],[21,83,22,87],[21,88,22,92],[21,93,22,97],[21,6,21,15],[21,16,22,16],[21,17,21,45],[21,46,22,46],[21,47,22,47],[23,123,23,127],[23,128,23,132],[23,133,23,137],[23,138,23,141],[23,142,23,145],[24,6,24,15],[24,16,24,46],[24,47,24,77],[24,78,24,82],[24,83,24,87],[23,93,23,97],[23,98,23,102],[23,103,23,107],[23,108,23,112],[23,113,23,117],[23,118,23,122],[23,6,23,15],[23,16,23,46],[23,47,23,77],[23,78,23,82],[23,83,23,87],[23,88,23,92],[24,118,24,122],[24,123,24,127],[24,128,24,132],[24,133,24,137],[24,138,24,141],[24,142,24,145],[24,88,24,92],[24,93,24,97],[24,98,24,102],[24,103,24,107],[24,108,24,112],[24,113,24,117],[25,123,25,127],[25,128,25,132],[25,133,25,137],[25,138,25,141],[25,142,25,145],[26,6,26,15],[26,16,26,46],[26,47,26,77],[26,78,26,82],[26,83,26,87],[25,93,25,97],[25,98,25,102],[25,103,25,107],[25,108,25,112],[25,113,25,117],[25,118,25,122],[25,6,25,15],[25,16,25,46],[25,47,25,77],[25,78,25,82],[25,83,25,87],[25,88,25,92],[26,118,26,122],[26,123,26,127],[26,128,26,132],[26,133,26,137],[26,138,26,141],[26,142,26,145],[26,88,26,92],[26,93,26,97],[26,98,26,102],[26,103,26,107],[26,108,26,112],[26,113,26,117],[27,123,27,127],[27,128,27,132],[27,133,27,137],[27,138,27,141],[27,142,27,145],[28,6,28,15],[28,16,28,46],[28,47,28,77],[28,78,28,82],[28,83,28,87],[27,93,27,97],[27,98,27,102],[27,103,27,107],[27,108,27,112],[27,113,27,117],[27,118,27,122],[27,6,27,15],[27,16,27,46],[27,47,27,77],[27,78,27,82],[27,83,27,87],[27,88,27,92],[28,118,28,122],[28,123,28,127],[28,128,28,132],[28,133,28,137],[28,138,28,141],[28,142,28,145],[28,88,28,92],[28,93,28,97],[28,98,28,102],[28,103,28,107],[28,108,28,112],[28,113,28,117],[29,123,29,127],[29,128,29,132],[29,133,29,137],[29,138,29,141],[29,142,29,145],[30,6,30,15],[30,16,30,46],[30,47,30,77],[30,78,30,82],[30,83,30,87],[29,93,29,97],[29,98,29,102],[29,103,29,107],[29,108,29,112],[29,113,29,117],[29,118,29,122],[29,6,29,15],[29,16,29,46],[29,47,29,77],[29,78,29,82],[29,83,29,87],[29,88,29,92],[30,118,30,122],[30,123,30,127],[30,128,30,132],[30,133,30,137],[30,138,30,141],[30,142,30,145],[30,88,30,92],[30,93,30,97],[30,98,30,102],[30,103,30,107],[30,108,30,112],[30,113,30,117],[32,66,32,87],[32,88,32,93],[32,94,32,95],[32,96,32,101],[32,102,32,127],[33,6,33,145],[31,6,31,127],[31,128,32,132],[31,133,32,137],[31,138,32,141],[31,142,32,145],[32,6,32,19],[32,20,32,30],[32,31,32,40],[32,41,32,54],[32,55,32,65],[34,6,34,145],[35,6,35,16],[35,17,35,18],[35,19,35,55],[35,56,35,62],[35,63,35,67],[35,68,35,69],[35,70,35,74],[35,75,35,86],[35,87,35,93],[35,130,35,131],[35,132,35,137],[35,138,35,145],[35,94,35,98],[35,99,35,100],[35,101,35,105],[35,106,35,116],[35,117,35,123],[35,124,35,129],[42,6,46,14],[42,15,46,16],[55,113,57,145],[57,6,57,36],[57,44,57,63],[48,11,51,36],[52,6,52,36],[49,43,51,64],[52,43,53,64],[54,43,57,43],[54,64,57,64],[42,17,46,40],[53,10,56,10],[53,11,56,36],[54,44,56,63],[37,43,48,64],[47,6,47,36],[47,37,57,40],[48,6,51,9],[48,10,51,10],[37,41,57,42],[37,65,57,66],[60,96,60,102],[60,103,60,145],[61,0,61,145],[60,6,60,23],[60,25,60,47],[60,48,60,55],[60,56,60,72],[60,73,60,78],[60,79,60,95],[0,0,60,5],[0,6,0,145],[58,6,58,145],[59,6,59,23],[59,25,59,47],[59,48,59,55],[59,56,59,72],[59,73,59,78],[59,79,59,95],[59,96,59,102],[53,6,56,9],[36,6,36,145],[37,6,41,14],[37,15,41,16],[37,17,41,40],[59,103,59,145],[55,67,57,71],[55,72,57,104],[55,105,57,107],[55,108,57,112],[37,67,40,88],[37,89,40,123],[37,124,40,145],[41,67,54,71],[41,72,54,104],[41,105,54,112],[41,113,54,145]]}
[null,null,null,null,null,null,"\"Braunschweiger System\"   -   4 gegen 4"]
[null,null,null,null,null,null,null,null,null,null,null,null,null,null,null,null,null,null,null,"TT-Berzirk 6",null,null,null,null,null,null,null,null,null,null,null,null,null,null,null,null,null,null,null,null,null,null,null,null,null,null,null,"-",null,null,null,"Oberfranken Ost",null,null,null,null,null,null,null,null,null,null,null,null,null,null,null,null,null,null,null,null,null,null,null,null,null,null,null,null,null,null,null,null,null,null,null,"-",null,null,null,null,null,"Bezirks-"]
[]
[null,null,null,null,null,null,null,null,null,null," Damen",null,null,null,null,null,null,null,null,null,null,null,null,null,null,null,null,null," Mädchen",null,null,null,null,null,null,null,null,null,null,null,null,null,null,null,null,null,"Bereich",null,null,null,null,null,null,null,null,null,null,null,null,null,null,null,null,null,null,null,null,null,null,null,null,null,null,null,null,null,null,null,null,"Klasse/Gruppe",null,null,null,null,null,null,null,null,null,null,null,null,null,null,null,null,null,null,null,null,null,null,null,null,null,null,"Vorrunde",null,null,null,null,null,null,null,null,null,null,null,null,null,null,{"$f":"TODAY()-183","v":"2018-02-11"},null,null,null,null,null,null,null,null,null,null,"/",null,null,{"$f":"DR4+365","v":"2019-02-11"}]
[]
[null,null,null,null,null,null,null,null,null,null," Herren",null,null,null,null,null,null,null,null,null,null,null,null,null,null,null,null,null," Jungen",null,null,null,null,null,null,null,null,null,null,null,null,null,null,null,null,null,null,null,null,null,null,null,null,null,null,null,null,null,null,null,null,null,null,null,null,null,null,null,null,null,null,null,null,null,null,null,null,null,null,null,null,null,null,null,null,null,null,null,null,null,null,null,null,null,null,null,null,null,null,null,null,null,null,null,null,null,"Rückrunde"]
[null,null,null,null,null,null,null,null,null,null,null,null,null,null,null,null,null,null,null,null,null,null,null,null,null,null,null,null,null,null,null,null,null,null,null,null,null,null,null,null,null,null,null,null,null,null,null,null,null,null,null,null,null,null,null,null,null,null,null,null,null,"gegen",null,null,null,null,null,null,null,null,null,null,null,null,null,null,null,null,null,null,null,null,null,null,null,null,null,null,null,null,null,null,null,null,null,null,null,null,null,null,null,null,null,null,null,null,null,null,null,null,null,null,null,null,null,null,null,null,null,null,null,null,null,null,null,null,null,null,null,null,{"$f":"EI32","v":""},null,null,null,null,null,null,":",null,{"$f":"EM32","v":""},null,null,null,null,null,null,{"$f":"IF(EI32=EM32,\"\",IF(EI32>EM32,G7,BU7))","v":""}]
[null,null,null,null,null,null,"Heimmannschaft  ( A )",null,null,null,null,null,null,null,null,null,null,null,null,null,null,null,null,null,null,null,null,null,null,null,null,null,null,null,null,null,null,null,null,null,null,null,null,null,null,null,206,null,null,null,null,null,null,null,null,null,null,null,null,null,null,null,null,null,null,null,null,null,null,null,null,null,206,null,null,null,null,null,null,null,null,null,null,null,null,null,null,"Gastmannschaft  ( B )",null,null,null,null,null,null,null,null,null,null,null,null,null,null,null,null,null,null,null,null,null,null,null,null,null,null,null,null,null,null,null,null,null,null,null,null,null,null,null,null,null,null," ",null,null,null,null,null,null,null,null,null,null,null,null,null,null,null,{"$f":"IF(BL36=\"\",\"\",IF(EI32=EM32,EQ14))","v":""}]
[null,null,null,null,null,null,null,null,null,null,null,null,null,null,null,null,null,null,null,null,null,null,null,null,null,null,null,null,null,null,null,null,null,null,null,null,null,null,null,null,null,null,null,null,null,null,"Vereins-Nr.",null,null,null,null,null,null,null,null,null,null,null,null,null,null,null,null,null,null,null,null,null,null,null,null,null,"Vereins-Nr."]
[null,null,null,null,null,null,"Mannschaftsaufstellung"]
[null,null,null,null,null,null,"Rang",null,null,null,null,null,null,null,"Heimverein ( Mannschaft A )",null,null,null,null,null,null,null,null,null,null,null,null,null,null,null,null,null,null,null,null,null,null,null,null,null,null,null,null,null,null,null,null,null,null,null,null,null,null,null,null,null,null,null,null,null,null,null,null,null,null,null,null,"Pos.",null,null,null,null,null,null,null,null,null,"Rang",null,null,null,null,null,null,null,"Gastverein ( Mannschaft B )",null,null,null,null,null,null,null,null,null,null,null,null,null,null,null,null,null,null,null,null,null,null,null,null,null,null,null,null,null,null,null,null,null,null,null,null,null,null,null,null,null,null,null,null,null,null,null,null,null,null,null,null,"Pos."]
[null,null,null,null,null,null,"E I N Z E L",null,null,null,"A1",null,null,null,null,null,null,null,null,null,null,null,null,null,null,null,null,null,null,null,null,null,null,null,null,null,null,null,null,null,null,null,null,null,null,null,null,null,null,null,null,null,null,null,null,null,null,null,null,null,null,null,null,null,null,null,null,null,null,null,null,null,null,null,null,null,null,"E I N Z E L",null,null,null,"B1",null,null,null,null,null,null,null,null,null,null,null,null,null,null,null,null,null,null,null,null,null,null,null,null,null,null,null,null,null,null,null,null,null,null,null,null,null,null,null,null,null,null,null,null,null,null,null,null,null,null,null,null,null,null,null,null,null,null,null,null,null,null,null,null,{"$f":"IF(EI32<>EM32,EQ7,EQ8)","v":""}]
[null,null,null,null,null,null,null,null,null,null,"A2",null,null,null,null,null,null,null,null,null,null,null,null,null,null,null,null,null,null,null,null,null,null,null,null,null,null,null,null,null,null,null,null,null,null,null,null,null,null,null,null,null,null,null,null,null,null,null,null,null,null,null,null,null,null,null,null,null,null,null,null,null,null,null,null,null,null,null,null,null,null,"B2",null,null,null,null,null,null,null,null,null,null,null,null,null,null,null,null,null,null,null,null,null,null,null,null,null,null,null,null,null,null,null,null,null,null,null,null,null,null,null,null,null,null,null,null,null,null,null,null,null,null,null,null,null,null,null,null,null,null,null,null,null,null,null,null,"Sieger"]
[null,null,null,null,null,null,null,null,null,null,"A3",null,null,null,null,null,null,null,null,null,null,null,null,null,null,null,null,null,null,null,null,null,null,null,null,null,null,null,null,null,null,null,null,null,null,null,null,null,null,null,null,null,null,null,null,null,null,null,null,null,null,null,null,null,null,null,null,null,null,null,null,null,null,null,null,null,null,null,null,null,null,"B3",null,null,null,null,null,null,null,null,null,null,null,null,null,null,null,null,null,null,null,null,null,null,null,null,null,null,null,null,null,null,null,null,null,null,null,null,null,null,null,null,null,null,null,null,null,null,null,null,null,null,null,null,null,null,null,null,null,null,null,null,null,null,null,null,"Unentschieden"]
[null,null,null,null,null,null,null,null,null,null,"A4",null,null,null,null,null,null,null,null,null,null,null,null,null,null,null,null,null,null,null,null,null,null,null,null,null,null,null,null,null,null,null,null,null,null,null,null,null,null,null,null,null,null,null,null,null,null,null,null,null,null,null,null,null,null,null,null,null,null,null,null,null,null,null,null,null,null,null,null,null,null,"B4"]
[null,null,null,null,null,null,"Doppel",null,null,null,"A1",null,null,null,null,null,null,null,null,null,null,null,null,null,null,null,null,null,null,null,null,null,null,null,null,null,null,null,null,null,null,null,null,"/",null,null,null,null,null,null,null,null,null,null,null,null,null,null,null,null,null,null,null,null,null,null,null,null,null,null,null,null,null,null,null,null,null,"Doppel",null,null,null,"B1",null,null,null,null,null,null,null,null,null,null,null,null,null,null,null,null,null,null,null,null,null,null,null,null,null,null,null,null,null,null,null,null,"/"]
[null,null,null,null,null,null,null,null,null,null,"A2",null,null,null,null,null,null,null,null,null,null,null,null,null,null,null,null,null,null,null,null,null,null,null,null,null,null,null,null,null,null,null,null,"/",null,null,null,null,null,null,null,null,null,null,null,null,null,null,null,null,null,null,null,null,null,null,null,null,null,null,null,null,null,null,null,null,null,null,null,null,null,"B2",null,null,null,null,null,null,null,null,null,null,null,null,null,null,null,null,null,null,null,null,null,null,null,null,null,null,null,null,null,null,null,null,"/"]
[]
[null,null,null,null,null,null,"Spielfolge",null,null,null,null,null,null,null,null,null,"Heimverein ( Mannschaft A )",null,null,null,null,null,null,null,null,null,null,null,null,null,null,null,null,null,null,null,null,null,null,null,null,null,null,null,null,null,null,"Gastverein ( Mannschaft B )",null,null,null,null,null,null,null,null,null,null,null,null,null,null,null,null,null,null,null,null,null,null,null,null,null,null,null,null,null,null,"1. Satz",null,null,null,null,null,null,null,null,null,"2. Satz",null,null,null,null,null,null,null,null,null,"3. Satz",null,null,null,null,null,null,null,null,null,"4. Satz",null,null,null,null,null,null,null,null,null,"5. Satz",null,null,null,null,null,null,null,null,null,"Sätze",null,null,null,null,null,null,null,null,null,"Spiele",null,null,null,null,null,null,null,{"$f":"G7","v":0}]
[null,null,null,null,null,null,"Doppel",null,null,null,null,null,null,null,null,null,null,{"$f":"O16","v":0},null,null,null,null,null,null,null,null,null,null,null,null,null,null,null,null,null,null,null,null,null,null,null,null,null,null,null,null,null,null,{"$f":"CH16","v":0},null,null,null,null,null,null,null,null,null,null,null,null,null,null,null,null,null,null,null,null,null,null,null,null,null,null,null,null,null,null,null,null,null,null,null,null,null,null,null,null,null,null,null,null,null,null,null,null,null,null,null,null,null,null,null,null,null,null,null,null,null,null,null,null,null,null,null,null,null,null,null,null,null,null,null,null,null,null,null,{"$f":"IF(CA20=\"\",\"\",IF(CA20>CF20,1,0)+IF(CK20>CP20,1,0)+IF(CU20>CZ20,1,0)+IF(DE20>DJ20,1,0)+IF(DO20>DT20,1,0))","v":""},null,null,null,null,{"$f":"IF(CA20=\"\",\"\",IF(CA20<CF20,1,0)+IF(CK20<CP20,1,0)+IF(CU20<CZ20,1,0)+IF(DE20<DJ20,1,0)+IF(DO20<DT20,1,0))","v":""},null,null,null,null,{"$f":"IF(DY20=\"\",\"\",IF(DY20>ED20,1,0))","v":""},null,null,null,{"$f":"IF(DY20=\"\",\"\",IF(DY20<ED20,1,0))","v":""},null,null,null,{"$f":"SUM(CA20:CE31)","v":0},{"$f":"IF(DY20=3,1,0)","v":0},{"$f":"IF(ED20=3,1,0)","v":0}]
[null,null,null,null,null,null,"A1 - B1",null,null,null,null,null,null,null,null,null,null,{"$f":"AU16","v":0},null,null,null,null,null,null,null,null,null,null,null,null,null,null,null,null,null,null,null,null,null,null,null,null,null,null,null,null,null,null,{"$f":"DN16","v":0},null,null,null,null,null,null,null,null,null,null,null,null,null,null,null,null,null,null,null,null,null,null,null,null,null,null,null,null,null,null,null,null,null,null,null,null,null,null,null,null,null,null,null,null,null,null,null,null,null,null,null,null,null,null,null,null,null,null,null,null,null,null,null,null,null,null,null,null,null,null,null,null,null,null,null,null,null,null,null,null,null,null,null,null,null,null,null,null,null,null,null,null,null,null,null,null,null,{"$f":"SUM(CK20:CO31)","v":0}]
[null,null,null,null,null,null,"Doppel",null,null,null,null,null,null,null,null,null,null,{"$f":"O17","v":0},null,null,null,null,null,null,null,null,null,null,null,null,null,null,null,null,null,null,null,null,null,null,null,null,null,null,null,null,null,null,{"$f":"CH17","v":0},null,null,null,null,null,null,null,null,null,null,null,null,null,null,null,null,null,null,null,null,null,null,null,null,null,null,null,null,null,null,null,null,null,null,null,null,null,null,null,null,null,null,null,null,null,null,null,null,null,null,null,null,null,null,null,null,null,null,null,null,null,null,null,null,null,null,null,null,null,null,null,null,null,null,null,null,null,null,null,{"$f":"IF(CA22=\"\",\"\",IF(CA22>CF22,1,0)+IF(CK22>CP22,1,0)+IF(CU22>CZ22,1,0)+IF(DE22>DJ22,1,0)+IF(DO22>DT22,1,0))","v":""},null,null,null,null,{"$f":"IF(CA22=\"\",\"\",IF(CA22<CF22,1,0)+IF(CK22<CP22,1,0)+IF(CU22<CZ22,1,0)+IF(DE22<DJ22,1,0)+IF(DO22<DT22,1,0))","v":""},null,null,null,null,{"$f":"IF(DY22=\"\",\"\",IF(DY22>ED22,1,0))","v":""},null,null,null,{"$f":"IF(DY22=\"\",\"\",IF(DY22<ED22,1,0))","v":""},null,null,null,{"$f":"SUM(CU20:CY31)","v":0},{"$f":"IF(DY22=3,1,0)","v":0},{"$f":"IF(ED22=3,1,0)","v":0}]
[null,null,null,null,null,null,"A2 - B2",null,null,null,null,null,null,null,null,null,null,{"$f":"AU17","v":0},null,null,null,null,null,null,null,null,null,null,null,null,null,null,null,null,null,null,null,null,null,null,null,null,null,null,null,null,null,null,{"$f":"DN17","v":0},null,null,null,null,null,null,null,null,null,null,null,null,null,null,null,null,null,null,null,null,null,null,null,null,null,null,null,null,null,null,null,null,null,null,null,null,null,null,null,null,null,null,null,null,null,null,null,null,null,null,null,null,null,null,null,null,null,null,null,null,null,null,null,null,null,null,null,null,null,null,null,null,null,null,null,null,null,null,null,null,null,null,null,null,null,null,null,null,null,null,null,null,null,null,null,null,null,{"$f":"SUM(DE20:DI31)","v":0}]
[null,null,null,null,null,null,"E A1-B1",null,null,null,null,null,null,null,null,null,{"$f":"O12","v":0},null,null,null,null,null,null,null,null,null,null,null,null,null,null,null,null,null,null,null,null,null,null,null,null,null,null,null,null,null,null,{"$f":"CH12","v":0},null,null,null,null,null,null,null,null,null,null,null,null,null,null,null,null,null,null,null,null,null,null,null,null,null,null,null,null,null,null,null,null,null,null,null,null,null,null,null,null,null,null,null,null,null,null,null,null,null,null,null,null,null,null,null,null,null,null,null,null,null,null,null,null,null,null,null,null,null,null,null,null,null,null,null,null,null,null,null,null,{"$f":"IF(CA24=\"\",\"\",IF(CA24>CF24,1,0)+IF(CK24>CP24,1,0)+IF(CU24>CZ24,1,0)+IF(DE24>DJ24,1,0)+IF(DO24>DT24,1,0))","v":""},null,null,null,null,{"$f":"IF(CA24=\"\",\"\",IF(CA24<CF24,1,0)+IF(CK24<CP24,1,0)+IF(CU24<CZ24,1,0)+IF(DE24<DJ24,1,0)+IF(DO24<DT24,1,0))","v":""},null,null,null,null,{"$f":"IF(DY24=\"\",\"\",IF(DY24>ED24,1,0))","v":""},null,null,null,{"$f":"IF(DY24=\"\",\"\",IF(DY24<ED24,1,0))","v":""},null,null,null,{"$f":"SUM(DO20:DS31)","v":0},{"$f":"IF(DY24=3,1,0)","v":0},{"$f":"IF(ED24=3,1,0)","v":0}]
[null,null,null,null,null,null,"E A2-B2",null,null,null,null,null,null,null,null,null,{"$f":"O13","v":0},null,null,null,null,null,null,null,null,null,null,null,null,null,null,null,null,null,null,null,null,null,null,null,null,null,null,null,null,null,null,{"$f":"CH13","v":0},null,null,null,null,null,null,null,null,null,null,null,null,null,null,null,null,null,null,null,null,null,null,null,null,null,null,null,null,null,null,null,null,null,null,null,null,null,null,null,null,null,null,null,null,null,null,null,null,null,null,null,null,null,null,null,null,null,null,null,null,null,null,null,null,null,null,null,null,null,null,null,null,null,null,null,null,null,null,null,null,{"$f":"IF(CA25=\"\",\"\",IF(CA25>CF25,1,0)+IF(CK25>CP25,1,0)+IF(CU25>CZ25,1,0)+IF(DE25>DJ25,1,0)+IF(DO25>DT25,1,0))","v":""},null,null,null,null,{"$f":"IF(CA25=\"\",\"\",IF(CA25<CF25,1,0)+IF(CK25<CP25,1,0)+IF(CU25<CZ25,1,0)+IF(DE25<DJ25,1,0)+IF(DO25<DT25,1,0))","v":""},null,null,null,null,{"$f":"IF(DY25=\"\",\"\",IF(DY25>ED25,1,0))","v":""},null,null,null,{"$f":"IF(DY25=\"\",\"\",IF(DY25<ED25,1,0))","v":""},null,null,null,{"$f":"SUM(EQ20:EQ24)","v":0},{"$f":"IF(DY25=3,1,0)","v":0},{"$f":"IF(ED25=3,1,0)","v":0}]
[null,null,null,null,null,null,"E A3-B3",null,null,null,null,null,null,null,null,null,{"$f":"O14","v":0},null,null,null,null,null,null,null,null,null,null,null,null,null,null,null,null,null,null,null,null,null,null,null,null,null,null,null,null,null,null,{"$f":"CH14","v":0},null,null,null,null,null,null,null,null,null,null,null,null,null,null,null,null,null,null,null,null,null,null,null,null,null,null,null,null,null,null,null,null,null,null,null,null,null,null,null,null,null,null,null,null,null,null,null,null,null,null,null,null,null,null,null,null,null,null,null,null,null,null,null,null,null,null,null,null,null,null,null,null,null,null,null,null,null,null,null,null,{"$f":"IF(CA26=\"\",\"\",IF(CA26>CF26,1,0)+IF(CK26>CP26,1,0)+IF(CU26>CZ26,1,0)+IF(DE26>DJ26,1,0)+IF(DO26>DT26,1,0))","v":""},null,null,null,null,{"$f":"IF(CA26=\"\",\"\",IF(CA26<CF26,1,0)+IF(CK26<CP26,1,0)+IF(CU26<CZ26,1,0)+IF(DE26<DJ26,1,0)+IF(DO26<DT26,1,0))","v":""},null,null,null,null,{"$f":"IF(DY26=\"\",\"\",IF(DY26>ED26,1,0))","v":""},null,null,null,{"$f":"IF(DY26=\"\",\"\",IF(DY26<ED26,1,0))","v":""},null,null,null,null,0,0]
[null,null,null,null,null,null,"E A4-B4",null,null,null,null,null,null,null,null,null,{"$f":"O15","v":0},null,null,null,null,null,null,null,null,null,null,null,null,null,null,null,null,null,null,null,null,null,null,null,null,null,null,null,null,null,null,{"$f":"CH15","v":0},null,null,null,null,null,null,null,null,null,null,null,null,null,null,null,null,null,null,null,null,null,null,null,null,null,null,null,null,null,null,null,null,null,null,null,null,null,null,null,null,null,null,null,null,null,null,null,null,null,null,null,null,null,null,null,null,null,null,null,null,null,null,null,null,null,null,null,null,null,null,null,null,null,null,null,null,null,null,null,null,"",null,null,null,null,"",null,null,null,null,"",null,null,null,"",null,null,null,{"$f":"BU7","v":0},0,0]
[null,null,null,null,null,null,"E A1-B2",null,null,null,null,null,null,null,null,null,{"$f":"O12","v":0},null,null,null,null,null,null,null,null,null,null,null,null,null,null,null,null,null,null,null,null,null,null,null,null,null,null,null,null,null,null,{"$f":"CH13","v":0},null,null,null,null,null,null,null,null,null,null,null,null,null,null,null,null,null,null,null,null,null,null,null,null,null,null,null,null,null,null,null,null,null,null,null,null,null,null,null,null,null,null,null,null,null,null,null,null,null,null,null,null,null,null,null,null,null,null,null,null,null,null,null,null,null,null,null,null,null,null,null,null,null,null,null,null,null,null,null,null,"",null,null,null,null,"",null,null,null,null,"",null,null,null,"",null,null,null,{"$f":"SUM(CF20:CJ31)","v":0},0,0]
[null,null,null,null,null,null,"E A2-B1",null,null,null,null,null,null,null,null,null,{"$f":"O13","v":0},null,null,null,null,null,null,null,null,null,null,null,null,null,null,null,null,null,null,null,null,null,null,null,null,null,null,null,null,null,null,{"$f":"CH12","v":0},null,null,null,null,null,null,null,null,null,null,null,null,null,null,null,null,null,null,null,null,null,null,null,null,null,null,null,null,null,null,null,null,null,null,null,null,null,null,null,null,null,null,null,null,null,null,null,null,null,null,null,null,null,null,null,null,null,null,null,null,null,null,null,null,null,null,null,null,null,null,null,null,null,null,null,null,null,null,null,null,"",null,null,null,null,"",null,null,null,null,"",null,null,null,"",null,null,null,{"$f":"SUM(CP20:CT31)","v":0},0,0]
[null,null,null,null,null,null,"E A3-B4",null,null,null,null,null,null,null,null,null,{"$f":"O14","v":0},null,null,null,null,null,null,null,null,null,null,null,null,null,null,null,null,null,null,null,null,null,null,null,null,null,null,null,null,null,null,{"$f":"CH15","v":0},null,null,null,null,null,null,null,null,null,null,null,null,null,null,null,null,null,null,null,null,null,null,null,null,null,null,null,null,null,null,null,null,null,null,null,null,null,null,null,null,null,null,null,null,null,null,null,null,null,null,null,null,null,null,null,null,null,null,null,null,null,null,null,null,null,null,null,null,null,null,null,null,null,null,null,null,null,null,null,null,"",null,null,null,null,"",null,null,null,null,"",null,null,null,"",null,null,null,{"$f":"SUM(CZ20:DD31)","v":0},0,0]
[null,null,null,null,null,null,"E A4-B3",null,null,null,null,null,null,null,null,null,{"$f":"O15","v":0},null,null,null,null,null,null,null,null,null,null,null,null,null,null,null,null,null,null,null,null,null,null,null,null,null,null,null,null,null,null,{"$f":"CH14","v":0},null,null,null,null,null,null,null,null,null,null,null,null,null,null,null,null,null,null,null,null,null,null,null,null,null,null,null,null,null,null,null,null,null,null,null,null,null,null,null,null,null,null,null,null,null,null,null,null,null,null,null,null,null,null,null,null,null,null,null,null,null,null,null,null,null,null,null,null,null,null,null,null,null,null,null,null,null,null,null,null,"",null,null,null,null,"",null,null,null,null,"",null,null,null,"",null,null,null,{"$f":"SUM(DJ20:DN31)","v":0},0,0]
[null,null,null,null,null,null,null,null,null,null,null,null,null,null,null,null,null,null,null,null,null,null,null,null,null,null,null,null,null,null,null,null,null,null,null,null,null,null,null,null,null,null,null,null,null,null,null,null,null,null,null,null,null,null,null,null,null,null,null,null,null,null,null,null,null,null,null,null,null,null,null,null,null,null,null,null,null,null,null,null,null,null,null,null,null,null,null,null,null,null,null,null,null,null,null,null,null,null,null,null,null,null,null,null,null,null,null,null,null,null,null,null,null,null,null,null,null,null,null,null,null,null,null,null,null,null,null,null,{"$f":"IF(DY20=\"\",\"\",SUM(DY20:EC31))","v":""},null,null,null,null,{"$f":"IF(ED20=\"\",\"\",SUM(ED20:EH31))","v":""},null,null,null,null,{"$f":"IF(EI20=\"\",\"\",SUM(EI20:EL31))","v":""},null,null,null,{"$f":"IF(EM20=\"\",\"\",SUM(EM20:EP31))","v":""},null,null,null,{"$f":"SUM(DT20:DX31)","v":0}]
[null,null,null,null,null,null,"Spielbeginn :",null,null,null,null,null,null,null,null,null,null,null,null,null,null,null,null,null,null,null,null,null,null,null,null,"Uhr",null,null,null,null,null,null,null,null,null,"Spielende :",null,null,null,null,null,null,null,null,null,null,null,null,null,null,null,null,null,null,null,null,null,null,null,null,"Uhr",null,null,null,null,null,null,null,null,null,null,null,null,null,null,null,null,null,null,null,null,null,{"$f":"EQ25","v":0},null,null,null,null,null,":",null,{"$f":"EQ33","v":0},null,null,null,null,null," Bälle",null,null,null,null,null,null,null,null,null,null,null,null,null,null,null,null,null,null,null,null,null,null,null,null,null,null,null,null,null,null,null,null,null,null,null,null,null,null,null,null,null,null,null,{"$f":"SUM(EQ28:EQ32)","v":0},{"$f":"SUM(ER20:ER31)","v":0},{"$f":"SUM(ES20:ES31)","v":0}]
[]
[]
[null,null,null,null,null,null,{"$f":"IF(BL36=BS36,\"\",IF(BL36>BS36,EQ13,EQ15))","v":""},null,null,null,null,null,null,null,null,null,null,":",null,{"$f":"EQ12","v":""},null,null,null,null,null,null,null,null,null,null,null,null,null,null,null,null,null,null,null,null,null,null,null,null,null,null,null,null,null,null,null,null,null,null,null,null,"mit :",null,null,null,null,null,null,{"$f":"IF(EI32>EM32,EI32,EM32)","v":""},null,null,null,null,":",null,{"$f":"IF(EI32<EM32,EI32,EM32)","v":""},null,null,null,null,"Spielen",null,null,null,null,null,null,null,null,null,null,null,"und",null,null,null,null,null,null,{"$f":"IF(EI32>=EM32,DY32,ED32)","v":""},null,null,null,null,":",null,{"$f":"IF(EI32<EM32,DY32,ED32)","v":""},null,null,null,null,"Sätzen",null,null,null,null,null,null,null,null,null,null,"und",null,null,null,null,null,null,{"$f":"IF(EI32>=EM32,EQ25,EQ33)","v":0},null,null,null,null,null,":",null,{"$f":"IF(EI32<EM32,EQ25,EQ33)","v":0},null,null,null,null,null," Bälle"]
[]
[null,null,null,null,null,null,"Spielort",null,null,null,null,null,null,null,null,":",null,null,null,null,null,null,null,null,null,null,null,null,null,null,null,null,null,null,null,null,null,null,null,null,null,null,null,null,null,null,null,null,null,null,null,null,null,null,null,null,null,null,null,null,null,null,null,null,null,null,null,{"$f":"G7","v":0},null,null,null,null,null,null,null,null,null,null,null,null,null,null,null,null,null,null,null,null,null,"Unterschriften Mannschaftsführer",null,null,null,null,null,null,null,null,null,null,null,null,null,null,null,null,null,null,null,null,null,null,null,null,null,null,null,null,null,null,null,null,null,null,{"$f":"BU7","v":0}]
[]
[]
[]
[]
[null,null,null,null,null,null,"Datum",null,null,null,null,null,null,null,null,":",null,{"$f":"TODAY()","v":"2018-08-13"}]
[]
[]
[]
[]
[]
[null,null,null,null,null,null,null,null,null,null,null,"kein Protest"]
[null,null,null,null,null,null,null,null,null,null,null,null,null,null,null,null,null,null,null,null,null,null,null,null,null,null,null,null,null,null,null,null,null,null,null,null,null,null,null,null,null,null,null,{"$f":"T2","v":"TT-Berzirk 6"}]
[]
[]
[null,null,null,null,null,null,null,null,null,null,null,null,null,null,null,null,null,null,null,null,null,null,null,null,null,null,null,null,null,null,null,null,null,null,null,null,null,null,null,null,null,null,null,{"$f":"AZ2","v":"Oberfranken Ost"}]
[null,null,null,null,null,null,null,null,null,null,null,"Protest - siehe Anlage"]
[null,null,null,null,null,null,null,null,null,null,null,null,null,null,null,null,null,null,null,null,null,null,null,null,null,null,null,null,null,null,null,null,null,null,null,null,null,null,null,null,null,null,null,null,{"$f":"CP2","v":"Bezirks-"}]
[null,null,null,null,null,null,null,null,null,null,null,null,null,null,null,null,null,null,null,null,null,null,null,null,null,null,null,null,null,null,null,null,null,null,null,null,null,null,null,null,null,null,null,null,null,null,null,null,null,null,null,null,null,null,null,null,null,null,null,null,null,null,null,null,null,null,null,"Mf.:",null,null,null,null,null,null,null,null,null,null,null,null,null,null,null,null,null,null,null,null,null,null,null,null,null,null,null,null,null,null,null,null,null,null,null,null,null,null,null,null,"Mf.:"]
[]
[]
[]
[null,null,null,null,null,null," Staffelleiter",null,null,null,null,null,null,null,null,null,null,null,null,null,null,null,null,null,":",null,null,null,null,null,null,null,null,null,null,null,null,null,null,null,null,null,null,null,null,null,null,null,"Tel.-Nr.:",null,null,null,null,null,null,null,null,null,null,null,null,null,null,null,null,null,null,null,null,null,null,null,null,"Mobil:",null,null,null,null,null,null,null,null,null,null,null,null,null,null,null,null,null,null,null,null,null,null,"Email:"]
[null,null,null,null,null,null," Mannschaftsführer",null,null,null,null,null,null,null,null,null,null,null,null,null,null,null,null,null,":",null,null,null,null,null,null,null,null,null,null,null,null,null,null,null,null,null,null,null,null,null,null,null,"Tel.-Nr.:",null,null,null,null,null,null,null,null,null,null,null,null,null,null,null,null,null,null,null,null,null,null,null,null,"Mobil:",null,null,null,null,null,null,null,null,null,null,null,null,null,null,null,null,null,null,null,null,null,null,"Email:"]
["creadet by Gerhard Nidetzky"]

{"sheet":"Spst.4g4","index":1,"n_rows":8,"n_cols":83,"rows_kept":8,"cut":false,"hidden":false,"merged":[[28,10,30,91],[2,38,3,41],[2,82,3,91],[4,10,27,14],[4,15,6,48],[4,49,6,52],[4,53,6,86],[4,87,27,91],[7,15,27,47],[7,48,27,53],[7,54,27,86],[0,42,3,50],[0,51,3,52],[0,53,3,61],[0,62,3,81],[0,82,1,91],[2,10,3,12],[2,13,3,21],[2,22,3,24],[2,25,3,34],[2,35,3,37],[0,38,1,41],[0,10,1,12],[0,13,1,21],[0,22,1,24],[0,25,1,34],[0,35,1,37]]}
[null,null,null,null,null,null,null,null,null,null,{"$f":"'4g4'!G4","v":0},null,null," Damen",null,null,null,null,null,null,null,null,{"$f":"'4g4'!Y4","v":0},null,null," Mädchen",null,null,null,null,null,null,null,null,null,{"$f":"'4g4'!CX4","v":0},null,null,"VR",null,null,null,{"$f":"'4g4'!DR4","v":"2018-02-11"},null,null,null,null,null,null,null,null,"/",null,{"$f":"'4g4'!EF4","v":"2019-02-11"},null,null,null,null,null,null,null,null,{"$f":"'4g4'!CP2","v":"Bezirks-"},null,null,null,null,null,null,null,null,null,null,null,null,null,null,null,null,null,null,null,"Bereich"]
[]
[null,null,null,null,null,null,null,null,null,null,{"$f":"'4g4'!G6","v":0},null,null," Herren",null,null,null,null,null,null,null,null,{"$f":"'4g4'!Y6","v":0},null,null," Jungen",null,null,null,null,null,null,null,null,null,{"$f":"'4g4'!CX6","v":0},null,null,"RR",null,null,null,null,null,null,null,null,null,null,null,null,null,null,null,null,null,null,null,null,null,null,null,null,null,null,null,null,null,null,null,null,null,null,null,null,null,null,null,null,null,null,null,{"$f":"'4g4'!AU5","v":0}]
[]
[null,null,null,null,null,null,null,null,null,null,null,null,null,null,null,{"$f":"'4g4'!G7","v":0},null,null,null,null,null,null,null,null,null,null,null,null,null,null,null,null,null,null,null,null,null,null,null,null,null,null,null,null,null,null,null,null,null,":",null,null,null,{"$f":"'4g4'!BU7","v":0}]
[]
[]
[null,null,null,null,null,null,null,null,null,null,null,null,null,null,null,{"$f":"'4g4'!ER33","v":0},null,null,null,null,null,null,null,null,null,null,null,null,null,null,null,null,null,null,null,null,null,null,null,null,null,null,null,null,null,null,null,null,":",null,null,null,null,null,{"$f":"'4g4'!ES33","v":0}]

{"sheet":"4g3","index":2,"n_rows":60,"n_cols":149,"rows_kept":60,"cut":false,"hidden":false,"merged":[[3,28,3,41],[3,132,5,134],[3,135,5,145],[4,6,4,41],[4,46,5,76],[4,79,5,94],[4,101,4,120],[5,24,5,27],[5,28,5,41],[3,46,3,76],[3,77,5,78],[3,79,3,94],[3,101,3,104],[3,106,3,120],[5,6,5,9],[5,10,5,23],[0,149,59,152],[1,6,1,18],[1,19,1,46],[1,47,1,50],[1,51,1,86],[1,87,1,90],[1,91,1,92],[1,93,1,134],[1,135,1,145],[2,6,2,41],[2,42,5,45],[2,46,2,94],[2,95,5,100],[2,101,2,145],[3,6,3,9],[3,10,3,23],[3,24,3,27],[3,121,5,131],[5,101,5,104],[5,106,5,120],[6,139,6,145],[7,6,7,45],[7,46,7,53],[7,54,7,60],[7,61,8,71],[7,72,7,79],[7,80,7,86],[7,87,7,126],[7,130,7,145],[8,6,8,45],[6,6,6,60],[6,61,6,71],[6,72,6,126],[6,127,7,129],[6,130,6,136],[6,137,6,138],[8,46,8,60],[8,72,8,86],[8,87,8,145],[9,6,9,145],[10,6,10,13],[10,14,10,66],[10,67,10,74],[10,75,15,76],[10,77,10,84],[10,85,10,137],[10,138,10,145],[11,6,14,9],[11,10,11,13],[11,14,11,66],[11,67,11,74],[11,77,13,80],[11,81,11,84],[11,85,11,137],[11,138,11,145],[12,10,12,13],[12,14,12,66],[12,67,12,74],[12,81,12,84],[12,85,12,137],[12,138,12,145],[13,10,13,13],[13,14,13,66],[13,67,13,74],[13,81,13,84],[13,85,13,137],[15,77,15,80],[15,81,15,84],[15,85,15,113],[15,114,15,116],[15,117,15,145],[16,6,16,145],[13,138,13,145],[14,10,14,13],[14,14,14,66],[14,67,14,74],[14,77,14,145],[15,6,15,9],[15,10,15,13],[15,14,15,42],[15,43,15,45],[15,46,15,74],[17,108,17,117],[17,118,17,127],[17,128,17,137],[17,138,17,145],[18,6,18,15],[18,16,19,16],[18,17,18,45],[18,46,19,46],[18,47,19,47],[18,48,18,76],[17,6,17,15],[17,16,17,46],[17,47,17,77],[17,78,17,87],[17,88,17,97],[17,98,17,107],[20,6,20,8],[20,9,20,15],[20,16,20,46],[20,47,20,77],[20,78,20,82],[20,83,20,87],[18,133,19,137],[18,138,19,141],[18,142,19,145],[19,6,19,15],[19,17,19,45],[19,48,19,76],[18,103,19,107],[18,108,19,112],[18,113,19,117],[18,118,19,122],[18,123,19,127],[18,128,19,132],[18,77,19,77],[18,78,19,82],[18,83,19,87],[18,88,19,92],[18,93,19,97],[18,98,19,102],[20,118,20,122],[20,123,20,127],[20,128,20,132],[20,133,20,137],[20,138,20,141],[20,142,20,145],[20,88,20,92],[20,93,20,97],[20,98,20,102],[20,103,20,107],[20,108,20,112],[20,113,20,117],[21,133,21,137],[21,138,21,141],[21,142,21,145],[21,88,21,92],[21,93,21,97],[21,98,21,102],[21,103,21,107],[21,108,21,112],[21,113,21,117],[22,6,22,8],[22,9,22,15],[22,16,22,46],[22,47,22,77],[22,78,22,82],[22,83,22,87],[21,118,21,122],[21,123,21,127],[21,128,21,132],[21,6,21,8],[21,9,21,15],[21,16,21,46],[21,47,21,77],[21,78,21,82],[21,83,21,87],[22,118,22,122],[22,123,22,127],[22,128,22,132],[22,133,22,137],[22,138,22,141],[22,142,22,145],[22,88,22,92],[22,93,22,97],[22,98,22,102],[22,103,22,107],[22,108,22,112],[22,113,22,117],[23,133,23,137],[23,138,23,141],[23,142,23,145],[23,88,23,92],[23,93,23,97],[23,98,23,102],[23,103,23,107],[23,108,23,112],[23,113,23,117],[24,6,24,8],[24,9,24,15],[24,16,24,46],[24,47,24,77],[24,78,24,82],[24,83,24,87],[23,118,23,122],[23,123,23,127],[23,128,23,132],[23,6,23,8],[23,9,23,15],[23,16,23,46],[23,47,23,77],[23,78,23,82],[23,83,23,87],[24,118,24,122],[24,123,24,127],[24,128,24,132],[24,133,24,137],[24,138,24,141],[24,142,24,145],[24,88,24,92],[24,93,24,97],[24,98,24,102],[24,103,24,107],[24,108,24,112],[24,113,24,117],[25,133,25,137],[25,138,25,141],[25,142,25,145],[25,88,25,92],[25,93,25,97],[25,98,25,102],[25,103,25,107],[25,108,25,112],[25,113,25,117],[26,6,26,8],[26,9,26,15],[26,16,26,46],[26,47,26,77],[26,78,26,82],[26,83,26,87],[25,118,25,122],[25,123,25,127],[25,128,25,132],[25,6,25,8],[25,9,25,15],[25,16,25,46],[25,47,25,77],[25,78,25,82],[25,83,25,87],[26,118,26,122],[26,123,26,127],[26,128,26,132],[26,133,26,137],[26,138,26,141],[26,142,26,145],[26,88,26,92],[26,93,26,97],[26,98,26,102],[26,103,26,107],[26,108,26,112],[26,113,26,117],[27,133,27,137],[27,138,27,141],[27,142,27,145],[27,88,27,92],[27,93,27,97],[27,98,27,102],[27,103,27,107],[27,108,27,112],[27,113,27,117],[28,6,28,8],[28,9,28,15],[28,16,28,46],[28,47,28,77],[28,78,28,82],[28,83,28,87],[27,118,27,122],[27,123,27,127],[27,128,27,132],[27,6,27,8],[27,9,27,15],[27,16,27,46],[27,47,27,77],[27,78,27,82],[27,83,27,87],[28,118,28,122],[28,123,28,127],[28,128,28,132],[28,133,28,137],[28,138,28,141],[28,142,28,145],[28,88,28,92],[28,93,28,97],[28,98,28,102],[28,103,28,107],[28,108,28,112],[28,113,28,117],[30,66,30,87],[30,88,30,93],[30,94,30,95],[30,96,30,101],[30,102,30,127],[31,6,31,145],[29,6,29,127],[29,128,30,132],[29,133,30,137],[29,138,30,141],[29,142,30,145],[30,6,30,19],[30,20,30,30],[30,31,30,40],[30,41,30,54],[30,55,30,65],[32,6,32,145],[33,6,33,16],[33,17,33,18],[33,19,33,55],[33,56,33,62],[33,63,33,67],[33,68,33,69],[33,70,33,74],[33,75,33,86],[33,87,33,93],[35,124,38,145],[39,67,52,71],[39,72,52,104],[39,105,52,112],[39,113,52,145],[33,130,33,131],[33,132,33,137],[33,138,33,145],[34,6,34,145],[35,6,39,14],[35,15,39,16],[35,17,39,40],[35,41,55,42],[35,43,46,64],[35,65,55,66],[33,94,33,98],[33,99,33,100],[33,101,33,105],[33,106,33,116],[33,117,33,123],[33,124,33,129],[40,6,44,14],[40,15,44,16],[40,17,44,40],[45,6,45,36],[45,37,55,40],[46,6,49,9],[46,10,49,10],[46,11,49,36],[35,67,38,88],[53,67,55,71],[53,72,55,104],[35,89,38,123],[55,44,55,63],[47,43,49,64],[50,6,50,36],[50,43,51,64],[51,6,54,9],[51,10,54,10],[51,11,54,36],[52,43,55,43],[52,44,54,63],[52,64,55,64],[58,96,58,102],[58,103,58,145],[59,0,59,145],[58,6,58,23],[58,25,58,47],[58,48,58,55],[58,56,58,72],[58,73,58,78],[58,79,58,95],[0,0,58,5],[0,6,0,145],[56,6,56,145],[57,6,57,23],[57,25,57,47],[57,48,57,55],[57,56,57,72],[57,73,57,78],[57,79,57,95],[57,96,57,102],[57,103,57,145],[53,105,55,107],[53,108,55,112],[53,113,55,145],[55,6,55,36]]}
[null,null,null,null,null,null,"\"Braunschweiger System\"   -   4 gegen 3"]
[null,null,null,null,null,null,null,null,null,null,null,null,null,null,null,null,null,null,null,"TT-Berzirk 6",null,null,null,null,null,null,null,null,null,null,null,null,null,null,null,null,null,null,null,null,null,null,null,null,null,null,null,"-",null,null,null,"Oberfranken Ost",null,null,null,null,null,null,null,null,null,null,null,null,null,null,null,null,null,null,null,null,null,null,null,null,null,null,null,null,null,null,null,null,null,null,null,"-",null,null,null,null,null,{"$f":"'4g4'!CP2","v":"Bezirks-"}]
[]
[null,null,null,null,null,null,null,null,null,null," Damen",null,null,null,null,null,null,null,null,null,null,null,null,null,null,null,null,null," Mädchen",null,null,null,null,null,null,null,null,null,null,null,null,null,null,null,null,null,"Bereich",null,null,null,null,null,null,null,null,null,null,null,null,null,null,null,null,null,null,null,null,null,null,null,null,null,null,null,null,null,null,null,null,"Klasse/Gruppe",null,null,null,null,null,null,null,null,null,null,null,null,null,null,null,null,null,null,null,null,null,null,null,null,null,null,"Vorrunde",null,null,null,null,null,null,null,null,null,null,null,null,null,null,{"$f":"TODAY()-183","v":"2018-02-11"},null,null,null,null,null,null,null,null,null,null,"/",null,null,{"$f":"DR4+365","v":"2019-02-11"}]
[]
[null,null,null,null,null,null,null,null,null,null," Herren",null,null,null,null,null,null,null,null,null,null,null,null,null,null,null,null,null," Jungen",null,null,null,null,null,null,null,null,null,null,null,null,null,null,null,null,null,null,null,null,null,null,null,null,null,null,null,null,null,null,null,null,null,null,null,null,null,null,null,null,null,null,null,null,null,null,null,null,null,null,null,null,null,null,null,null,null,null,null,null,null,null,null,null,null,null,null,null,null,null,null,null,null,null,null,null,null,"Rückrunde"]
[null,null,null,null,null,null,{"$f":"'4g4'!G7","v":0},null,null,null,null,null,null,null,null,null,null,null,null,null,null,null,null,null,null,null,null,null,null,null,null,null,null,null,null,null,null,null,null,null,null,null,null,null,null,null,null,null,null,null,null,null,null,null,null,null,null,null,null,null,null,"gegen",null,null,null,null,null,null,null,null,null,null,{"$f":"'4g4'!BU7","v":0},null,null,null,null,null,null,null,null,null,null,null,null,null,null,null,null,null,null,null,null,null,null,null,null,null,null,null,null,null,null,null,null,null,null,null,null,null,null,null,null,null,null,null,null,null,null,null,null,null,null,null,null,null,null,null,null,null,{"$f":"EI30","v":""},null,null,null,null,null,null,":",null,{"$f":"EM30","v":""},null,null,null,null,null,null,{"$f":"IF(EI30=EM30,\"\",IF(EI30>EM30,G7,BU7))","v":""}]
[null,null,null,null,null,null,"Heimmannschaft  ( A )",null,null,null,null,null,null,null,null,null,null,null,null,null,null,null,null,null,null,null,null,null,null,null,null,null,null,null,null,null,null,null,null,null,null,null,null,null,null,null,206,null,null,null,null,null,null,null,{"$f":"'4g4'!BC8","v":0},null,null,null,null,null,null,null,null,null,null,null,null,null,null,null,null,null,{"$f":"AU8","v":206},null,null,null,null,null,null,null,null,null,null,null,null,null,null,"Gastmannschaft  ( B )",null,null,null,null,null,null,null,null,null,null,null,null,null,null,null,null,null,null,null,null,null,null,null,null,null,null,null,null,null,null,null,null,null,null,null,null,null,null,null,null,null,null,"Endergebnis",null,null,null,null,null,null,null,null,null,null,null,null,null,null,null,{"$f":"IF(BL34=\"\",\"\",IF(EI30=EM30,EQ14))","v":""}]
[null,null,null,null,null,null,null,null,null,null,null,null,null,null,null,null,null,null,null,null,null,null,null,null,null,null,null,null,null,null,null,null,null,null,null,null,null,null,null,null,null,null,null,null,null,null,"Vereins-Nr.",null,null,null,null,null,null,null,null,null,null,null,null,null,null,null,null,null,null,null,null,null,null,null,null,null,"Vereins-Nr."]
[null,null,null,null,null,null,"Mannschaftsaufstellung"]
[null,null,null,null,null,null,"Rang",null,null,null,null,null,null,null,"Heimverein ( Mannschaft A )",null,null,null,null,null,null,null,null,null,null,null,null,null,null,null,null,null,null,null,null,null,null,null,null,null,null,null,null,null,null,null,null,null,null,null,null,null,null,null,null,null,null,null,null,null,null,null,null,null,null,null,null,"Pos.",null,null,null,null,null,null,null,null,null,"Rang",null,null,null,null,null,null,null,"Gastverein ( Mannschaft B )",null,null,null,null,null,null,null,null,null,null,null,null,null,null,null,null,null,null,null,null,null,null,null,null,null,null,null,null,null,null,null,null,null,null,null,null,null,null,null,null,null,null,null,null,null,null,null,null,null,null,null,null,"Pos."]
[null,null,null,null,null,null,"E I N Z E L",null,null,null,"A1",null,null,null,null,null,null,null,null,null,null,null,null,null,null,null,null,null,null,null,null,null,null,null,null,null,null,null,null,null,null,null,null,null,null,null,null,null,null,null,null,null,null,null,null,null,null,null,null,null,null,null,null,null,null,null,null,null,null,null,null,null,null,null,null,null,null,"E I N Z E L",null,null,null,"B1",null,null,null,null,null,null,null,null,null,null,null,null,null,null,null,null,null,null,null,null,null,null,null,null,null,null,null,null,null,null,null,null,null,null,null,null,null,null,null,null,null,null,null,null,null,null,null,null,null,null,null,null,null,null,null,null,null,null,null,null,null,null,null,null,{"$f":"IF(EI30<>EM30,EQ7,EQ8)","v":""}]
[null,null,null,null,null,null,null,null,null,null,"A2",null,null,null,null,null,null,null,null,null,null,null,null,null,null,null,null,null,null,null,null,null,null,null,null,null,null,null,null,null,null,null,null,null,null,null,null,null,null,null,null,null,null,null,null,null,null,null,null,null,null,null,null,null,null,null,null,null,null,null,null,null,null,null,null,null,null,null,null,null,null,"B2",null,null,null,null,null,null,null,null,null,null,null,null,null,null,null,null,null,null,null,null,null,null,null,null,null,null,null,null,null,null,null,null,null,null,null,null,null,null,null,null,null,null,null,null,null,null,null,null,null,null,null,null,null,null,null,null,null,null,null,null,null,null,null,null,"Sieger"]
[null,null,null,null,null,null,null,null,null,null,"A3",null,null,null,null,null,null,null,null,null,null,null,null,null,null,null,null,null,null,null,null,null,null,null,null,null,null,null,null,null,null,null,null,null,null,null,null,null,null,null,null,null,null,null,null,null,null,null,null,null,null,null,null,null,null,null,null,null,null,null,null,null,null,null,null,null,null,null,null,null,null,"B3",null,null,null,null,null,null,null,null,null,null,null,null,null,null,null,null,null,null,null,null,null,null,null,null,null,null,null,null,null,null,null,null,null,null,null,null,null,null,null,null,null,null,null,null,null,null,null,null,null,null,null,null,null,null,null,null,null,null,null,null,null,null,null,null,"Unentschieden"]
[null,null,null,null,null,null,null,null,null,null,"A4"]
[null,null,null,null,null,null,"D",null,null,null,"A1",null,null,null,null,null,null,null,null,null,null,null,null,null,null,null,null,null,null,null,null,null,null,null,null,null,null,null,null,null,null,null,null,"/",null,null,null,null,null,null,null,null,null,null,null,null,null,null,null,null,null,null,null,null,null,null,null,null,null,null,null,null,null,null,null,null,null,"D",null,null,null,"B1",null,null,null,null,null,null,null,null,null,null,null,null,null,null,null,null,null,null,null,null,null,null,null,null,null,null,null,null,null,null,null,null,"/"]
[]
[null,null,null,null,null,null,"Spielfolge",null,null,null,null,null,null,null,null,null,"Heimverein ( Mannschaft A )",null,null,null,null,null,null,null,null,null,null,null,null,null,null,null,null,null,null,null,null,null,null,null,null,null,null,null,null,null,null,"Gastverein ( Mannschaft B )",null,null,null,null,null,null,null,null,null,null,null,null,null,null,null,null,null,null,null,null,null,null,null,null,null,null,null,null,null,null,"1. Satz",null,null,null,null,null,null,null,null,null,"2. Satz",null,null,null,null,null,null,null,null,null,"3. Satz",null,null,null,null,null,null,null,null,null,"4. Satz",null,null,null,null,null,null,null,null,null,"5. Satz",null,null,null,null,null,null,null,null,null,"Sätze",null,null,null,null,null,null,null,null,null,"Spiele",null,null,null,null,null,null,null,{"$f":"G7","v":0}]
[null,null,null,null,null,null,"Doppel",null,null,null,null,null,null,null,null,null,null,{"$f":"O16","v":0},null,null,null,null,null,null,null,null,null,null,null,null,null,null,null,null,null,null,null,null,null,null,null,null,null,null,null,null,null,null,{"$f":"CH16","v":0},null,null,null,null,null,null,null,null,null,null,null,null,null,null,null,null,null,null,null,null,null,null,null,null,null,null,null,null,null,null,null,null,null,null,null,null,null,null,null,null,null,null,null,null,null,null,null,null,null,null,null,null,null,null,null,null,null,null,null,null,null,null,null,null,null,null,null,null,null,null,null,null,null,null,null,null,null,null,null,{"$f":"IF(CA19=\"\",\"\",IF(CA19>CF19,1,0)+IF(CK19>CP19,1,0)+IF(CU19>CZ19,1,0)+IF(DE19>DJ19,1,0)+IF(DO19>DT19,1,0))","v":""},null,null,null,null,{"$f":"IF(CA19=\"\",\"\",IF(CA19<CF19,1,0)+IF(CK19<CP19,1,0)+IF(CU19<CZ19,1,0)+IF(DE19<DJ19,1,0)+IF(DO19<DT19,1,0))","v":""},null,null,null,null,{"$f":"IF(DY19=\"\",\"\",IF(DY19>ED19,1,0))","v":""},null,null,null,{"$f":"IF(DY19=\"\",\"\",IF(DY19<ED19,1,0))","v":""},null,null,null,{"$f":"SUM(CA19:CE29)","v":0},{"$f":"IF(DY19=3,1,0)","v":0},{"$f":"IF(ED19=3,1,0)","v":0}]
[null,null,null,null,null,null,"A1 - B1",null,null,null,null,null,null,null,null,null,null,{"$f":"AU16","v":0},null,null,null,null,null,null,null,null,null,null,null,null,null,null,null,null,null,null,null,null,null,null,null,null,null,null,null,null,null,null,{"$f":"DN16","v":0},null,null,null,null,null,null,null,null,null,null,null,null,null,null,null,null,null,null,null,null,null,null,null,null,null,null,null,null,null,null,null,null,null,null,null,null,null,null,null,null,null,null,null,null,null,null,null,null,null,null,null,null,null,null,null,null,null,null,null,null,null,null,null,null,null,null,null,null,null,null,null,null,null,null,null,null,null,null,null,null,null,null,null,null,null,null,null,null,null,null,null,null,null,null,null,null,null,{"$f":"SUM(CK19:CO29)","v":0}]
[null,null,null,null,null,null,"E",null,null,"A3-B3",null,null,null,null,null,null,{"$f":"O14","v":0},null,null,null,null,null,null,null,null,null,null,null,null,null,null,null,null,null,null,null,null,null,null,null,null,null,null,null,null,null,null,{"$f":"CH14","v":0},null,null,null,null,null,null,null,null,null,null,null,null,null,null,null,null,null,null,null,null,null,null,null,null,null,null,null,null,null,null,null,null,null,null,null,null,null,null,null,null,null,null,null,null,null,null,null,null,null,null,null,null,null,null,null,null,null,null,null,null,null,null,null,null,null,null,null,null,null,null,null,null,null,null,null,null,null,null,null,null,{"$f":"IF(CA21=\"\",\"\",IF(CA21>CF21,1,0)+IF(CK21>CP21,1,0)+IF(CU21>CZ21,1,0)+IF(DE21>DJ21,1,0)+IF(DO21>DT21,1,0))","v":""},null,null,null,null,{"$f":"IF(CA21=\"\",\"\",IF(CA21<CF21,1,0)+IF(CK21<CP21,1,0)+IF(CU21<CZ21,1,0)+IF(DE21<DJ21,1,0)+IF(DO21<DT21,1,0))","v":""},null,null,null,null,{"$f":"IF(DY21=\"\",\"\",IF(DY21>ED21,1,0))","v":""},null,null,null,{"$f":"IF(DY21=\"\",\"\",IF(DY21<ED21,1,0))","v":""},null,null,null,{"$f":"SUM(CU19:CY29)","v":0},{"$f":"IF(DY21=3,1,0)","v":0},{"$f":"IF(ED21=3,1,0)","v":0}]
[null,null,null,null,null,null,"E",null,null,"A1-B2",null,null,null,null,null,null,{"$f":"O12","v":0},null,null,null,null,null,null,null,null,null,null,null,null,null,null,null,null,null,null,null,null,null,null,null,null,null,null,null,null,null,null,{"$f":"CH13","v":0},null,null,null,null,null,null,null,null,null,null,null,null,null,null,null,null,null,null,null,null,null,null,null,null,null,null,null,null,null,null,null,null,null,null,null,null,null,null,null,null,null,null,null,null,null,null,null,null,null,null,null,null,null,null,null,null,null,null,null,null,null,null,null,null,null,null,null,null,null,null,null,null,null,null,null,null,null,null,null,null,{"$f":"IF(CA22=\"\",\"\",IF(CA22>CF22,1,0)+IF(CK22>CP22,1,0)+IF(CU22>CZ22,1,0)+IF(DE22>DJ22,1,0)+IF(DO22>DT22,1,0))","v":""},null,null,null,null,{"$f":"IF(CA22=\"\",\"\",IF(CA22<CF22,1,0)+IF(CK22<CP22,1,0)+IF(CU22<CZ22,1,0)+IF(DE22<DJ22,1,0)+IF(DO22<DT22,1,0))","v":""},null,null,null,null,"",null,null,null,"",null,null,null,{"$f":"SUM(DE19:DI29)","v":0},{"$f":"IF(DY22=3,1,0)","v":0},{"$f":"IF(ED22=3,1,0)","v":0}]
[null,null,null,null,null,null,"E",null,null,"A2-B1",null,null,null,null,null,null,{"$f":"O13","v":0},null,null,null,null,null,null,null,null,null,null,null,null,null,null,null,null,null,null,null,null,null,null,null,null,null,null,null,null,null,null,{"$f":"CH12","v":0},null,null,null,null,null,null,null,null,null,null,null,null,null,null,null,null,null,null,null,null,null,null,null,null,null,null,null,null,null,null,null,null,null,null,null,null,null,null,null,null,null,null,null,null,null,null,null,null,null,null,null,null,null,null,null,null,null,null,null,null,null,null,null,null,null,null,null,null,null,null,null,null,null,null,null,null,null,null,null,null,{"$f":"IF(CA23=\"\",\"\",IF(CA23>CF23,1,0)+IF(CK23>CP23,1,0)+IF(CU23>CZ23,1,0)+IF(DE23>DJ23,1,0)+IF(DO23>DT23,1,0))","v":""},null,null,null,null,{"$f":"IF(CA23=\"\",\"\",IF(CA23<CF23,1,0)+IF(CK23<CP23,1,0)+IF(CU23<CZ23,1,0)+IF(DE23<DJ23,1,0)+IF(DO23<DT23,1,0))","v":""},null,null,null,null,"",null,null,null,"",null,null,null,{"$f":"SUM(DO19:DS29)","v":0},0,0]
[null,null,null,null,null,null,"E",null,null,"A4-B2",null,null,null,null,null,null,{"$f":"O15","v":0},null,null,null,null,null,null,null,null,null,null,null,null,null,null,null,null,null,null,null,null,null,null,null,null,null,null,null,null,null,null,{"$f":"CH13","v":0},null,null,null,null,null,null,null,null,null,null,null,null,null,null,null,null,null,null,null,null,null,null,null,null,null,null,null,null,null,null,null,null,null,null,null,null,null,null,null,null,null,null,null,null,null,null,null,null,null,null,null,null,null,null,null,null,null,null,null,null,null,null,null,null,null,null,null,null,null,null,null,null,null,null,null,null,null,null,null,null,{"$f":"IF(CA24=\"\",\"\",IF(CA24>CF24,1,0)+IF(CK24>CP24,1,0)+IF(CU24>CZ24,1,0)+IF(DE24>DJ24,1,0)+IF(DO24>DT24,1,0))","v":""},null,null,null,null,{"$f":"IF(CA24=\"\",\"\",IF(CA24<CF24,1,0)+IF(CK24<CP24,1,0)+IF(CU24<CZ24,1,0)+IF(DE24<DJ24,1,0)+IF(DO24<DT24,1,0))","v":""},null,null,null,null,"",null,null,null,"",null,null,null,{"$f":"SUM(EQ19:EQ23)","v":0},0,0]
[null,null,null,null,null,null,"E",null,null,"A1-B1",null,null,null,null,null,null,{"$f":"O12","v":0},null,null,null,null,null,null,null,null,null,null,null,null,null,null,null,null,null,null,null,null,null,null,null,null,null,null,null,null,null,null,{"$f":"CH12","v":0},null,null,null,null,null,null,null,null,null,null,null,null,null,null,null,null,null,null,null,null,null,null,null,null,null,null,null,null,null,null,null,null,null,null,null,null,null,null,null,null,null,null,null,null,null,null,null,null,null,null,null,null,null,null,null,null,null,null,null,null,null,null,null,null,null,null,null,null,null,null,null,null,null,null,null,null,null,null,null,null,"",null,null,null,null,"",null,null,null,null,"",null,null,null,"",null,null,null,{"$f":"BU7","v":0},0,0]
[null,null,null,null,null,null,"E",null,null,"A4-B3",null,null,null,null,null,null,{"$f":"O15","v":0},null,null,null,null,null,null,null,null,null,null,null,null,null,null,null,null,null,null,null,null,null,null,null,null,null,null,null,null,null,null,{"$f":"CH14","v":0},null,null,null,null,null,null,null,null,null,null,null,null,null,null,null,null,null,null,null,null,null,null,null,null,null,null,null,null,null,null,null,null,null,null,null,null,null,null,null,null,null,null,null,null,null,null,null,null,null,null,null,null,null,null,null,null,null,null,null,null,null,null,null,null,null,null,null,null,null,null,null,null,null,null,null,null,null,null,null,null,"",null,null,null,null,"",null,null,null,null,"",null,null,null,"",null,null,null,{"$f":"SUM(CF19:CJ29)","v":0},0,0]
[null,null,null,null,null,null,"E",null,null,"A2-B2",null,null,null,null,null,null,{"$f":"O13","v":0},null,null,null,null,null,null,null,null,null,null,null,null,null,null,null,null,null,null,null,null,null,null,null,null,null,null,null,null,null,null,{"$f":"CH13","v":0},null,null,null,null,null,null,null,null,null,null,null,null,null,null,null,null,null,null,null,null,null,null,null,null,null,null,null,null,null,null,null,null,null,null,null,null,null,null,null,null,null,null,null,null,null,null,null,null,null,null,null,null,null,null,null,null,null,null,null,null,null,null,null,null,null,null,null,null,null,null,null,null,null,null,null,null,null,null,null,null,"",null,null,null,null,"",null,null,null,null,"",null,null,null,"",null,null,null,{"$f":"SUM(CP19:CT29)","v":0},0,0]
[null,null,null,null,null,null,"E",null,null,"A1-B3",null,null,null,null,null,null,{"$f":"O12","v":0},null,null,null,null,null,null,null,null,null,null,null,null,null,null,null,null,null,null,null,null,null,null,null,null,null,null,null,null,null,null,{"$f":"CH14","v":0},null,null,null,null,null,null,null,null,null,null,null,null,null,null,null,null,null,null,null,null,null,null,null,null,null,null,null,null,null,null,null,null,null,null,null,null,null,null,null,null,null,null,null,null,null,null,null,null,null,null,null,null,null,null,null,null,null,null,null,null,null,null,null,null,null,null,null,null,null,null,null,null,null,null,null,null,null,null,null,null,"",null,null,null,null,"",null,null,null,null,"",null,null,null,"",null,null,null,{"$f":"SUM(CZ19:DD29)","v":0},0,0]
[null,null,null,null,null,null,"E",null,null,"A3-B1",null,null,null,null,null,null,{"$f":"O14","v":0},null,null,null,null,null,null,null,null,null,null,null,null,null,null,null,null,null,null,null,null,null,null,null,null,null,null,null,null,null,null,{"$f":"CH12","v":0},null,null,null,null,null,null,null,null,null,null,null,null,null,null,null,null,null,null,null,null,null,null,null,null,null,null,null,null,null,null,null,null,null,null,null,null,null,null,null,null,null,null,null,null,null,null,null,null,null,null,null,null,null,null,null,null,null,null,null,null,null,null,null,null,null,null,null,null,null,null,null,null,null,null,null,null,null,null,null,null,"",null,null,null,null,"",null,null,null,null,"",null,null,null,"",null,null,null,{"$f":"SUM(DJ19:DN29)","v":0},0,0]
[null,null,null,null,null,null,null,null,null,null,null,null,null,null,null,null,null,null,null,null,null,null,null,null,null,null,null,null,null,null,null,null,null,null,null,null,null,null,null,null,null,null,null,null,null,null,null,null,null,null,null,null,null,null,null,null,null,null,null,null,null,null,null,null,null,null,null,null,null,null,null,null,null,null,null,null,null,null,null,null,null,null,null,null,null,null,null,null,null,null,null,null,null,null,null,null,null,null,null,null,null,null,null,null,null,null,null,null,null,null,null,null,null,null,null,null,null,null,null,null,null,null,null,null,null,null,null,null,{"$f":"IF(DY19=\"\",\"\",SUM(DY19:EC29))","v":""},null,null,null,null,{"$f":"IF(ED19=\"\",\"\",SUM(ED19:EH29))","v":""},null,null,null,null,{"$f":"IF(EI19=\"\",\"\",SUM(EI19:EL29))","v":""},null,null,null,{"$f":"IF(EM19=\"\",\"\",SUM(EM19:EP29))","v":""},null,null,null,{"$f":"SUM(DT19:DX29)","v":0}]
[null,null,null,null,null,null,"Spielbeginn :",null,null,null,null,null,null,null,null,null,null,null,null,null,null,null,null,null,null,null,null,null,null,null,null,"Uhr",null,null,null,null,null,null,null,null,null,"Spielende :",null,null,null,null,null,null,null,null,null,null,null,null,null,null,null,null,null,null,null,null,null,null,null,null,"Uhr",null,null,null,null,null,null,null,null,null,null,null,null,null,null,null,null,null,null,null,null,null,{"$f":"EQ24","v":0},null,null,null,null,null,":",null,{"$f":"EQ31","v":0},null,null,null,null,null," Bälle",null,null,null,null,null,null,null,null,null,null,null,null,null,null,null,null,null,null,null,null,null,null,null,null,null,null,null,null,null,null,null,null,null,null,null,null,null,null,null,null,null,null,null,{"$f":"SUM(EQ26:EQ30)","v":0},{"$f":"SUM(ER19:ER29)","v":0},{"$f":"SUM(ES19:ES29)","v":0}]
[]
[]
[null,null,null,null,null,null,{"$f":"IF(BL34=BS34,\"\",IF(BL34>BS34,EQ13,EQ15))","v":""},null,null,null,null,null,null,null,null,null,null,":",null,{"$f":"EQ12","v":""},null,null,null,null,null,null,null,null,null,null,null,null,null,null,null,null,null,null,null,null,null,null,null,null,null,null,null,null,null,null,null,null,null,null,null,null,"mit :",null,null,null,null,null,null,{"$f":"IF(EI30>EM30,EI30,EM30)","v":""},null,null,null,null,":",null,{"$f":"IF(EI30<EM30,EI30,EM30)","v":""},null,null,null,null,"Spielen",null,null,null,null,null,null,null,null,null,null,null,"und",null,null,null,null,null,null,{"$f":"IF(EI30>=EM30,DY30,ED30)","v":""},null,null,null,null,":",null,{"$f":"IF(EI30<EM30,DY30,ED30)","v":""},null,null,null,null,"Sätzen",null,null,null,null,null,null,null,null,null,null,"und",null,null,null,null,null,null,{"$f":"IF(EI30>=EM30,EQ24,EQ31)","v":0},null,null,null,null,null,":",null,{"$f":"IF(EI30<EM30,EQ24,EQ31)","v":0},null,null,null,null,null," Bälle"]
[]
[null,null,null,null,null,null,"Spielort",null,null,null,null,null,null,null,null,":",null,{"$f":"'4g4'!R38","v":0},null,null,null,null,null,null,null,null,null,null,null,null,null,null,null,null,null,null,null,null,null,null,null,null,null,null,null,null,null,null,null,null,null,null,null,null,null,null,null,null,null,null,null,null,null,null,null,null,null,{"$f":"G7","v":0},null,null,null,null,null,null,null,null,null,null,null,null,null,null,null,null,null,null,null,null,null,"Unterschriften Mannschaftsführer",null,null,null,null,null,null,null,null,null,null,null,null,null,null,null,null,null,null,null,null,null,null,null,null,null,null,null,null,null,null,null,null,null,null,{"$f":"BU7","v":0}]
[]
[]
[]
[]
[null,null,null,null,null,null,"Datum",null,null,null,null,null,null,null,null,":",null,{"$f":"TODAY()","v":"2018-08-13"}]
[]
[]
[]
[]
[]
[null,null,null,null,null,null,null,null,null,null,null,"kein Protest"]
[null,null,null,null,null,null,null,null,null,null,null,null,null,null,null,null,null,null,null,null,null,null,null,null,null,null,null,null,null,null,null,null,null,null,null,null,null,null,null,null,null,null,null,{"$f":"T2","v":"TT-Berzirk 6"}]
[]
[]
[null,null,null,null,null,null,null,null,null,null,null,null,null,null,null,null,null,null,null,null,null,null,null,null,null,null,null,null,null,null,null,null,null,null,null,null,null,null,null,null,null,null,null,{"$f":"AZ2","v":"Oberfranken Ost"}]
[null,null,null,null,null,null,null,null,null,null,null,"Protest - siehe Anlage"]
[null,null,null,null,null,null,null,null,null,null,null,null,null,null,null,null,null,null,null,null,null,null,null,null,null,null,null,null,null,null,null,null,null,null,null,null,null,null,null,null,null,null,null,null,{"$f":"CP2","v":"Bezirks-"}]
[null,null,null,null,null,null,null,null,null,null,null,null,null,null,null,null,null,null,null,null,null,null,null,null,null,null,null,null,null,null,null,null,null,null,null,null,null,null,null,null,null,null,null,null,null,null,null,null,null,null,null,null,null,null,null,null,null,null,null,null,null,null,null,null,null,null,null,"Mf.:",null,null,null,null,null,null,null,null,null,null,null,null,null,null,null,null,null,null,null,null,null,null,null,null,null,null,null,null,null,null,null,null,null,null,null,null,null,null,null,null,"Mf.:"]
[]
[]
[]
[null,null,null,null,null,null,"Staffelleiter (3er)",null,null,null,null,null,null,null,null,null,null,null,null,null,null,null,null,null,":",null,null,null,null,null,null,null,null,null,null,null,null,null,null,null,null,null,null,null,null,null,null,null,"Tel.-Nr.:",null,null,null,null,null,null,null,null,null,null,null,null,null,null,null,null,null,null,null,null,null,null,null,null,"Mobil:",null,null,null,null,null,null,null,null,null,null,null,null,null,null,null,null,null,null,null,null,null,null,"Email:"]
[null,null,null,null,null,null,"Mannschaftsführer",null,null,null,null,null,null,null,null,null,null,null,null,null,null,null,null,null,":",null,null,null,null,null,null,null,null,null,null,null,null,null,null,null,null,null,null,null,null,null,null,null,"Tel.-Nr.:",null,null,null,null,null,null,null,null,null,null,null,null,null,null,null,null,null,null,null,null,null,null,null,null,"Mobil:",null,null,null,null,null,null,null,null,null,null,null,null,null,null,null,null,null,null,null,null,null,null,"Email:"]
["creadet by Gerhard Nidetzky"]

{"sheet":"Spst.4g3","index":3,"n_rows":8,"n_cols":83,"rows_kept":8,"cut":false,"hidden":false,"merged":[[28,10,30,91],[2,38,3,41],[2,82,3,91],[4,10,27,14],[4,15,6,48],[4,49,6,52],[4,53,6,86],[4,87,27,91],[7,15,27,47],[7,48,27,53],[7,54,27,86],[0,42,3,50],[0,51,3,52],[0,53,3,61],[0,62,3,81],[0,82,1,91],[2,10,3,12],[2,13,3,21],[2,22,3,24],[2,25,3,34],[2,35,3,37],[0,38,1,41],[0,10,1,12],[0,13,1,21],[0,22,1,24],[0,25,1,34],[0,35,1,37]]}
[null,null,null,null,null,null,null,null,null,null,{"$f":"'4g3'!G4","v":0},null,null," Damen",null,null,null,null,null,null,null,null,{"$f":"'4g3'!Y4","v":0},null,null," Mädchen",null,null,null,null,null,null,null,null,null,{"$f":"'4g3'!CX4","v":0},null,null,"VR",null,null,null,{"$f":"'4g3'!DR4","v":"2018-02-11"},null,null,null,null,null,null,null,null,"/",null,{"$f":"'4g3'!EF4","v":"2019-02-11"},null,null,null,null,null,null,null,null,{"$f":"'4g3'!CP2","v":"Bezirks-"},null,null,null,null,null,null,null,null,null,null,null,null,null,null,null,null,null,null,null,"Bereich"]
[]
[null,null,null,null,null,null,null,null,null,null,{"$f":"'4g3'!G6","v":0},null,null," Herren",null,null,null,null,null,null,null,null,{"$f":"'4g3'!Y6","v":0},null,null," Jungen",null,null,null,null,null,null,null,null,null,{"$f":"'4g3'!CX6","v":0},null,null,"RR",null,null,null,null,null,null,null,null,null,null,null,null,null,null,null,null,null,null,null,null,null,null,null,null,null,null,null,null,null,null,null,null,null,null,null,null,null,null,null,null,null,null,null,{"$f":"'4g3'!AU5","v":0}]
[]
[null,null,null,null,null,null,null,null,null,null,null,null,null,null,null,{"$f":"'4g3'!G7","v":0},null,null,null,null,null,null,null,null,null,null,null,null,null,null,null,null,null,null,null,null,null,null,null,null,null,null,null,null,null,null,null,null,null,":",null,null,null,{"$f":"'4g3'!BU7","v":0}]
[]
[]
[null,null,null,null,null,null,null,null,null,null,null,null,null,null,null,{"$f":"'4g3'!ER31","v":0},null,null,null,null,null,null,null,null,null,null,null,null,null,null,null,null,null,null,null,null,null,null,null,null,null,null,null,null,null,null,null,null,":",null,null,null,null,null,{"$f":"'4g3'!ES31","v":0}]

{"sheet":"3g4","index":4,"n_rows":60,"n_cols":149,"rows_kept":60,"cut":false,"hidden":false,"merged":[[3,28,3,41],[3,132,5,134],[3,135,5,145],[4,6,4,41],[4,46,5,76],[4,79,5,94],[4,101,4,120],[5,24,5,27],[5,28,5,41],[3,46,3,76],[3,77,5,78],[3,79,3,94],[3,101,3,104],[3,106,3,120],[5,6,5,9],[5,10,5,23],[0,149,59,152],[1,6,1,18],[1,19,1,46],[1,47,1,50],[1,51,1,86],[1,87,1,90],[1,91,1,92],[1,93,1,134],[1,135,1,145],[2,6,2,41],[2,42,5,45],[2,46,2,94],[2,95,5,100],[2,101,2,145],[3,6,3,9],[3,10,3,23],[3,24,3,27],[3,121,5,131],[5,101,5,104],[5,106,5,120],[6,139,6,145],[7,6,7,45],[7,46,7,53],[7,54,7,60],[7,61,8,71],[7,72,7,79],[7,80,7,86],[7,87,7,126],[7,130,7,145],[8,6,8,45],[6,6,6,60],[6,61,6,71],[6,72,6,126],[6,127,7,129],[6,130,6,136],[6,137,6,138],[8,46,8,60],[8,72,8,86],[8,87,8,145],[9,6,9,145],[10,6,10,13],[10,14,10,66],[10,67,10,74],[10,75,15,76],[10,77,10,84],[10,85,10,137],[10,138,10,145],[11,6,13,9],[11,10,11,13],[11,14,11,66],[11,67,11,74],[11,77,14,80],[11,81,11,84],[11,85,11,137],[11,138,11,145],[12,10,12,13],[12,14,12,66],[12,67,12,74],[12,81,12,84],[12,85,12,137],[12,138,12,145],[13,10,13,13],[13,14,13,66],[13,67,13,74],[13,81,13,84],[13,85,13,137],[15,77,15,80],[15,81,15,84],[15,85,15,113],[15,114,15,116],[15,117,15,145],[16,6,16,145],[13,138,13,145],[14,6,14,74],[14,81,14,84],[14,85,14,137],[14,138,14,145],[15,6,15,9],[15,10,15,13],[15,14,15,42],[15,43,15,45],[15,46,15,74],[17,108,17,117],[17,118,17,127],[17,128,17,137],[17,138,17,145],[18,6,18,15],[18,16,19,16],[18,17,18,45],[18,46,19,46],[18,47,19,47],[18,48,18,76],[17,6,17,15],[17,16,17,46],[17,47,17,77],[17,78,17,87],[17,88,17,97],[17,98,17,107],[20,6,20,8],[20,9,20,15],[20,16,20,46],[20,47,20,77],[20,78,20,82],[20,83,20,87],[18,133,19,137],[18,138,19,141],[18,142,19,145],[19,6,19,15],[19,17,19,45],[19,48,19,76],[18,103,19,107],[18,108,19,112],[18,113,19,117],[18,118,19,122],[18,123,19,127],[18,128,19,132],[18,77,19,77],[18,78,19,82],[18,83,19,87],[18,88,19,92],[18,93,19,97],[18,98,19,102],[20,118,20,122],[20,123,20,127],[20,128,20,132],[20,133,20,137],[20,138,20,141],[20,142,20,145],[20,88,20,92],[20,93,20,97],[20,98,20,102],[20,103,20,107],[20,108,20,112],[20,113,20,117],[21,133,21,137],[21,138,21,141],[21,142,21,145],[21,88,21,92],[21,93,21,97],[21,98,21,102],[21,103,21,107],[21,108,21,112],[21,113,21,117],[22,6,22,8],[22,9,22,15],[22,16,22,46],[22,47,22,77],[22,78,22,82],[22,83,22,87],[21,118,21,122],[21,123,21,127],[21,128,21,132],[21,6,21,8],[21,9,21,15],[21,16,21,46],[21,47,21,77],[21,78,21,82],[21,83,21,87],[22,118,22,122],[22,123,22,127],[22,128,22,132],[22,133,22,137],[22,138,22,141],[22,142,22,145],[22,88,22,92],[22,93,22,97],[22,98,22,102],[22,103,22,107],[22,108,22,112],[22,113,22,117],[23,133,23,137],[23,138,23,141],[23,142,23,145],[23,88,23,92],[23,93,23,97],[23,98,23,102],[23,103,23,107],[23,108,23,112],[23,113,23,117],[24,6,24,8],[24,9,24,15],[24,16,24,46],[24,47,24,77],[24,78,24,82],[24,83,24,87],[23,118,23,122],[23,123,23,127],[23,128,23,132],[23,6,23,8],[23,9,23,15],[23,16,23,46],[23,47,23,77],[23,78,23,82],[23,83,23,87],[24,118,24,122],[24,123,24,127],[24,128,24,132],[24,133,24,137],[24,138,24,141],[24,142,24,145],[24,88,24,92],[24,93,24,97],[24,98,24,102],[24,103,24,107],[24,108,24,112],[24,113,24,117],[25,133,25,137],[25,138,25,141],[25,142,25,145],[25,88,25,92],[25,93,25,97],[25,98,25,102],[25,103,25,107],[25,108,25,112],[25,113,25,117],[26,6,26,8],[26,9,26,15],[26,16,26,46],[26,47,26,77],[26,78,26,82],[26,83,26,87],[25,118,25,122],[25,123,25,127],[25,128,25,132],[25,6,25,8],[25,9,25,15],[25,16,25,46],[25,47,25,77],[25,78,25,82],[25,83,25,87],[26,118,26,122],[26,123,26,127],[26,128,26,132],[26,133,26,137],[26,138,26,141],[26,142,26,145],[26,88,26,92],[26,93,26,97],[26,98,26,102],[26,103,26,107],[26,108,26,112],[26,113,26,117],[27,133,27,137],[27,138,27,141],[27,142,27,145],[27,88,27,92],[27,93,27,97],[27,98,27,102],[27,103,27,107],[27,108,27,112],[27,113,27,117],[28,6,28,8],[28,9,28,15],[28,16,28,46],[28,47,28,77],[28,78,28,82],[28,83,28,87],[27,118,27,122],[27,123,27,127],[27,128,27,132],[27,6,27,8],[27,9,27,15],[27,16,27,46],[27,47,27,77],[27,78,27,82],[27,83,27,87],[28,118,28,122],[28,123,28,127],[28,128,28,132],[28,133,28,137],[28,138,28,141],[28,142,28,145],[28,88,28,92],[28,93,28,97],[28,98,28,102],[28,103,28,107],[28,108,28,112],[28,113,28,117],[30,66,30,87],[30,88,30,93],[30,94,30,95],[30,96,30,101],[30,102,30,127],[31,6,31,145],[29,6,29,127],[29,128,30,132],[29,133,30,137],[29,138,30,141],[29,142,30,145],[30,6,30,19],[30,20,30,30],[30,31,30,40],[30,41,30,54],[30,55,30,65],[32,6,32,145],[33,6,33,16],[33,17,33,18],[33,19,33,55],[33,56,33,62],[33,63,33,67],[33,68,33,69],[33,70,33,74],[33,75,33,86],[33,87,33,93],[35,124,38,145],[39,67,52,71],[39,72,52,104],[39,105,52,112],[39,113,52,145],[33,130,33,131],[33,132,33,137],[33,138,33,145],[34,6,34,145],[35,6,39,14],[35,15,39,16],[35,17,39,40],[35,41,55,42],[35,43,46,64],[35,65,55,66],[33,94,33,98],[33,99,33,100],[33,101,33,105],[33,106,33,116],[33,117,33,123],[33,124,33,129],[40,6,44,14],[40,15,44,16],[40,17,44,40],[45,6,45,36],[45,37,55,40],[46,6,49,9],[46,10,49,10],[46,11,49,36],[35,67,38,88],[53,67,55,71],[53,72,55,104],[35,89,38,123],[55,44,55,63],[47,43,49,64],[50,6,50,36],[50,43,51,64],[51,6,54,9],[51,10,54,10],[51,11,54,36],[52,43,55,43],[52,44,54,63],[52,64,55,64],[58,96,58,102],[58,103,58,145],[59,0,59,145],[58,6,58,23],[58,25,58,47],[58,48,58,55],[58,56,58,72],[58,73,58,78],[58,79,58,95],[0,0,58,5],[0,6,0,145],[56,6,56,145],[57,6,57,23],[57,25,57,47],[57,48,57,55],[57,56,57,72],[57,73,57,78],[57,79,57,95],[57,96,57,102],[57,103,57,145],[53,105,55,107],[53,108,55,112],[53,113,55,145],[55,6,55,36]]}
[null,null,null,null,null,null,"\"Braunschweiger System\"   -   3 gegen 4"]
[null,null,null,null,null,null,null,null,null,null,null,null,null,null,null,null,null,null,null,"TT-Berzirk 6",null,null,null,null,null,null,null,null,null,null,null,null,null,null,null,null,null,null,null,null,null,null,null,null,null,null,null,"-",null,null,null,"Oberfranken Ost",null,null,null,null,null,null,null,null,null,null,null,null,null,null,null,null,null,null,null,null,null,null,null,null,null,null,null,null,null,null,null,null,null,null,null,"-",null,null,null,null,null,{"$f":"'4g4'!CP2","v":"Bezirks-"}]
[]
[null,null,null,null,null,null,null,null,null,null," Damen",null,null,null,null,null,null,null,null,null,null,null,null,null,null,null,null,null," Mädchen",null,null,null,null,null,null,null,null,null,null,null,null,null,null,null,null,null,"Bereich",null,null,null,null,null,null,null,null,null,null,null,null,null,null,null,null,null,null,null,null,null,null,null,null,null,null,null,null,null,null,null,null,"Klasse/Gruppe",null,null,null,null,null,null,null,null,null,null,null,null,null,null,null,null,null,null,null,null,null,null,null,null,null,null,"Vorrunde",null,null,null,null,null,null,null,null,null,null,null,null,null,null,{"$f":"TODAY()-183","v":"2018-02-11"},null,null,null,null,null,null,null,null,null,null,"/",null,null,{"$f":"DR4+365","v":"2019-02-11"}]
[]
[null,null,null,null,null,null,null,null,null,null," Herren",null,null,null,null,null,null,null,null,null,null,null,null,null,null,null,null,null," Jungen",null,null,null,null,null,null,null,null,null,null,null,null,null,null,null,null,null,null,null,null,null,null,null,null,null,null,null,null,null,null,null,null,null,null,null,null,null,null,null,null,null,null,null,null,null,null,null,null,null,null,null,null,null,null,null,null,null,null,null,null,null,null,null,null,null,null,null,null,null,null,null,null,null,null,null,null,null,"Rückrunde"]
[null,null,null,null,null,null,{"$f":"'4g4'!G7","v":0},null,null,null,null,null,null,null,null,null,null,null,null,null,null,null,null,null,null,null,null,null,null,null,null,null,null,null,null,null,null,null,null,null,null,null,null,null,null,null,null,null,null,null,null,null,null,null,null,null,null,null,null,null,null,"gegen",null,null,null,null,null,null,null,null,null,null,{"$f":"'4g4'!BU7","v":0},null,null,null,null,null,null,null,null,null,null,null,null,null,null,null,null,null,null,null,null,null,null,null,null,null,null,null,null,null,null,null,null,null,null,null,null,null,null,null,null,null,null,null,null,null,null,null,null,null,null,null,null,null,null,null,null,null,{"$f":"EI30","v":""},null,null,null,null,null,null,":",null,{"$f":"EM30","v":""},null,null,null,null,null,null,{"$f":"IF(EI30=EM30,\"\",IF(EI30>EM30,G7,BU7))","v":""}]
[null,null,null,null,null,null,"Heimmannschaft  ( A )",null,null,null,null,null,null,null,null,null,null,null,null,null,null,null,null,null,null,null,null,null,null,null,null,null,null,null,null,null,null,null,null,null,null,null,null,null,null,null,206,null,null,null,null,null,null,null,{"$f":"'4g4'!BC8","v":0},null,null,null,null,null,null,null,null,null,null,null,null,null,null,null,null,null,{"$f":"AU8","v":206},null,null,null,null,null,null,null,0,null,null,null,null,null,null,"Gastmannschaft  ( B )",null,null,null,null,null,null,null,null,null,null,null,null,null,null,null,null,null,null,null,null,null,null,null,null,null,null,null,null,null,null,null,null,null,null,null,null,null,null,null,null,null,null,"Endergebnis",null,null,null,null,null,null,null,null,null,null,null,null,null,null,null,{"$f":"IF(BL34=\"\",\"\",IF(EI30=EM30,EQ14))","v":""}]
[null,null,null,null,null,null,null,null,null,null,null,null,null,null,null,null,null,null,null,null,null,null,null,null,null,null,null,null,null,null,null,null,null,null,null,null,null,null,null,null,null,null,null,null,null,null,"Vereins-Nr.",null,null,null,null,null,null,null,null,null,null,null,null,null,null,null,null,null,null,null,null,null,null,null,null,null,"Vereins-Nr."]
[null,null,null,null,null,null,"Mannschaftsaufstellung"]
[null,null,null,null,null,null,"Rang",null,null,null,null,null,null,null,"Heimverein ( Mannschaft A )",null,null,null,null,null,null,null,null,null,null,null,null,null,null,null,null,null,null,null,null,null,null,null,null,null,null,null,null,null,null,null,null,null,null,null,null,null,null,null,null,null,null,null,null,null,null,null,null,null,null,null,null,"Pos.",null,null,null,null,null,null,null,null,null,"Rang",null,null,null,null,null,null,null,"Gastverein ( Mannschaft B )",null,null,null,null,null,null,null,null,null,null,null,null,null,null,null,null,null,null,null,null,null,null,null,null,null,null,null,null,null,null,null,null,null,null,null,null,null,null,null,null,null,null,null,null,null,null,null,null,null,null,null,null,"Pos."]
[null,null,null,null,null,null,"E I N Z E L",null,null,null,"A1",null,null,null,null,null,null,null,null,null,null,null,null,null,null,null,null,null,null,null,null,null,null,null,null,null,null,null,null,null,null,null,null,null,null,null,null,null,null,null,null,null,null,null,null,null,null,null,null,null,null,null,null,null,null,null,null,null,null,null,null,null,null,null,null,null,null,"E I N Z E L",null,null,null,"B1",null,null,null,null,null,null,null,null,null,null,null,null,null,null,null,null,null,null,null,null,null,null,null,null,null,null,null,null,null,null,null,null,null,null,null,null,null,null,null,null,null,null,null,null,null,null,null,null,null,null,null,null,null,null,null,null,null,null,null,null,null,null,null,null,{"$f":"IF(EI30<>EM30,EQ7,EQ8)","v":""}]
[null,null,null,null,null,null,null,null,null,null,"A2",null,null,null,null,null,null,null,null,null,null,null,null,null,null,null,null,null,null,null,null,null,null,null,null,null,null,null,null,null,null,null,null,null,null,null,null,null,null,null,null,null,null,null,null,null,null,null,null,null,null,null,null,null,null,null,null,null,null,null,null,null,null,null,null,null,null,null,null,null,null,"B2",null,null,null,null,null,null,null,null,null,null,null,null,null,null,null,null,null,null,null,null,null,null,null,null,null,null,null,null,null,null,null,null,null,null,null,null,null,null,null,null,null,null,null,null,null,null,null,null,null,null,null,null,null,null,null,null,null,null,null,null,null,null,null,null,"Sieger"]
[null,null,null,null,null,null,null,null,null,null,"A3",null,null,null,null,null,null,null,null,null,null,null,null,null,null,null,null,null,null,null,null,null,null,null,null,null,null,null,null,null,null,null,null,null,null,null,null,null,null,null,null,null,null,null,null,null,null,null,null,null,null,null,null,null,null,null,null,null,null,null,null,null,null,null,null,null,null,null,null,null,null,"B3",null,null,null,null,null,null,null,null,null,null,null,null,null,null,null,null,null,null,null,null,null,null,null,null,null,null,null,null,null,null,null,null,null,null,null,null,null,null,null,null,null,null,null,null,null,null,null,null,null,null,null,null,null,null,null,null,null,null,null,null,null,null,null,null,"Unentschieden"]
[null,null,null,null,null,null,null,null,null,null,null,null,null,null,null,null,null,null,null,null,null,null,null,null,null,null,null,null,null,null,null,null,null,null,null,null,null,null,null,null,null,null,null,null,null,null,null,null,null,null,null,null,null,null,null,null,null,null,null,null,null,null,null,null,null,null,null,null,null,null,null,null,null,null,null,null,null,null,null,null,null,"B4"]
[null,null,null,null,null,null,"D",null,null,null,"A1",null,null,null,null,null,null,null,null,null,null,null,null,null,null,null,null,null,null,null,null,null,null,null,null,null,null,null,null,null,null,null,null,"/",null,null,null,null,null,null,null,null,null,null,null,null,null,null,null,null,null,null,null,null,null,null,null,null,null,null,null,null,null,null,null,null,null,"D",null,null,null,"B1",null,null,null,null,null,null,null,null,null,null,null,null,null,null,null,null,null,null,null,null,null,null,null,null,null,null,null,null,null,null,null,null,"/"]
[]
[null,null,null,null,null,null,"Spielfolge",null,null,null,null,null,null,null,null,null,"Heimverein ( Mannschaft A )",null,null,null,null,null,null,null,null,null,null,null,null,null,null,null,null,null,null,null,null,null,null,null,null,null,null,null,null,null,null,"Gastverein ( Mannschaft B )",null,null,null,null,null,null,null,null,null,null,null,null,null,null,null,null,null,null,null,null,null,null,null,null,null,null,null,null,null,null,"1. Satz",null,null,null,null,null,null,null,null,null,"2. Satz",null,null,null,null,null,null,null,null,null,"3. Satz",null,null,null,null,null,null,null,null,null,"4. Satz",null,null,null,null,null,null,null,null,null,"5. Satz",null,null,null,null,null,null,null,null,null,"Sätze",null,null,null,null,null,null,null,null,null,"Spiele",null,null,null,null,null,null,null,{"$f":"G7","v":0}]
[null,null,null,null,null,null,"Doppel",null,null,null,null,null,null,null,null,null,null,{"$f":"O16","v":0},null,null,null,null,null,null,null,null,null,null,null,null,null,null,null,null,null,null,null,null,null,null,null,null,null,null,null,null,null,null,{"$f":"CH16","v":0},null,null,null,null,null,null,null,null,null,null,null,null,null,null,null,null,null,null,null,null,null,null,null,null,null,null,null,null,null,null,null,null,null,null,null,null,null,null,null,null,null,null,null,null,null,null,null,null,null,null,null,null,null,null,null,null,null,null,null,null,null,null,null,null,null,null,null,null,null,null,null,null,null,null,null,null,null,null,null,{"$f":"IF(CA19=\"\",\"\",IF(CA19>CF19,1,0)+IF(CK19>CP19,1,0)+IF(CU19>CZ19,1,0)+IF(DE19>DJ19,1,0)+IF(DO19>DT19,1,0))","v":""},null,null,null,null,{"$f":"IF(CA19=\"\",\"\",IF(CA19<CF19,1,0)+IF(CK19<CP19,1,0)+IF(CU19<CZ19,1,0)+IF(DE19<DJ19,1,0)+IF(DO19<DT19,1,0))","v":""},null,null,null,null,{"$f":"IF(DY19=\"\",\"\",IF(DY19>ED19,1,0))","v":""},null,null,null,{"$f":"IF(DY19=\"\",\"\",IF(DY19<ED19,1,0))","v":""},null,null,null,{"$f":"SUM(CA19:CE29)","v":0},{"$f":"IF(DY19=3,1,0)","v":0},{"$f":"IF(ED19=3,1,0)","v":0}]
[null,null,null,null,null,null,"A1 - B1",null,null,null,null,null,null,null,null,null,null,{"$f":"AU16","v":0},null,null,null,null,null,null,null,null,null,null,null,null,null,null,null,null,null,null,null,null,null,null,null,null,null,null,null,null,null,null,{"$f":"DN16","v":0},null,null,null,null,null,null,null,null,null,null,null,null,null,null,null,null,null,null,null,null,null,null,null,null,null,null,null,null,null,null,null,null,null,null,null,null,null,null,null,null,null,null,null,null,null,null,null,null,null,null,null,null,null,null,null,null,null,null,null,null,null,null,null,null,null,null,null,null,null,null,null,null,null,null,null,null,null,null,null,null,null,null,null,null,null,null,null,null,null,null,null,null,null,null,null,null,null,{"$f":"SUM(CK19:CO29)","v":0}]
[null,null,null,null,null,null,"E",null,null,"A3-B3",null,null,null,null,null,null,{"$f":"O14","v":0},null,null,null,null,null,null,null,null,null,null,null,null,null,null,null,null,null,null,null,null,null,null,null,null,null,null,null,null,null,null,{"$f":"CH14","v":0},null,null,null,null,null,null,null,null,null,null,null,null,null,null,null,null,null,null,null,null,null,null,null,null,null,null,null,null,null,null,null,null,null,null,null,null,null,null,null,null,null,null,null,null,null,null,null,null,null,null,null,null,null,null,null,null,null,null,null,null,null,null,null,null,null,null,null,null,null,null,null,null,null,null,null,null,null,null,null,null,{"$f":"IF(CA21=\"\",\"\",IF(CA21>CF21,1,0)+IF(CK21>CP21,1,0)+IF(CU21>CZ21,1,0)+IF(DE21>DJ21,1,0)+IF(DO21>DT21,1,0))","v":""},null,null,null,null,{"$f":"IF(CA21=\"\",\"\",IF(CA21<CF21,1,0)+IF(CK21<CP21,1,0)+IF(CU21<CZ21,1,0)+IF(DE21<DJ21,1,0)+IF(DO21<DT21,1,0))","v":""},null,null,null,null,{"$f":"IF(DY21=\"\",\"\",IF(DY21>ED21,1,0))","v":""},null,null,null,{"$f":"IF(DY21=\"\",\"\",IF(DY21<ED21,1,0))","v":""},null,null,null,{"$f":"SUM(CU19:CY29)","v":0},{"$f":"IF(DY21=3,1,0)","v":0},{"$f":"IF(ED21=3,1,0)","v":0}]
[null,null,null,null,null,null,"E",null,null,"A2-B1",null,null,null,null,null,null,{"$f":"O13","v":0},null,null,null,null,null,null,null,null,null,null,null,null,null,null,null,null,null,null,null,null,null,null,null,null,null,null,null,null,null,null,{"$f":"CH12","v":0},null,null,null,null,null,null,null,null,null,null,null,null,null,null,null,null,null,null,null,null,null,null,null,null,null,null,null,null,null,null,null,null,null,null,null,null,null,null,null,null,null,null,null,null,null,null,null,null,null,null,null,null,null,null,null,null,null,null,null,null,null,null,null,null,null,null,null,null,null,null,null,null,null,null,null,null,null,null,null,null,"",null,null,null,null,"",null,null,null,null,"",null,null,null,"",null,null,null,{"$f":"SUM(DE19:DI29)","v":0},0,0]
[null,null,null,null,null,null,"E",null,null,"A1-B2",null,null,null,null,null,null,{"$f":"O12","v":0},null,null,null,null,null,null,null,null,null,null,null,null,null,null,null,null,null,null,null,null,null,null,null,null,null,null,null,null,null,null,{"$f":"CH13","v":0},null,null,null,null,null,null,null,null,null,null,null,null,null,null,null,null,null,null,null,null,null,null,null,null,null,null,null,null,null,null,null,null,null,null,null,null,null,null,null,null,null,null,null,null,null,null,null,null,null,null,null,null,null,null,null,null,null,null,null,null,null,null,null,null,null,null,null,null,null,null,null,null,null,null,null,null,null,null,null,null,"",null,null,null,null,"",null,null,null,null,"",null,null,null,"",null,null,null,{"$f":"SUM(DO19:DS29)","v":0},0,0]
[null,null,null,null,null,null,"E",null,null,"A2-B4",null,null,null,null,null,null,{"$f":"O13","v":0},null,null,null,null,null,null,null,null,null,null,null,null,null,null,null,null,null,null,null,null,null,null,null,null,null,null,null,null,null,null,{"$f":"CH15","v":0},null,null,null,null,null,null,null,null,null,null,null,null,null,null,null,null,null,null,null,null,null,null,null,null,null,null,null,null,null,null,null,null,null,null,null,null,null,null,null,null,null,null,null,null,null,null,null,null,null,null,null,null,null,null,null,null,null,null,null,null,null,null,null,null,null,null,null,null,null,null,null,null,null,null,null,null,null,null,null,null,"",null,null,null,null,"",null,null,null,null,"",null,null,null,"",null,null,null,{"$f":"SUM(EQ19:EQ23)","v":0},0,0]
[null,null,null,null,null,null,"E",null,null,"A1-B1",null,null,null,null,null,null,{"$f":"O12","v":0},null,null,null,null,null,null,null,null,null,null,null,null,null,null,null,null,null,null,null,null,null,null,null,null,null,null,null,null,null,null,{"$f":"CH12","v":0},null,null,null,null,null,null,null,null,null,null,null,null,null,null,null,null,null,null,null,null,null,null,null,null,null,null,null,null,null,null,null,null,null,null,null,null,null,null,null,null,null,null,null,null,null,null,null,null,null,null,null,null,null,null,null,null,null,null,null,null,null,null,null,null,null,null,null,null,null,null,null,null,null,null,null,null,null,null,null,null,"",null,null,null,null,"",null,null,null,null,"",null,null,null,"",null,null,null,{"$f":"BU7","v":0},0,0]
[null,null,null,null,null,null,"E",null,null,"A3-B4",null,null,null,null,null,null,{"$f":"O14","v":0},null,null,null,null,null,null,null,null,null,null,null,null,null,null,null,null,null,null,null,null,null,null,null,null,null,null,null,null,null,null,{"$f":"CH15","v":0},null,null,null,null,null,null,null,null,null,null,null,null,null,null,null,null,null,null,null,null,null,null,null,null,null,null,null,null,null,null,null,null,null,null,null,null,null,null,null,null,null,null,null,null,null,null,null,null,null,null,null,null,null,null,null,null,null,null,null,null,null,null,null,null,null,null,null,null,null,null,null,null,null,null,null,null,null,null,null,null,"",null,null,null,null,"",null,null,null,null,"",null,null,null,"",null,null,null,{"$f":"SUM(CF19:CJ29)","v":0},0,0]
[null,null,null,null,null,null,"E",null,null,"A2-B2",null,null,null,null,null,null,{"$f":"O13","v":0},null,null,null,null,null,null,null,null,null,null,null,null,null,null,null,null,null,null,null,null,null,null,null,null,null,null,null,null,null,null,{"$f":"CH13","v":0},null,null,null,null,null,null,null,null,null,null,null,null,null,null,null,null,null,null,null,null,null,null,null,null,null,null,null,null,null,null,null,null,null,null,null,null,null,null,null,null,null,null,null,null,null,null,null,null,null,null,null,null,null,null,null,null,null,null,null,null,null,null,null,null,null,null,null,null,null,null,null,null,null,null,null,null,null,null,null,null,"",null,null,null,null,"",null,null,null,null,"",null,null,null,"",null,null,null,{"$f":"SUM(CP19:CT29)","v":0},0,0]
[null,null,null,null,null,null,"E",null,null,"A3-B1",null,null,null,null,null,null,{"$f":"O14","v":0},null,null,null,null,null,null,null,null,null,null,null,null,null,null,null,null,null,null,null,null,null,null,null,null,null,null,null,null,null,null,{"$f":"CH12","v":0},null,null,null,null,null,null,null,null,null,null,null,null,null,null,null,null,null,null,null,null,null,null,null,null,null,null,null,null,null,null,null,null,null,null,null,null,null,null,null,null,null,null,null,null,null,null,null,null,null,null,null,null,null,null,null,null,null,null,null,null,null,null,null,null,null,null,null,null,null,null,null,null,null,null,null,null,null,null,null,null,"",null,null,null,null,"",null,null,null,null,"",null,null,null,"",null,null,null,{"$f":"SUM(CZ19:DD29)","v":0},0,0]
[null,null,null,null,null,null,"E",null,null,"A1-B3",null,null,null,null,null,null,{"$f":"O12","v":0},null,null,null,null,null,null,null,null,null,null,null,null,null,null,null,null,null,null,null,null,null,null,null,null,null,null,null,null,null,null,{"$f":"CH14","v":0},null,null,null,null,null,null,null,null,null,null,null,null,null,null,null,null,null,null,null,null,null,null,null,null,null,null,null,null,null,null,null,null,null,null,null,null,null,null,null,null,null,null,null,null,null,null,null,null,null,null,null,null,null,null,null,null,null,null,null,null,null,null,null,null,null,null,null,null,null,null,null,null,null,null,null,null,null,null,null,null,"",null,null,null,null,"",null,null,null,null,"",null,null,null,"",null,null,null,{"$f":"SUM(DJ19:DN29)","v":0},0,0]
[null,null,null,null,null,null,null,null,null,null,null,null,null,null,null,null,null,null,null,null,null,null,null,null,null,null,null,null,null,null,null,null,null,null,null,null,null,null,null,null,null,null,null,null,null,null,null,null,null,null,null,null,null,null,null,null,null,null,null,null,null,null,null,null,null,null,null,null,null,null,null,null,null,null,null,null,null,null,null,null,null,null,null,null,null,null,null,null,null,null,null,null,null,null,null,null,null,null,null,null,null,null,null,null,null,null,null,null,null,null,null,null,null,null,null,null,null,null,null,null,null,null,null,null,null,null,null,null,{"$f":"IF(DY19=\"\",\"\",SUM(DY19:EC29))","v":""},null,null,null,null,{"$f":"IF(ED19=\"\",\"\",SUM(ED19:EH29))","v":""},null,null,null,null,{"$f":"IF(EI19=\"\",\"\",SUM(EI19:EL29))","v":""},null,null,null,{"$f":"IF(EM19=\"\",\"\",SUM(EM19:EP29))","v":""},null,null,null,{"$f":"SUM(DT19:DX29)","v":0}]
[null,null,null,null,null,null,"Spielbeginn :",null,null,null,null,null,null,null,null,null,null,null,null,null,null,null,null,null,null,null,null,null,null,null,null,"Uhr",null,null,null,null,null,null,null,null,null,"Spielende :",null,null,null,null,null,null,null,null,null,null,null,null,null,null,null,null,null,null,null,null,null,null,null,null,"Uhr",null,null,null,null,null,null,null,null,null,null,null,null,null,null,null,null,null,null,null,null,null,{"$f":"EQ24","v":0},null,null,null,null,null,":",null,{"$f":"EQ31","v":0},null,null,null,null,null," Bälle",null,null,null,null,null,null,null,null,null,null,null,null,null,null,null,null,null,null,null,null,null,null,null,null,null,null,null,null,null,null,null,null,null,null,null,null,null,null,null,null,null,null,null,{"$f":"SUM(EQ26:EQ30)","v":0},{"$f":"SUM(ER19:ER29)","v":0},{"$f":"SUM(ES19:ES29)","v":0}]
[]
[]
[null,null,null,null,null,null,{"$f":"IF(BL34=BS34,\"\",IF(BL34>BS34,EQ13,EQ15))","v":""},null,null,null,null,null,null,null,null,null,null,":",null,{"$f":"EQ12","v":""},null,null,null,null,null,null,null,null,null,null,null,null,null,null,null,null,null,null,null,null,null,null,null,null,null,null,null,null,null,null,null,null,null,null,null,null,"mit :",null,null,null,null,null,null,{"$f":"IF(EI30>EM30,EI30,EM30)","v":""},null,null,null,null,":",null,{"$f":"IF(EI30<EM30,EI30,EM30)","v":""},null,null,null,null,"Spielen",null,null,null,null,null,null,null,null,null,null,null,"und",null,null,null,null,null,null,{"$f":"IF(EI30>=EM30,DY30,ED30)","v":""},null,null,null,null,":",null,{"$f":"IF(EI30<EM30,DY30,ED30)","v":""},null,null,null,null,"Sätzen",null,null,null,null,null,null,null,null,null,null,"und",null,null,null,null,null,null,{"$f":"IF(EI30>=EM30,EQ24,EQ31)","v":0},null,null,null,null,null,":",null,{"$f":"IF(EI30<EM30,EQ24,EQ31)","v":0},null,null,null,null,null," Bälle"]
[]
[null,null,null,null,null,null,"Spielort",null,null,null,null,null,null,null,null,":",null,{"$f":"'4g4'!R38","v":0},null,null,null,null,null,null,null,null,null,null,null,null,null,null,null,null,null,null,null,null,null,null,null,null,null,null,null,null,null,null,null,null,null,null,null,null,null,null,null,null,null,null,null,null,null,null,null,null,null,{"$f":"G7","v":0},null,null,null,null,null,null,null,null,null,null,null,null,null,null,null,null,null,null,null,null,null,"Unterschriften Mannschaftsführer",null,null,null,null,null,null,null,null,null,null,null,null,null,null,null,null,null,null,null,null,null,null,null,null,null,null,null,null,null,null,null,null,null,null,{"$f":"BU7","v":0}]
[]
[]
[]
[]
[null,null,null,null,null,null,"Datum",null,null,null,null,null,null,null,null,":",null,{"$f":"TODAY()","v":"2018-08-13"}]
[]
[]
[]
[]
[]
[null,null,null,null,null,null,null,null,null,null,null,"kein Protest"]
[null,null,null,null,null,null,null,null,null,null,null,null,null,null,null,null,null,null,null,null,null,null,null,null,null,null,null,null,null,null,null,null,null,null,null,null,null,null,null,null,null,null,null,{"$f":"T2","v":"TT-Berzirk 6"}]
[]
[]
[null,null,null,null,null,null,null,null,null,null,null,null,null,null,null,null,null,null,null,null,null,null,null,null,null,null,null,null,null,null,null,null,null,null,null,null,null,null,null,null,null,null,null,{"$f":"AZ2","v":"Oberfranken Ost"}]
[null,null,null,null,null,null,null,null,null,null,null,"Protest - siehe Anlage"]
[null,null,null,null,null,null,null,null,null,null,null,null,null,null,null,null,null,null,null,null,null,null,null,null,null,null,null,null,null,null,null,null,null,null,null,null,null,null,null,null,null,null,null,null,{"$f":"CP2","v":"Bezirks-"}]
[null,null,null,null,null,null,null,null,null,null,null,null,null,null,null,null,null,null,null,null,null,null,null,null,null,null,null,null,null,null,null,null,null,null,null,null,null,null,null,null,null,null,null,null,null,null,null,null,null,null,null,null,null,null,null,null,null,null,null,null,null,null,null,null,null,null,null,"Mf.:",null,null,null,null,null,null,null,null,null,null,null,null,null,null,null,null,null,null,null,null,null,null,null,null,null,null,null,null,null,null,null,null,null,null,null,null,null,null,null,null,"Mf.:"]
[]
[]
[]
[null,null,null,null,null,null," Staffelleiter",null,null,null,null,null,null,null,null,null,null,null,null,null,null,null,null,null,":",null,null,null,null,null,null,null,null,null,null,null,null,null,null,null,null,null,null,null,null,null,null,null,"Tel.-Nr.:",null,null,null,null,null,null,null,null,null,null,null,null,null,null,null,null,null,null,null,null,null,null,null,null,"Mobil:",null,null,null,null,null,null,null,null,null,null,null,null,null,null,null,null,null,null,null,null,null,null,"Email:"]
[null,null,null,null,null,null," Mannschaftsführer",null,null,null,null,null,null,null,null,null,null,null,null,null,null,null,null,null,":",null,null,null,null,null,null,null,null,null,null,null,null,null,null,null,null,null,null,null,null,null,null,null,"Tel.-Nr.:",null,null,null,null,null,null,null,null,null,null,null,null,null,null,null,null,null,null,null,null,null,null,null,null,"Mobil:",null,null,null,null,null,null,null,null,null,null,null,null,null,null,null,null,null,null,null,null,null,null,"Email:"]
["creadet by Gerhard Nidetzky"]

{"sheet":"Spst.3g4","index":5,"n_rows":8,"n_cols":83,"rows_kept":8,"cut":false,"hidden":false,"merged":[[0,38,1,41],[0,10,1,12],[0,13,1,21],[0,22,1,24],[0,25,1,34],[0,35,1,37],[2,10,3,12],[2,13,3,21],[2,22,3,24],[2,25,3,34],[2,35,3,37],[28,10,30,91],[2,38,3,41],[2,82,3,91],[4,10,27,14],[4,15,6,48],[4,49,6,52],[4,53,6,86],[4,87,27,91],[7,15,27,47],[7,48,27,53],[7,54,27,86],[0,42,3,50],[0,51,3,52],[0,53,3,61],[0,62,3,81],[0,82,1,91]]}
[null,null,null,null,null,null,null,null,null,null,{"$f":"'3g4'!G4","v":0},null,null," Damen",null,null,null,null,null,null,null,null,{"$f":"'3g4'!Y4","v":0},null,null," Mädchen",null,null,null,null,null,null,null,null,null,{"$f":"'3g4'!CX4","v":0},null,null,"VR",null,null,null,{"$f":"'3g4'!DR4","v":"2018-02-11"},null,null,null,null,null,null,null,null,"/",null,{"$f":"'3g4'!EF4","v":"2019-02-11"},null,null,null,null,null,null,null,null,{"$f":"'3g4'!CP2","v":"Bezirks-"},null,null,null,null,null,null,null,null,null,null,null,null,null,null,null,null,null,null,null,"Bereich"]
[]
[null,null,null,null,null,null,null,null,null,null,{"$f":"'3g4'!G6","v":0},null,null," Herren",null,null,null,null,null,null,null,null,{"$f":"'3g4'!Y6","v":0},null,null," Jungen",null,null,null,null,null,null,null,null,null,{"$f":"'3g4'!CX6","v":0},null,null,"RR",null,null,null,null,null,null,null,null,null,null,null,null,null,null,null,null,null,null,null,null,null,null,null,null,null,null,null,null,null,null,null,null,null,null,null,null,null,null,null,null,null,null,null,{"$f":"'3g4'!AU5","v":0}]
[]
[null,null,null,null,null,null,null,null,null,null,null,null,null,null,null,{"$f":"'3g4'!G7","v":0},null,null,null,null,null,null,null,null,null,null,null,null,null,null,null,null,null,null,null,null,null,null,null,null,null,null,null,null,null,null,null,null,null,":",null,null,null,{"$f":"'3g4'!BU7","v":0}]
[]
[]
[null,null,null,null,null,null,null,null,null,null,null,null,null,null,null,{"$f":"'3g4'!ER31","v":0},null,null,null,null,null,null,null,null,null,null,null,null,null,null,null,null,null,null,null,null,null,null,null,null,null,null,null,null,null,null,null,null,":",null,null,null,null,null,{"$f":"'3g4'!ES31","v":0}]

{"sheet":"3g3","index":6,"n_rows":59,"n_cols":148,"rows_kept":59,"cut":false,"hidden":false,"merged":[[57,95,57,101],[57,102,57,144],[58,0,59,144],[57,5,57,22],[57,24,57,46],[57,47,57,54],[57,55,57,71],[57,72,57,77],[57,78,57,94],[0,0,57,4],[0,5,0,144],[55,5,55,144],[56,5,56,22],[56,24,56,46],[56,47,56,54],[56,55,56,71],[56,72,56,77],[56,78,56,94],[56,95,56,101],[56,102,56,144],[52,104,54,106],[52,107,54,111],[52,112,54,144],[54,5,54,35],[44,5,44,35],[44,36,54,39],[45,5,48,8],[45,9,48,9],[45,10,48,35],[34,66,37,87],[52,66,54,70],[52,71,54,103],[34,88,37,122],[54,43,54,62],[46,42,48,63],[49,5,49,35],[49,42,50,63],[50,5,53,8],[50,9,53,9],[50,10,53,35],[51,42,54,42],[51,43,53,62],[51,63,54,63],[34,123,37,144],[38,66,51,70],[38,71,51,103],[38,104,51,111],[38,112,51,144],[32,129,32,130],[32,131,32,136],[32,137,32,144],[33,5,33,144],[34,5,38,13],[34,14,38,15],[34,16,38,39],[34,40,54,41],[34,42,45,63],[34,64,54,65],[32,93,32,97],[32,98,32,99],[32,100,32,104],[32,105,32,115],[32,116,32,122],[32,123,32,128],[39,5,43,13],[39,14,43,15],[39,16,43,39],[31,5,31,144],[32,5,32,15],[32,16,32,17],[32,18,32,54],[32,55,32,61],[32,62,32,66],[32,67,32,68],[32,69,32,73],[32,74,32,85],[32,86,32,92],[29,65,29,86],[29,87,29,92],[29,93,29,94],[29,95,29,100],[29,101,29,126],[30,5,30,144],[28,5,28,126],[28,127,29,131],[28,132,29,136],[28,137,29,140],[28,141,29,144],[29,5,29,18],[29,19,29,29],[29,30,29,39],[29,40,29,53],[29,54,29,64],[27,132,27,136],[27,137,27,140],[27,141,27,144],[27,87,27,91],[27,92,27,96],[27,97,27,101],[27,102,27,106],[27,107,27,111],[27,112,27,116],[27,5,27,7],[27,8,27,14],[27,15,27,45],[27,46,27,76],[27,77,27,81],[27,82,27,86],[26,117,26,121],[26,122,26,126],[26,127,26,131],[26,5,26,7],[26,8,26,14],[26,15,26,45],[26,46,26,76],[26,77,26,81],[26,82,26,86],[27,117,27,121],[27,122,27,126],[27,127,27,131],[26,132,26,136],[26,137,26,140],[26,141,26,144],[26,87,26,91],[26,92,26,96],[26,97,26,101],[26,102,26,106],[26,107,26,111],[26,112,26,116],[25,132,25,136],[25,137,25,140],[25,141,25,144],[25,87,25,91],[25,92,25,96],[25,97,25,101],[25,102,25,106],[25,107,25,111],[25,112,25,116],[25,5,25,7],[25,8,25,14],[25,15,25,45],[25,46,25,76],[25,77,25,81],[25,82,25,86],[24,117,24,121],[24,122,24,126],[24,127,24,131],[24,5,24,7],[24,8,24,14],[24,15,24,45],[24,46,24,76],[24,77,24,81],[24,82,24,86],[25,117,25,121],[25,122,25,126],[25,127,25,131],[24,132,24,136],[24,137,24,140],[24,141,24,144],[24,87,24,91],[24,92,24,96],[24,97,24,101],[24,102,24,106],[24,107,24,111],[24,112,24,116],[23,132,23,136],[23,137,23,140],[23,141,23,144],[23,87,23,91],[23,92,23,96],[23,97,23,101],[23,102,23,106],[23,107,23,111],[23,112,23,116],[23,5,23,7],[23,8,23,14],[23,15,23,45],[23,46,23,76],[23,77,23,81],[23,82,23,86],[22,117,22,121],[22,122,22,126],[22,127,22,131],[22,5,22,7],[22,8,22,14],[22,15,22,45],[22,46,22,76],[22,77,22,81],[22,82,22,86],[23,117,23,121],[23,122,23,126],[23,127,23,131],[22,132,22,136],[22,137,22,140],[22,141,22,144],[22,87,22,91],[22,92,22,96],[22,97,22,101],[22,102,22,106],[22,107,22,111],[22,112,22,116],[21,132,21,136],[21,137,21,140],[21,141,21,144],[21,87,21,91],[21,92,21,96],[21,97,21,101],[21,102,21,106],[21,107,21,111],[21,112,21,116],[21,5,21,7],[21,8,21,14],[21,15,21,45],[21,46,21,76],[21,77,21,81],[21,82,21,86],[20,117,20,121],[20,122,20,126],[20,127,20,131],[20,5,20,7],[20,8,20,14],[20,15,20,45],[20,46,20,76],[20,77,20,81],[20,82,20,86],[21,117,21,121],[21,122,21,126],[21,127,21,131],[20,132,20,136],[20,137,20,140],[20,141,20,144],[20,87,20,91],[20,92,20,96],[20,97,20,101],[20,102,20,106],[20,107,20,111],[20,112,20,116],[19,127,19,131],[19,132,19,136],[19,137,19,140],[19,141,19,144],[19,87,19,91],[19,92,19,96],[19,97,19,101],[19,102,19,106],[19,107,19,111],[19,112,19,116],[19,5,19,7],[19,8,19,14],[19,15,19,45],[19,46,19,76],[19,77,19,81],[19,82,19,86],[17,112,18,116],[17,117,18,121],[17,122,18,126],[17,82,18,86],[17,87,18,91],[17,92,18,96],[17,97,18,101],[17,102,18,106],[17,107,18,111],[19,117,19,121],[19,122,19,126],[17,5,17,14],[17,15,18,15],[17,16,17,44],[17,45,18,45],[17,46,18,46],[17,47,17,75],[17,76,18,76],[17,77,18,81],[17,141,18,144],[18,5,18,14],[18,16,18,44],[18,47,18,75],[17,127,18,131],[17,132,18,136],[17,137,18,140],[15,5,15,144],[16,5,16,14],[16,15,16,45],[16,46,16,76],[16,77,16,86],[16,87,16,96],[16,97,16,106],[16,107,16,116],[16,117,16,126],[16,127,16,136],[16,137,16,144],[13,66,13,73],[13,80,13,83],[13,84,13,136],[13,137,13,144],[14,5,14,8],[14,9,14,12],[14,13,14,41],[14,42,14,44],[14,45,14,73],[14,76,14,79],[14,80,14,83],[14,84,14,112],[14,113,14,115],[14,116,14,144],[9,5,9,144],[10,5,10,12],[10,13,10,65],[10,66,10,73],[10,74,14,75],[10,76,10,83],[10,84,10,136],[10,137,10,144],[11,5,13,8],[11,9,11,12],[11,13,11,65],[11,66,11,73],[11,76,13,79],[11,80,11,83],[11,84,11,136],[11,137,11,144],[12,9,12,12],[12,13,12,65],[12,66,12,73],[12,80,12,83],[12,84,12,136],[12,137,12,144],[13,9,13,12],[13,13,13,65],[7,60,8,70],[7,71,7,78],[7,79,7,85],[7,86,7,125],[7,129,7,144],[8,5,8,44],[6,5,6,59],[6,60,6,70],[6,71,6,125],[6,126,7,128],[6,129,6,135],[6,136,6,137],[8,45,8,59],[8,71,8,85],[8,86,8,144],[0,148,59,152],[1,5,1,17],[1,18,1,45],[1,46,1,49],[1,50,1,85],[1,86,1,89],[1,90,1,91],[1,92,1,133],[1,134,1,144],[2,5,2,40],[2,41,5,44],[2,45,2,93],[2,94,5,99],[2,100,2,144],[3,5,3,8],[3,9,3,22],[3,23,3,26],[3,120,5,130],[5,100,5,103],[5,105,5,119],[6,138,6,144],[7,5,7,44],[7,45,7,52],[7,53,7,59],[3,27,3,40],[3,131,5,133],[3,134,5,144],[4,5,4,40],[4,45,5,75],[4,78,5,93],[4,100,4,119],[5,23,5,26],[5,27,5,40],[3,45,3,75],[3,76,5,77],[3,78,3,93],[3,100,3,103],[3,105,3,119],[5,5,5,8],[5,9,5,22]]}
[null,null,null,null,null,"\"Braunschweiger System\"   -   3 gegen 3"]
[null,null,null,null,null,null,null,null,null,null,null,null,null,null,null,null,null,null,"TT-Berzirk 6",null,null,null,null,null,null,null,null,null,null,null,null,null,null,null,null,null,null,null,null,null,null,null,null,null,null,null,"-",null,null,null,"Oberfranken Ost",null,null,null,null,null,null,null,null,null,null,null,null,null,null,null,null,null,null,null,null,null,null,null,null,null,null,null,null,null,null,null,null,null,null,null,"-",null,null,null,null,null,{"$f":"'4g4'!CP2","v":"Bezirks-"}]
[]
[null,null,null,null,null,null,null,null,null," Damen",null,null,null,null,null,null,null,null,null,null,null,null,null,null,null,null,null," Mädchen",null,null,null,null,null,null,null,null,null,null,null,null,null,null,null,null,null,"Liga / Bereich",null,null,null,null,null,null,null,null,null,null,null,null,null,null,null,null,null,null,null,null,null,null,null,null,null,null,null,null,null,null,null,null,"Klasse/Gruppe",null,null,null,null,null,null,null,null,null,null,null,null,null,null,null,null,null,null,null,null,null,null,null,null,null,null,"Vorrunde",null,null,null,null,null,null,null,null,null,null,null,null,null,null,{"$f":"TODAY()-183","v":"2018-02-11"},null,null,null,null,null,null,null,null,null,null,"/",null,null,{"$f":"DQ4+365","v":"2019-02-11"}]
[]
[null,null,null,null,null,null,null,null,null," Herren",null,null,null,null,null,null,null,null,null,null,null,null,null,null,null,null,null," Jungen",null,null,null,null,null,null,null,null,null,null,null,null,null,null,null,null,null,null,null,null,null,null,null,null,null,null,null,null,null,null,null,null,null,null,null,null,null,null,null,null,null,null,null,null,null,null,null,null,null,null,null,null,null,null,null,null,null,null,null,null,null,null,null,null,null,null,null,null,null,null,null,null,null,null,null,null,null,"Rückrunde",null,null,null,null,null,null,null,null,null,null,null,null,null,null,null,null,null,null,null,null,null,null,null,null,null,null,null,null,null,null,null,null,null,null,null,null,null,null,null,{"$f":"IF(EH29=EL29,\"\",IF(EH29>EL29,F7,BT7))","v":""}]
[null,null,null,null,null,{"$f":"'4g4'!G7","v":0},null,null,null,null,null,null,null,null,null,null,null,null,null,null,null,null,null,null,null,null,null,null,null,null,null,null,null,null,null,null,null,null,null,null,null,null,null,null,null,null,null,null,null,null,null,null,null,null,null,null,null,null,null,null,"gegen",null,null,null,null,null,null,null,null,null,null,{"$f":"'4g4'!BU7","v":0},null,null,null,null,null,null,null,null,null,null,null,null,null,null,null,null,null,null,null,null,null,null,null,null,null,null,null,null,null,null,null,null,null,null,null,null,null,null,null,null,null,null,null,null,null,null,null,null,null,null,null,null,null,null,null,null,null,{"$f":"EH29","v":""},null,null,null,null,null,null,":",null,{"$f":"EL29","v":""},null,null,null,null,null,null,{"$f":"IF(BK33=\"\",\"\",IF(EH29=EL29,EP14))","v":""}]
[null,null,null,null,null,"Heimmannschaft  ( A )",null,null,null,null,null,null,null,null,null,null,null,null,null,null,null,null,null,null,null,null,null,null,null,null,null,null,null,null,null,null,null,null,null,null,null,null,null,null,null,206,null,null,null,null,null,null,null,{"$f":"'4g4'!BC8","v":0},null,null,null,null,null,null,null,null,null,null,null,null,null,null,null,null,null,{"$f":"AT8","v":206},null,null,null,null,null,null,null,null,null,null,null,null,null,null,"Gastmannschaft  ( B )",null,null,null,null,null,null,null,null,null,null,null,null,null,null,null,null,null,null,null,null,null,null,null,null,null,null,null,null,null,null,null,null,null,null,null,null,null,null,null,null,null,null,"Endergebnis"]
[null,null,null,null,null,null,null,null,null,null,null,null,null,null,null,null,null,null,null,null,null,null,null,null,null,null,null,null,null,null,null,null,null,null,null,null,null,null,null,null,null,null,null,null,null,"Vereins-Nr.",null,null,null,null,null,null,null,null,null,null,null,null,null,null,null,null,null,null,null,null,null,null,null,null,null,"Vereins-Nr."]
[null,null,null,null,null,"Mannschaftsaufstellung"]
[null,null,null,null,null,"Rang",null,null,null,null,null,null,null,"Heimverein ( Mannschaft A )",null,null,null,null,null,null,null,null,null,null,null,null,null,null,null,null,null,null,null,null,null,null,null,null,null,null,null,null,null,null,null,null,null,null,null,null,null,null,null,null,null,null,null,null,null,null,null,null,null,null,null,null,"Pos.",null,null,null,null,null,null,null,null,null,"Rang",null,null,null,null,null,null,null,"Gastverein ( Mannschaft B )",null,null,null,null,null,null,null,null,null,null,null,null,null,null,null,null,null,null,null,null,null,null,null,null,null,null,null,null,null,null,null,null,null,null,null,null,null,null,null,null,null,null,null,null,null,null,null,null,null,null,null,null,"Pos."]
[null,null,null,null,null,"E I N Z E L",null,null,null,"A1",null,null,null,null,null,null,null,null,null,null,null,null,null,null,null,null,null,null,null,null,null,null,null,null,null,null,null,null,null,null,null,null,null,null,null,null,null,null,null,null,null,null,null,null,null,null,null,null,null,null,null,null,null,null,null,null,null,null,null,null,null,null,null,null,null,null,"E I N Z E L",null,null,null,"B1",null,null,null,null,null,null,null,null,null,null,null,null,null,null,null,null,null,null,null,null,null,null,null,null,null,null,null,null,null,null,null,null,null,null,null,null,null,null,null,null,null,null,null,null,null,null,null,null,null,null,null,null,null,null,null,null,null,null,null,null,null,null,null,null,{"$f":"IF(EH29<>EL29,EP6,EP7)","v":""}]
[null,null,null,null,null,null,null,null,null,"A2",null,null,null,null,null,null,null,null,null,null,null,null,null,null,null,null,null,null,null,null,null,null,null,null,null,null,null,null,null,null,null,null,null,null,null,null,null,null,null,null,null,null,null,null,null,null,null,null,null,null,null,null,null,null,null,null,null,null,null,null,null,null,null,null,null,null,null,null,null,null,"B2",null,null,null,null,null,null,null,null,null,null,null,null,null,null,null,null,null,null,null,null,null,null,null,null,null,null,null,null,null,null,null,null,null,null,null,null,null,null,null,null,null,null,null,null,null,null,null,null,null,null,null,null,null,null,null,null,null,null,null,null,null,null,null,null,"Sieger"]
[null,null,null,null,null,null,null,null,null,"A3",null,null,null,null,null,null,null,null,null,null,null,null,null,null,null,null,null,null,null,null,null,null,null,null,null,null,null,null,null,null,null,null,null,null,null,null,null,null,null,null,null,null,null,null,null,null,null,null,null,null,null,null,null,null,null,null,null,null,null,null,null,null,null,null,null,null,null,null,null,null,"B3",null,null,null,null,null,null,null,null,null,null,null,null,null,null,null,null,null,null,null,null,null,null,null,null,null,null,null,null,null,null,null,null,null,null,null,null,null,null,null,null,null,null,null,null,null,null,null,null,null,null,null,null,null,null,null,null,null,null,null,null,null,null,null,null,"Unentschieden"]
[null,null,null,null,null,"D",null,null,null,"A1",null,null,null,null,null,null,null,null,null,null,null,null,null,null,null,null,null,null,null,null,null,null,null,null,null,null,null,null,null,null,null,null,"/",null,null,null,null,null,null,null,null,null,null,null,null,null,null,null,null,null,null,null,null,null,null,null,null,null,null,null,null,null,null,null,null,null,"D",null,null,null,"B1",null,null,null,null,null,null,null,null,null,null,null,null,null,null,null,null,null,null,null,null,null,null,null,null,null,null,null,null,null,null,null,null,"/"]
[]
[null,null,null,null,null,"Spielfolge",null,null,null,null,null,null,null,null,null,"Heimverein ( Mannschaft A )",null,null,null,null,null,null,null,null,null,null,null,null,null,null,null,null,null,null,null,null,null,null,null,null,null,null,null,null,null,null,"Gastverein ( Mannschaft B )",null,null,null,null,null,null,null,null,null,null,null,null,null,null,null,null,null,null,null,null,null,null,null,null,null,null,null,null,null,null,"1. Satz",null,null,null,null,null,null,null,null,null,"2. Satz",null,null,null,null,null,null,null,null,null,"3. Satz",null,null,null,null,null,null,null,null,null,"4. Satz",null,null,null,null,null,null,null,null,null,"5. Satz",null,null,null,null,null,null,null,null,null,"Sätze",null,null,null,null,null,null,null,null,null,"Spiele"]
[null,null,null,null,null,"Doppel",null,null,null,null,null,null,null,null,null,null,{"$f":"N15","v":0},null,null,null,null,null,null,null,null,null,null,null,null,null,null,null,null,null,null,null,null,null,null,null,null,null,null,null,null,null,null,{"$f":"CG15","v":0},null,null,null,null,null,null,null,null,null,null,null,null,null,null,null,null,null,null,null,null,null,null,null,null,null,null,null,null,null,null,null,null,null,null,null,null,null,null,null,null,null,null,null,null,null,null,null,null,null,null,null,null,null,null,null,null,null,null,null,null,null,null,null,null,null,null,null,null,null,null,null,null,null,null,null,null,null,null,null,{"$f":"IF(BZ18=\"\",\"\",IF(BZ18>CE18,1,0)+IF(CJ18>CO18,1,0)+IF(CT18>CY18,1,0)+IF(DD18>DI18,1,0)+IF(DN18>DS18,1,0))","v":""},null,null,null,null,{"$f":"IF(BZ18=\"\",\"\",IF(BZ18<CE18,1,0)+IF(CJ18<CO18,1,0)+IF(CT18<CY18,1,0)+IF(DD18<DI18,1,0)+IF(DN18<DS18,1,0))","v":""},null,null,null,null,{"$f":"IF(DX18=\"\",\"\",IF(DX18>EC18,1,0))","v":""},null,null,null,{"$f":"IF(DX18=\"\",\"\",IF(DX18<EC18,1,0))","v":""},null,null,null,{"$f":"F7","v":0},{"$f":"IF(DX18=3,1,0)","v":0},{"$f":"IF(EC18=3,1,0)","v":0}]
[null,null,null,null,null,"A1 - B1",null,null,null,null,null,null,null,null,null,null,{"$f":"AT15","v":0},null,null,null,null,null,null,null,null,null,null,null,null,null,null,null,null,null,null,null,null,null,null,null,null,null,null,null,null,null,null,{"$f":"DM15","v":0},null,null,null,null,null,null,null,null,null,null,null,null,null,null,null,null,null,null,null,null,null,null,null,null,null,null,null,null,null,null,null,null,null,null,null,null,null,null,null,null,null,null,null,null,null,null,null,null,null,null,null,null,null,null,null,null,null,null,null,null,null,null,null,null,null,null,null,null,null,null,null,null,null,null,null,null,null,null,null,null,null,null,null,null,null,null,null,null,null,null,null,null,null,null,null,null,null,{"$f":"SUM(BZ18:CD28)","v":0}]
[null,null,null,null,null,"E",null,null,"A1-B2",null,null,null,null,null,null,{"$f":"N12","v":0},null,null,null,null,null,null,null,null,null,null,null,null,null,null,null,null,null,null,null,null,null,null,null,null,null,null,null,null,null,null,{"$f":"CG13","v":0},null,null,null,null,null,null,null,null,null,null,null,null,null,null,null,null,null,null,null,null,null,null,null,null,null,null,null,null,null,null,null,null,null,null,null,null,null,null,null,null,null,null,null,null,null,null,null,null,null,null,null,null,null,null,null,null,null,null,null,null,null,null,null,null,null,null,null,null,null,null,null,null,null,null,null,null,null,null,null,null,{"$f":"IF(BZ20=\"\",\"\",IF(BZ20>CE20,1,0)+IF(CJ20>CO20,1,0)+IF(CT20>CY20,1,0)+IF(DD20>DI20,1,0)+IF(DN20>DS20,1,0))","v":""},null,null,null,null,{"$f":"IF(BZ20=\"\",\"\",IF(BZ20<CE20,1,0)+IF(CJ20<CO20,1,0)+IF(CT20<CY20,1,0)+IF(DD20<DI20,1,0)+IF(DN20<DS20,1,0))","v":""},null,null,null,null,{"$f":"IF(DX20=\"\",\"\",IF(DX20>EC20,1,0))","v":""},null,null,null,{"$f":"IF(DX20=\"\",\"\",IF(DX20<EC20,1,0))","v":""},null,null,null,{"$f":"SUM(CJ18:CN28)","v":0},{"$f":"IF(DX20=3,1,0)","v":0},{"$f":"IF(EC20=3,1,0)","v":0}]
[null,null,null,null,null,"E",null,null,"A2-B1",null,null,null,null,null,null,{"$f":"N13","v":0},null,null,null,null,null,null,null,null,null,null,null,null,null,null,null,null,null,null,null,null,null,null,null,null,null,null,null,null,null,null,{"$f":"CG12","v":0},null,null,null,null,null,null,null,null,null,null,null,null,null,null,null,null,null,null,null,null,null,null,null,null,null,null,null,null,null,null,null,null,null,null,null,null,null,null,null,null,null,null,null,null,null,null,null,null,null,null,null,null,null,null,null,null,null,null,null,null,null,null,null,null,null,null,null,null,null,null,null,null,null,null,null,null,null,null,null,null,"",null,null,null,null,"",null,null,null,null,"",null,null,null,"",null,null,null,{"$f":"SUM(CT18:CX28)","v":0},{"$f":"IF(DX21=3,1,0)","v":0},{"$f":"IF(EC21=3,1,0)","v":0}]
[null,null,null,null,null,"E",null,null,"A3-B2",null,null,null,null,null,null,{"$f":"N14","v":0},null,null,null,null,null,null,null,null,null,null,null,null,null,null,null,null,null,null,null,null,null,null,null,null,null,null,null,null,null,null,{"$f":"CG13","v":0},null,null,null,null,null,null,null,null,null,null,null,null,null,null,null,null,null,null,null,null,null,null,null,null,null,null,null,null,null,null,null,null,null,null,null,null,null,null,null,null,null,null,null,null,null,null,null,null,null,null,null,null,null,null,null,null,null,null,null,null,null,null,null,null,null,null,null,null,null,null,null,null,null,null,null,null,null,null,null,null,"",null,null,null,null,"",null,null,null,null,"",null,null,null,"",null,null,null,{"$f":"SUM(DD18:DH28)","v":0},0,0]
[null,null,null,null,null,"E",null,null,"A2-B3",null,null,null,null,null,null,{"$f":"N13","v":0},null,null,null,null,null,null,null,null,null,null,null,null,null,null,null,null,null,null,null,null,null,null,null,null,null,null,null,null,null,null,{"$f":"CG14","v":0},null,null,null,null,null,null,null,null,null,null,null,null,null,null,null,null,null,null,null,null,null,null,null,null,null,null,null,null,null,null,null,null,null,null,null,null,null,null,null,null,null,null,null,null,null,null,null,null,null,null,null,null,null,null,null,null,null,null,null,null,null,null,null,null,null,null,null,null,null,null,null,null,null,null,null,null,null,null,null,null,"",null,null,null,null,"",null,null,null,null,"",null,null,null,"",null,null,null,{"$f":"SUM(DN18:DR28)","v":0},0,0]
[null,null,null,null,null,"E",null,null,"A1-B1",null,null,null,null,null,null,{"$f":"N12","v":0},null,null,null,null,null,null,null,null,null,null,null,null,null,null,null,null,null,null,null,null,null,null,null,null,null,null,null,null,null,null,{"$f":"CG12","v":0},null,null,null,null,null,null,null,null,null,null,null,null,null,null,null,null,null,null,null,null,null,null,null,null,null,null,null,null,null,null,null,null,null,null,null,null,null,null,null,null,null,null,null,null,null,null,null,null,null,null,null,null,null,null,null,null,null,null,null,null,null,null,null,null,null,null,null,null,null,null,null,null,null,null,null,null,null,null,null,null,"",null,null,null,null,"",null,null,null,null,"",null,null,null,"",null,null,null,{"$f":"SUM(EP19:EP23)","v":0},0,0]
[null,null,null,null,null,"E",null,null,"A3-B3",null,null,null,null,null,null,{"$f":"N14","v":0},null,null,null,null,null,null,null,null,null,null,null,null,null,null,null,null,null,null,null,null,null,null,null,null,null,null,null,null,null,null,{"$f":"CG14","v":0},null,null,null,null,null,null,null,null,null,null,null,null,null,null,null,null,null,null,null,null,null,null,null,null,null,null,null,null,null,null,null,null,null,null,null,null,null,null,null,null,null,null,null,null,null,null,null,null,null,null,null,null,null,null,null,null,null,null,null,null,null,null,null,null,null,null,null,null,null,null,null,null,null,null,null,null,null,null,null,null,"",null,null,null,null,"",null,null,null,null,"",null,null,null,"",null,null,null,{"$f":"BT7","v":0},0,0]
[null,null,null,null,null,"E",null,null,"A2-B2",null,null,null,null,null,null,{"$f":"N13","v":0},null,null,null,null,null,null,null,null,null,null,null,null,null,null,null,null,null,null,null,null,null,null,null,null,null,null,null,null,null,null,{"$f":"CG13","v":0},null,null,null,null,null,null,null,null,null,null,null,null,null,null,null,null,null,null,null,null,null,null,null,null,null,null,null,null,null,null,null,null,null,null,null,null,null,null,null,null,null,null,null,null,null,null,null,null,null,null,null,null,null,null,null,null,null,null,null,null,null,null,null,null,null,null,null,null,null,null,null,null,null,null,null,null,null,null,null,null,"",null,null,null,null,"",null,null,null,null,"",null,null,null,"",null,null,null,{"$f":"SUM(CE18:CI28)","v":0},0,0]
[null,null,null,null,null,"E",null,null,"A3-B1",null,null,null,null,null,null,{"$f":"N14","v":0},null,null,null,null,null,null,null,null,null,null,null,null,null,null,null,null,null,null,null,null,null,null,null,null,null,null,null,null,null,null,{"$f":"CG12","v":0},null,null,null,null,null,null,null,null,null,null,null,null,null,null,null,null,null,null,null,null,null,null,null,null,null,null,null,null,null,null,null,null,null,null,null,null,null,null,null,null,null,null,null,null,null,null,null,null,null,null,null,null,null,null,null,null,null,null,null,null,null,null,null,null,null,null,null,null,null,null,null,null,null,null,null,null,null,null,null,null,"",null,null,null,null,"",null,null,null,null,"",null,null,null,"",null,null,null,{"$f":"SUM(CO18:CS28)","v":0},0,0]
[null,null,null,null,null,"E",null,null,"A1-B3",null,null,null,null,null,null,{"$f":"N12","v":0},null,null,null,null,null,null,null,null,null,null,null,null,null,null,null,null,null,null,null,null,null,null,null,null,null,null,null,null,null,null,{"$f":"CG14","v":0},null,null,null,null,null,null,null,null,null,null,null,null,null,null,null,null,null,null,null,null,null,null,null,null,null,null,null,null,null,null,null,null,null,null,null,null,null,null,null,null,null,null,null,null,null,null,null,null,null,null,null,null,null,null,null,null,null,null,null,null,null,null,null,null,null,null,null,null,null,null,null,null,null,null,null,null,null,null,null,null,"",null,null,null,null,"",null,null,null,null,"",null,null,null,"",null,null,null,{"$f":"SUM(CY18:DC28)","v":0},0,0]
[null,null,null,null,null,null,null,null,null,null,null,null,null,null,null,null,null,null,null,null,null,null,null,null,null,null,null,null,null,null,null,null,null,null,null,null,null,null,null,null,null,null,null,null,null,null,null,null,null,null,null,null,null,null,null,null,null,null,null,null,null,null,null,null,null,null,null,null,null,null,null,null,null,null,null,null,null,null,null,null,null,null,null,null,null,null,null,null,null,null,null,null,null,null,null,null,null,null,null,null,null,null,null,null,null,null,null,null,null,null,null,null,null,null,null,null,null,null,null,null,null,null,null,null,null,null,null,{"$f":"IF(DX18=\"\",\"\",SUM(DX18:EB28))","v":""},null,null,null,null,{"$f":"IF(EC18=\"\",\"\",SUM(EC18:EG28))","v":""},null,null,null,null,{"$f":"IF(EH18=\"\",\"\",SUM(EH18:EK28))","v":""},null,null,null,{"$f":"IF(EL18=\"\",\"\",SUM(EL18:EO28))","v":""},null,null,null,{"$f":"SUM(DI18:DM28)","v":0}]
[null,null,null,null,null,"Spielbeginn :",null,null,null,null,null,null,null,null,null,null,null,null,null,null,null,null,null,null,null,null,null,null,null,null,"Uhr",null,null,null,null,null,null,null,null,null,"Spielende :",null,null,null,null,null,null,null,null,null,null,null,null,null,null,null,null,null,null,null,null,null,null,null,null,"Uhr",null,null,null,null,null,null,null,null,null,null,null,null,null,null,null,null,null,null,null,null,null,{"$f":"EP24","v":0},null,null,null,null,null,":",null,{"$f":"EP33","v":0},null,null,null,null,null," Bälle",null,null,null,null,null,null,null,null,null,null,null,null,null,null,null,null,null,null,null,null,null,null,null,null,null,null,null,null,null,null,null,null,null,null,null,null,null,null,null,null,null,null,null,{"$f":"SUM(DS18:DW28)","v":0},{"$f":"SUM(EQ18:EQ28)","v":0},{"$f":"SUM(ER18:ER28)","v":0}]
[]
[]
[null,null,null,null,null,{"$f":"IF(BK33=BR33,\"\",IF(BK33>BR33,EP13,EP15))","v":""},null,null,null,null,null,null,null,null,null,null,":",null,{"$f":"EP12","v":""},null,null,null,null,null,null,null,null,null,null,null,null,null,null,null,null,null,null,null,null,null,null,null,null,null,null,null,null,null,null,null,null,null,null,null,null,"mit",null,null,null,null,null,null,{"$f":"IF(EH29>EL29,EH29,EL29)","v":""},null,null,null,null,":",null,{"$f":"IF(EH29<EL29,EH29,EL29)","v":""},null,null,null,null,"Spielen",null,null,null,null,null,null,null,null,null,null,null,"und",null,null,null,null,null,null,{"$f":"IF(EH29>=EL29,DX29,EC29)","v":""},null,null,null,null,":",null,{"$f":"IF(EH29<EL29,DX29,EC29)","v":""},null,null,null,null,"Sätzen",null,null,null,null,null,null,null,null,null,null,"und",null,null,null,null,null,null,{"$f":"IF(EH29>=EL29,EP24,EP33)","v":0},null,null,null,null,null,":",null,{"$f":"IF(EH29<EL29,EP24,EP33)","v":0},null,null,null,null,null," Bälle",null,null,null,null,null,null,null,{"$f":"SUM(EP26:EP30)","v":0}]
[]
[null,null,null,null,null,"Spielort",null,null,null,null,null,null,null,null,":",null,{"$f":"'4g4'!R38","v":0},null,null,null,null,null,null,null,null,null,null,null,null,null,null,null,null,null,null,null,null,null,null,null,null,null,null,null,null,null,null,null,null,null,null,null,null,null,null,null,null,null,null,null,null,null,null,null,null,null,{"$f":"F7","v":0},null,null,null,null,null,null,null,null,null,null,null,null,null,null,null,null,null,null,null,null,null,"Unterschriften Mannschaftsführer",null,null,null,null,null,null,null,null,null,null,null,null,null,null,null,null,null,null,null,null,null,null,null,null,null,null,null,null,null,null,null,null,null,null,{"$f":"BT7","v":0}]
[]
[]
[]
[]
[null,null,null,null,null,"Datum",null,null,null,null,null,null,null,null,":",null,{"$f":"TODAY()","v":"2018-08-13"}]
[]
[]
[]
[]
[]
[null,null,null,null,null,null,null,null,null,null,"kein Protest"]
[null,null,null,null,null,null,null,null,null,null,null,null,null,null,null,null,null,null,null,null,null,null,null,null,null,null,null,null,null,null,null,null,null,null,null,null,null,null,null,null,null,null,{"$f":"S2","v":"TT-Berzirk 6"}]
[]
[]
[null,null,null,null,null,null,null,null,null,null,null,null,null,null,null,null,null,null,null,null,null,null,null,null,null,null,null,null,null,null,null,null,null,null,null,null,null,null,null,null,null,null,{"$f":"AY2","v":"Oberfranken Ost"}]
[null,null,null,null,null,null,null,null,null,null,"Protest - siehe Anlage"]
[null,null,null,null,null,null,null,null,null,null,null,null,null,null,null,null,null,null,null,null,null,null,null,null,null,null,null,null,null,null,null,null,null,null,null,null,null,null,null,null,null,null,null,{"$f":"CO2","v":"Bezirks-"}]
[null,null,null,null,null,null,null,null,null,null,null,null,null,null,null,null,null,null,null,null,null,null,null,null,null,null,null,null,null,null,null,null,null,null,null,null,null,null,null,null,null,null,null,null,null,null,null,null,null,null,null,null,null,null,null,null,null,null,null,null,null,null,null,null,null,null,"Mf.:",null,null,null,null,null,null,null,null,null,null,null,null,null,null,null,null,null,null,null,null,null,null,null,null,null,null,null,null,null,null,null,null,null,null,null,null,null,null,null,null,"Mf.:"]
[]
[]
[]
[null,null,null,null,null," Staffelleiter",null,null,null,null,null,null,null,null,null,null,null,null,null,null,null,null,null,":",null,null,null,null,null,null,null,null,null,null,null,null,null,null,null,null,null,null,null,null,null,null,null,"Tel.-Nr.:",null,null,null,null,null,null,null,null,null,null,null,null,null,null,null,null,null,null,null,null,null,null,null,null,"Mobil:",null,null,null,null,null,null,null,null,null,null,null,null,null,null,null,null,null,null,null,null,null,null,"Email:"]
[null,null,null,null,null," Mannschaftsführer",null,null,null,null,null,null,null,null,null,null,null,null,null,null,null,null,null,":",null,null,null,null,null,null,null,null,null,null,null,null,null,null,null,null,null,null,null,null,null,null,null,"Tel.-Nr.:",null,null,null,null,null,null,null,null,null,null,null,null,null,null,null,null,null,null,null,null,null,null,null,null,"Mobil:",null,null,null,null,null,null,null,null,null,null,null,null,null,null,null,null,null,null,null,null,null,null,"Email:"]
["creadet by Gerhard Nidetzky"]

{"sheet":"Spst.3g3","index":7,"n_rows":8,"n_cols":83,"rows_kept":8,"cut":false,"hidden":false,"merged":[[28,10,30,91],[2,38,3,41],[2,82,3,91],[4,10,27,14],[4,15,6,48],[4,49,6,52],[4,53,6,86],[4,87,27,91],[7,15,27,47],[7,48,27,53],[7,54,27,86],[0,42,3,50],[0,51,3,52],[0,53,3,61],[0,62,3,81],[0,82,1,91],[2,10,3,12],[2,13,3,21],[2,22,3,24],[2,25,3,34],[2,35,3,37],[0,38,1,41],[0,10,1,12],[0,13,1,21],[0,22,1,24],[0,25,1,34],[0,35,1,37]]}
[null,null,null,null,null,null,null,null,null,null,{"$f":"'3g3'!F4","v":0},null,null," Damen",null,null,null,null,null,null,null,null,{"$f":"'3g3'!X4","v":0},null,null," Mädchen",null,null,null,null,null,null,null,null,null,{"$f":"'3g3'!CW4","v":0},null,null,"VR",null,null,null,{"$f":"'3g3'!DQ4","v":"2018-02-11"},null,null,null,null,null,null,null,null,"/",null,{"$f":"'3g3'!EE4","v":"2019-02-11"},null,null,null,null,null,null,null,null,{"$f":"'3g3'!CO2","v":"Bezirks-"},null,null,null,null,null,null,null,null,null,null,null,null,null,null,null,null,null,null,null,"Bereich"]
[]
[null,null,null,null,null,null,null,null,null,null,{"$f":"'3g3'!F6","v":0},null,null," Herren",null,null,null,null,null,null,null,null,{"$f":"'3g3'!X6","v":0},null,null," Jungen",null,null,null,null,null,null,null,null,null,{"$f":"'3g3'!CW6","v":0},null,null,"RR",null,null,null,null,null,null,null,null,null,null,null,null,null,null,null,null,null,null,null,null,null,null,null,null,null,null,null,null,null,null,null,null,null,null,null,null,null,null,null,null,null,null,null,{"$f":"'3g3'!AT5","v":0}]
[]
[null,null,null,null,null,null,null,null,null,null,null,null,null,null,null,{"$f":"'3g3'!F7","v":0},null,null,null,null,null,null,null,null,null,null,null,null,null,null,null,null,null,null,null,null,null,null,null,null,null,null,null,null,null,null,null,null,null,":",null,null,null,{"$f":"'3g3'!BT7","v":0}]
[]
[]
[null,null,null,null,null,null,null,null,null,null,null,null,null,null,null,{"$f":"'3g3'!EQ30","v":0},null,null,null,null,null,null,null,null,null,null,null,null,null,null,null,null,null,null,null,null,null,null,null,null,null,null,null,null,null,null,null,null,":",null,null,null,null,null,{"$f":"'3g3'!ER30","v":0}]

{"sheet":"HILFE","index":8,"n_rows":62,"n_cols":177,"rows_kept":62,"cut":false,"hidden":false,"merged":[[60,96,60,102],[60,103,60,145],[61,0,61,145],[60,6,60,23],[60,25,60,47],[60,48,60,55],[60,56,60,72],[60,73,60,78],[60,79,60,95],[0,0,60,5],[0,6,0,145],[58,6,58,145],[59,6,59,23],[59,25,59,47],[59,48,59,55],[59,56,59,72],[59,73,59,78],[59,79,59,95],[59,96,59,102],[59,103,59,145],[55,67,57,71],[55,72,57,104],[55,105,57,107],[55,108,57,112],[55,113,57,145],[57,6,57,36],[57,44,57,63],[48,11,51,36],[49,44,50,63],[51,44,53,63],[52,6,52,36],[53,6,56,9],[53,10,56,10],[53,11,56,36],[54,44,56,63],[42,15,46,16],[42,17,46,40],[46,43,57,43],[46,44,48,63],[46,64,57,64],[47,6,47,36],[47,37,57,40],[48,6,51,9],[48,10,51,10],[37,67,40,88],[37,89,40,123],[37,124,40,145],[41,67,54,71],[41,72,54,104],[41,105,54,112],[41,113,54,145],[35,130,35,131],[35,132,35,137],[35,138,35,145],[36,6,36,145],[37,6,41,14],[37,15,41,16],[37,17,41,40],[37,41,57,42],[37,43,45,64],[37,65,57,66],[35,94,35,98],[35,99,35,100],[35,101,35,105],[35,106,35,116],[35,117,35,123],[35,124,35,129],[42,6,46,14],[34,6,34,145],[35,6,35,16],[35,17,35,18],[35,19,35,55],[35,56,35,62],[35,63,35,67],[35,68,35,69],[35,70,35,74],[35,75,35,86],[35,87,35,93],[32,66,32,87],[32,88,32,93],[32,94,32,95],[32,96,32,101],[32,102,32,127],[33,6,33,145],[31,6,31,127],[31,128,32,132],[31,133,32,137],[31,138,32,141],[31,142,32,145],[32,6,32,19],[32,20,32,30],[32,31,32,40],[32,41,32,54],[32,55,32,65],[30,128,30,132],[30,133,30,137],[30,138,30,141],[30,142,30,145],[30,88,30,92],[30,93,30,97],[30,98,30,102],[30,103,30,107],[30,108,30,112],[30,113,30,117],[29,123,29,127],[29,128,29,132],[29,133,29,137],[29,138,29,141],[29,142,29,145],[30,6,30,15],[30,16,30,46],[30,47,30,77],[30,78,30,82],[30,83,30,87],[29,93,29,97],[29,98,29,102],[29,103,29,107],[29,108,29,112],[29,113,29,117],[29,118,29,122],[29,6,29,15],[29,16,29,46],[29,47,29,77],[29,78,29,82],[29,83,29,87],[29,88,29,92],[30,118,30,122],[30,123,30,127],[28,138,28,141],[28,142,28,145],[28,159,28,210],[28,93,28,97],[28,98,28,102],[28,103,28,107],[28,108,28,112],[28,113,28,117],[28,118,28,122],[28,6,28,15],[28,16,28,46],[28,47,28,77],[28,78,28,82],[28,83,28,87],[28,88,28,92],[27,123,27,127],[27,128,27,132],[27,133,27,137],[27,6,27,15],[27,16,27,46],[27,47,27,77],[27,78,27,82],[27,83,27,87],[27,88,27,92],[28,123,28,127],[28,128,28,132],[28,133,28,137],[26,118,26,122],[27,138,27,141],[27,142,27,145],[27,159,27,210],[27,93,27,97],[27,98,27,102],[27,103,27,107],[27,108,27,112],[27,113,27,117],[27,118,27,122],[25,159,25,210],[26,6,26,15],[26,16,26,46],[26,47,26,77],[26,78,26,82],[26,83,26,87],[26,88,26,92],[25,103,25,107],[25,108,25,112],[25,113,25,117],[25,118,25,122],[25,123,25,127],[25,128,25,132],[26,123,26,127],[26,128,26,132],[26,133,26,137],[26,138,26,141],[26,142,26,145],[26,159,26,210],[26,93,26,97],[26,98,26,102],[26,103,26,107],[26,108,26,112],[26,113,26,117],[24,138,24,141],[24,142,24,145],[25,6,25,15],[25,16,25,46],[25,47,25,77],[25,78,25,82],[25,83,25,87],[25,88,25,92],[25,93,25,97],[25,98,25,102],[24,108,24,112],[24,113,24,117],[24,118,24,122],[24,123,24,127],[24,128,24,132],[24,133,24,137],[25,133,25,137],[25,138,25,141],[25,142,25,145],[24,6,24,15],[24,16,24,46],[24,47,24,77],[24,78,24,82],[24,83,24,87],[23,123,23,127],[23,128,23,132],[23,133,23,137],[23,138,23,141],[23,142,23,145],[23,88,23,92],[23,93,23,97],[23,98,23,102],[23,103,23,107],[23,108,23,112],[23,113,23,117],[24,88,24,92],[24,93,24,97],[24,98,24,102],[24,103,24,107],[21,160,21,209],[22,6,22,15],[22,17,22,45],[22,48,22,76],[22,160,22,209],[23,6,23,15],[23,16,23,46],[23,47,23,77],[23,78,23,82],[23,83,23,87],[21,118,22,122],[21,123,22,127],[21,128,22,132],[21,133,22,137],[21,138,22,141],[21,142,22,145],[21,88,22,92],[21,93,22,97],[21,98,22,102],[21,103,22,107],[21,108,22,112],[21,113,22,117],[23,160,23,209],[23,118,23,122],[20,160,20,209],[21,6,21,15],[21,16,22,16],[21,17,21,45],[21,46,22,46],[21,47,22,47],[21,48,21,76],[21,77,22,77],[21,78,22,82],[21,83,22,87],[19,133,20,137],[19,138,20,141],[19,142,20,145],[20,6,20,15],[20,17,20,45],[20,48,20,76],[19,103,20,107],[19,108,20,112],[19,113,20,117],[19,118,20,122],[19,123,20,127],[19,128,20,132],[19,77,20,77],[19,78,20,82],[18,118,18,127],[18,128,18,137],[18,138,18,145],[19,6,19,15],[19,16,20,16],[19,17,19,45],[19,46,20,46],[19,47,20,47],[19,48,19,76],[18,47,18,77],[18,78,18,87],[18,88,18,97],[18,98,18,107],[19,83,20,87],[19,88,20,92],[19,93,20,97],[19,98,20,102],[18,108,18,117],[15,6,16,9],[15,10,15,13],[15,14,15,42],[15,43,15,45],[15,46,15,74],[15,77,16,80],[15,81,15,84],[15,85,15,113],[15,114,15,116],[16,10,16,13],[16,14,16,42],[16,43,16,45],[16,46,16,74],[16,81,16,84],[16,85,16,113],[16,114,16,116],[13,67,13,74],[13,81,13,84],[13,85,13,137],[13,138,13,145],[13,160,13,169],[13,170,13,175],[13,176,13,198],[14,10,14,13],[14,14,14,66],[14,67,14,74],[14,81,14,84],[14,85,14,137],[14,138,14,145],[0,149,61,152],[14,160,14,169],[14,176,14,198],[15,117,15,145],[15,160,15,198],[16,117,16,145],[16,160,16,198],[17,6,17,145],[17,160,17,207],[18,6,18,15],[18,16,18,46],[9,6,9,145],[10,6,10,13],[10,14,10,66],[10,67,10,74],[10,75,16,76],[10,77,10,84],[10,85,10,137],[10,138,10,145],[11,6,14,9],[11,10,11,13],[11,14,11,66],[11,67,11,74],[11,77,14,80],[11,81,11,84],[11,85,11,137],[11,138,11,145],[12,10,12,13],[12,14,12,66],[12,67,12,74],[12,81,12,84],[12,85,12,137],[12,138,12,145],[13,10,13,13],[13,14,13,66],[6,139,6,145],[7,6,7,45],[7,46,7,53],[7,54,7,60],[7,61,8,71],[7,72,7,79],[7,80,7,86],[7,87,7,126],[7,130,7,145],[8,6,8,45],[6,6,6,60],[6,61,6,71],[6,72,6,126],[6,127,7,129],[6,130,6,136],[6,137,6,138],[8,46,8,60],[8,72,8,86],[8,87,8,145],[5,10,5,23],[5,24,5,27],[5,28,5,41],[3,46,3,76],[3,77,5,78],[3,79,3,94],[3,101,3,104],[3,106,3,120],[3,121,5,131],[5,101,5,104],[5,106,5,120],[1,135,1,145],[2,6,2,41],[2,42,5,45],[2,46,2,94],[2,95,5,100],[2,101,2,145],[3,6,3,9],[3,10,3,23],[3,24,3,27],[3,28,3,41],[1,6,1,18],[1,19,1,46],[1,47,1,50],[1,51,1,86],[1,87,1,90],[1,91,1,92],[1,93,1,134],[3,132,5,134],[3,135,5,145],[4,6,4,41],[4,46,5,76],[4,79,5,94],[4,101,4,120],[5,6,5,9]]}
[null,null,null,null,null,null,"\"Braunschweiger System\"   -   4 gegen 4"]
[null,null,null,null,null,null,null,null,null,null,null,null,null,null,null,null,null,null,null,"TT-Berzirk 6",null,null,null,null,null,null,null,null,null,null,null,null,null,null,null,null,null,null,null,null,null,null,null,null,null,null,null,"-",null,null,null,"Oberfranken Ost",null,null,null,null,null,null,null,null,null,null,null,null,null,null,null,null,null,null,null,null,null,null,null,null,null,null,null,null,null,null,null,null,null,null,null,"-",null,null,null,null,null,"Bezirks-"]
[]
[null,null,null,null,null,null,null,null,null,null," Damen",null,null,null,null,null,null,null,null,null,null,null,null,null,null,null,null,null," Mädchen",null,null,null,null,null,null,null,null,null,null,null,null,null,null,null,null,null,"Bereich",null,null,null,null,null,null,null,null,null,null,null,null,null,null,null,null,null,null,null,null,null,null,null,null,null,null,null,null,null,null,null,null,"Klasse/Gruppe",null,null,null,null,null,null,null,null,null,null,null,null,null,null,null,null,null,null,null,null,null,null,null,null,null,null,"Vorrunde",null,null,null,null,null,null,null,null,null,null,null,null,null,null,{"$f":"TODAY()-183","v":"2018-02-11"},null,null,null,null,null,null,null,null,null,null,"/",null,null,{"$f":"DR4+365","v":"2019-02-11"}]
[null,null,null,null,null,null,null,null,null,null,null,null,null,null,null,null,null,null,null,null,null,null,null,null,null,null,null,null,null,null,null,null,null,null,null,null,null,null,null,null,null,null,null,null,null,null,"Hof-KC-BT/KU",null,null,null,null,null,null,null,null,null,null,null,null,null,null,null,null,null,null,null,null,null,null,null,null,null,null,null,null,null,null,null,null,"D 3"]
[null,null,null,null,null,null,null,null,null,null," Herren",null,null,null,null,null,null,null,null,null,null,null,null,null,null,null,null,null," Jungen",null,null,null,null,null,null,null,null,null,null,null,null,null,null,null,null,null,null,null,null,null,null,null,null,null,null,null,null,null,null,null,null,null,null,null,null,null,null,null,null,null,null,null,null,null,null,null,null,null,null,null,null,null,null,null,null,null,null,null,null,null,null,null,null,null,null,null,null,null,null,null,null,null,null,null,null,null,"Rückrunde"]
[null,null,null,null,null,null,"Heimmannschaft",null,null,null,null,null,null,null,null,null,null,null,null,null,null,null,null,null,null,null,null,null,null,null,null,null,null,null,null,null,null,null,null,null,null,null,null,null,null,null,null,null,null,null,null,null,null,null,null,null,null,null,null,null,null,"gegen",null,null,null,null,null,null,null,null,null,null,"Gastmannschaft",null,null,null,null,null,null,null,null,null,null,null,null,null,null,null,null,null,null,null,null,null,null,null,null,null,null,null,null,null,null,null,null,null,null,null,null,null,null,null,null,null,null,null,null,null,null,null,null,null,null,null,null,null,null,null,null,null,{"$f":"EI32","v":5},null,null,null,null,null,null,":",null,{"$f":"EM32","v":5},null,null,null,null,null,null,{"$f":"IF(EI32=EM32,\"\",IF(EI32>EM32,G7,BU7))","v":""}]
[null,null,null,null,null,null,"Heimmannschaft  ( A )",null,null,null,null,null,null,null,null,null,null,null,null,null,null,null,null,null,null,null,null,null,null,null,null,null,null,null,null,null,null,null,null,null,null,null,null,null,null,null,206,null,null,null,null,null,null,null,97,null,null,null,null,null,null,null,null,null,null,null,null,null,null,null,null,null,206,null,null,null,null,null,null,null,98,null,null,null,null,null,null,"Gastmannschaft  ( B )",null,null,null,null,null,null,null,null,null,null,null,null,null,null,null,null,null,null,null,null,null,null,null,null,null,null,null,null,null,null,null,null,null,null,null,null,null,null,null,null,null,null,"Endergebnis",null,null,null,null,null,null,null,null,null,null,null,null,null,null,null,{"$f":"IF(BL36=\"\",\"\",IF(EI32=EM32,EQ14))","v":"Unentschieden"}]
[null,null,null,null,null,null,null,null,null,null,null,null,null,null,null,null,null,null,null,null,null,null,null,null,null,null,null,null,null,null,null,null,null,null,null,null,null,null,null,null,null,null,null,null,null,null,"Vereins-Nr.",null,null,null,null,null,null,null,null,null,null,null,null,null,null,null,null,null,null,null,null,null,null,null,null,null,"Vereins-Nr."]
[null,null,null,null,null,null,"Mannschaftsaufstellung"]
[null,null,null,null,null,null,"Rang",null,null,null,null,null,null,null,"Heimverein ( Mannschaft A )",null,null,null,null,null,null,null,null,null,null,null,null,null,null,null,null,null,null,null,null,null,null,null,null,null,null,null,null,null,null,null,null,null,null,null,null,null,null,null,null,null,null,null,null,null,null,null,null,null,null,null,null,"Pos.",null,null,null,null,null,null,null,null,null,"Rang",null,null,null,null,null,null,null,"Gastverein ( Mannschaft B )",null,null,null,null,null,null,null,null,null,null,null,null,null,null,null,null,null,null,null,null,null,null,null,null,null,null,null,null,null,null,null,null,null,null,null,null,null,null,null,null,null,null,null,null,null,null,null,null,null,null,null,null,"Pos."]
[null,null,null,null,null,null,"E I N Z E L",null,null,null,"A1",null,null,null,"Spielername A1",null,null,null,null,null,null,null,null,null,null,null,null,null,null,null,null,null,null,null,null,null,null,null,null,null,null,null,null,null,null,null,null,null,null,null,null,null,null,null,null,null,null,null,null,null,null,null,null,null,null,null,null,null,null,null,null,null,null,null,null,null,null,"E I N Z E L",null,null,null,"B1",null,null,null,"Spielername B1",null,null,null,null,null,null,null,null,null,null,null,null,null,null,null,null,null,null,null,null,null,null,null,null,null,null,null,null,null,null,null,null,null,null,null,null,null,null,null,null,null,null,null,null,null,null,null,null,null,null,null,null,null,null,null,null,null,null,null,null,{"$f":"IF(EI32<>EM32,EQ7,EQ8)","v":"Unentschieden"}]
[null,null,null,null,null,null,null,null,null,null,"A2",null,null,null,"Spielername A2",null,null,null,null,null,null,null,null,null,null,null,null,null,null,null,null,null,null,null,null,null,null,null,null,null,null,null,null,null,null,null,null,null,null,null,null,null,null,null,null,null,null,null,null,null,null,null,null,null,null,null,null,null,null,null,null,null,null,null,null,null,null,null,null,null,null,"B2",null,null,null,"Spielername B1",null,null,null,null,null,null,null,null,null,null,null,null,null,null,null,null,null,null,null,null,null,null,null,null,null,null,null,null,null,null,null,null,null,null,null,null,null,null,null,null,null,null,null,null,null,null,null,null,null,null,null,null,null,null,null,null,null,null,null,null,"Sieger"]
[null,null,null,null,null,null,null,null,null,null,"A3",null,null,null,"Spielername A3",null,null,null,null,null,null,null,null,null,null,null,null,null,null,null,null,null,null,null,null,null,null,null,null,null,null,null,null,null,null,null,null,null,null,null,null,null,null,null,null,null,null,null,null,null,null,null,null,null,null,null,null,null,null,null,null,null,null,null,null,null,null,null,null,null,null,"B3",null,null,null,"Spielername B1",null,null,null,null,null,null,null,null,null,null,null,null,null,null,null,null,null,null,null,null,null,null,null,null,null,null,null,null,null,null,null,null,null,null,null,null,null,null,null,null,null,null,null,null,null,null,null,null,null,null,null,null,null,null,null,null,null,null,null,null,"Unentschieden",null,null,null,null,null,null,null,null,null,null,null,null,null,"In den",null,null,null,null,null,null,null,null,null,null,null,null,null,null,null," gelben"]
[null,null,null,null,null,null,null,null,null,null,"A4",null,null,null,"Spielername A4",null,null,null,null,null,null,null,null,null,null,null,null,null,null,null,null,null,null,null,null,null,null,null,null,null,null,null,null,null,null,null,null,null,null,null,null,null,null,null,null,null,null,null,null,null,null,null,null,null,null,null,null,null,null,null,null,null,null,null,null,null,null,null,null,null,null,"B4",null,null,null,"Spielername B1",null,null,null,null,null,null,null,null,null,null,null,null,null,null,null,null,null,null,null,null,null,null,null,null,null,null,null,null,null,null,null,null,null,null,null,null,null,null,null,null,null,null,null,null,null,null,null,null,null,null,null,null,null,null,null,null,null,null,null,null,null,null,null,null,null,null,null,null,null,null,null,null,null,null,"oder",null,null,null,null,null,null,null,null,null,null,null,null,null,null,null,"grünen Feldern"]
[null,null,null,null,null,null,"Doppel",null,null,null,"A1",null,null,null,"Doppelname A1",null,null,null,null,null,null,null,null,null,null,null,null,null,null,null,null,null,null,null,null,null,null,null,null,null,null,null,null,"/",null,null,"Doppelname A2",null,null,null,null,null,null,null,null,null,null,null,null,null,null,null,null,null,null,null,null,null,null,null,null,null,null,null,null,null,null,"Doppel",null,null,null,"B1",null,null,null,"Doppelname B1",null,null,null,null,null,null,null,null,null,null,null,null,null,null,null,null,null,null,null,null,null,null,null,null,null,null,null,null,"/",null,null,"Doppelname B2",null,null,null,null,null,null,null,null,null,null,null,null,null,null,null,null,null,null,null,null,null,null,null,null,null,null,null,null,null,null,null,null,null,null,null,null,null,null,null,null,null,null,"müssen Eintragungen"]
[null,null,null,null,null,null,null,null,null,null,"A2",null,null,null,"Doppelname A3",null,null,null,null,null,null,null,null,null,null,null,null,null,null,null,null,null,null,null,null,null,null,null,null,null,null,null,null,"/",null,null,"Doppelname A4",null,null,null,null,null,null,null,null,null,null,null,null,null,null,null,null,null,null,null,null,null,null,null,null,null,null,null,null,null,null,null,null,null,null,"B2",null,null,null,"Doppelname B3",null,null,null,null,null,null,null,null,null,null,null,null,null,null,null,null,null,null,null,null,null,null,null,null,null,null,null,null,"/",null,null,"Doppelname B4",null,null,null,null,null,null,null,null,null,null,null,null,null,null,null,null,null,null,null,null,null,null,null,null,null,null,null,null,null,null,null,null,null,null,null,null,null,null,null,null,null,null,"vorgenommen werden!"]
[null,null,null,null,null,null,null,null,null,null,null,null,null,null,null,null,null,null,null,null,null,null,null,null,null,null,null,null,null,null,null,null,null,null,null,null,null,null,null,null,null,null,null,null,null,null,null,null,null,null,null,null,null,null,null,null,null,null,null,null,null,null,null,null,null,null,null,null,null,null,null,null,null,null,null,null,null,null,null,null,null,null,null,null,null,null,null,null,null,null,null,null,null,null,null,null,null,null,null,null,null,null,null,null,null,null,null,null,null,null,null,null,null,null,null,null,null,null,null,null,null,null,null,null,null,null,null,null,null,null,null,null,null,null,null,null,null,null,null,null,null,null,null,null,null,null,null,null,null,null,null,null,null,null,null,null,null,null,null,null,"Rest wird automatisch gemacht"]
[null,null,null,null,null,null,"Spielfolge",null,null,null,null,null,null,null,null,null,"Heimverein ( Mannschaft A )",null,null,null,null,null,null,null,null,null,null,null,null,null,null,null,null,null,null,null,null,null,null,null,null,null,null,null,null,null,null,"Gastverein ( Mannschaft B )",null,null,null,null,null,null,null,null,null,null,null,null,null,null,null,null,null,null,null,null,null,null,null,null,null,null,null,null,null,null,"1. Satz",null,null,null,null,null,null,null,null,null,"2. Satz",null,null,null,null,null,null,null,null,null,"3. Satz",null,null,null,null,null,null,null,null,null,"4. Satz",null,null,null,null,null,null,null,null,null,"5. Satz",null,null,null,null,null,null,null,null,null,"Sätze",null,null,null,null,null,null,null,null,null,"Spiele",null,null,null,null,null,null,null,{"$f":"G7","v":"Heimmannschaft"}]
[null,null,null,null,null,null,"Doppel",null,null,null,null,null,null,null,null,null,null,{"$f":"O16","v":"Doppelname A1"},null,null,null,null,null,null,null,null,null,null,null,null,null,null,null,null,null,null,null,null,null,null,null,null,null,null,null,null,null,null,{"$f":"CH16","v":"Doppelname B1"},null,null,null,null,null,null,null,null,null,null,null,null,null,null,null,null,null,null,null,null,null,null,null,null,null,null,null,null,null,11,null,null,null,null,13,null,null,null,null,11,null,null,null,null,13,null,null,null,null,11,null,null,null,null,9,null,null,null,null,11,null,null,null,null,9,null,null,null,null,11,null,null,null,null,9,null,null,null,null,{"$f":"IF(CA20=\"\",\"\",IF(CA20>CF20,1,0)+IF(CK20>CP20,1,0)+IF(CU20>CZ20,1,0)+IF(DE20>DJ20,1,0)+IF(DO20>DT20,1,0))","v":3},null,null,null,null,{"$f":"IF(CA20=\"\",\"\",IF(CA20<CF20,1,0)+IF(CK20<CP20,1,0)+IF(CU20<CZ20,1,0)+IF(DE20<DJ20,1,0)+IF(DO20<DT20,1,0))","v":2},null,null,null,null,{"$f":"IF(DY20=\"\",\"\",IF(DY20>ED20,1,0))","v":1},null,null,null,{"$f":"IF(DY20=\"\",\"\",IF(DY20<ED20,1,0))","v":0},null,null,null,{"$f":"SUM(CA20:CE31)","v":110},{"$f":"IF(DY20=3,1,0)","v":1},{"$f":"IF(ED20=3,1,0)","v":0}]
[null,null,null,null,null,null,"A1 - B1",null,null,null,null,null,null,null,null,null,null,{"$f":"AU16","v":"Doppelname A2"},null,null,null,null,null,null,null,null,null,null,null,null,null,null,null,null,null,null,null,null,null,null,null,null,null,null,null,null,null,null,{"$f":"DN16","v":"Doppelname B2"},null,null,null,null,null,null,null,null,null,null,null,null,null,null,null,null,null,null,null,null,null,null,null,null,null,null,null,null,null,null,null,null,null,null,null,null,null,null,null,null,null,null,null,null,null,null,null,null,null,null,null,null,null,null,null,null,null,null,null,null,null,null,null,null,null,null,null,null,null,null,null,null,null,null,null,null,null,null,null,null,null,null,null,null,null,null,null,null,null,null,null,null,null,null,null,null,null,{"$f":"SUM(CK20:CO31)","v":110},null,null,null,null,null,null,null,null,null,null,null,null,null,"Um nicht versehentlich irgendwelche Formeln"]
[null,null,null,null,null,null,"Doppel",null,null,null,null,null,null,null,null,null,null,{"$f":"O17","v":"Doppelname A3"},null,null,null,null,null,null,null,null,null,null,null,null,null,null,null,null,null,null,null,null,null,null,null,null,null,null,null,null,null,null,{"$f":"CH17","v":"Doppelname B3"},null,null,null,null,null,null,null,null,null,null,null,null,null,null,null,null,null,null,null,null,null,null,null,null,null,null,null,null,null,11,null,null,null,null,9,null,null,null,null,11,null,null,null,null,9,null,null,null,null,11,null,null,null,null,13,null,null,null,null,11,null,null,null,null,13,null,null,null,null,11,null,null,null,null,13,null,null,null,null,{"$f":"IF(CA22=\"\",\"\",IF(CA22>CF22,1,0)+IF(CK22>CP22,1,0)+IF(CU22>CZ22,1,0)+IF(DE22>DJ22,1,0)+IF(DO22>DT22,1,0))","v":2},null,null,null,null,{"$f":"IF(CA22=\"\",\"\",IF(CA22<CF22,1,0)+IF(CK22<CP22,1,0)+IF(CU22<CZ22,1,0)+IF(DE22<DJ22,1,0)+IF(DO22<DT22,1,0))","v":3},null,null,null,null,{"$f":"IF(DY22=\"\",\"\",IF(DY22>ED22,1,0))","v":0},null,null,null,{"$f":"IF(DY22=\"\",\"\",IF(DY22<ED22,1,0))","v":1},null,null,null,{"$f":"SUM(CU20:CY31)","v":110},{"$f":"IF(DY22=3,1,0)","v":0},{"$f":"IF(ED22=3,1,0)","v":1},null,null,null,null,null,null,null,null,null,null,null,"zu löschen, sollte der Blattschutz immer auf"]
[null,null,null,null,null,null,"A2 - B2",null,null,null,null,null,null,null,null,null,null,{"$f":"AU17","v":"Doppelname A4"},null,null,null,null,null,null,null,null,null,null,null,null,null,null,null,null,null,null,null,null,null,null,null,null,null,null,null,null,null,null,{"$f":"DN17","v":"Doppelname B4"},null,null,null,null,null,null,null,null,null,null,null,null,null,null,null,null,null,null,null,null,null,null,null,null,null,null,null,null,null,null,null,null,null,null,null,null,null,null,null,null,null,null,null,null,null,null,null,null,null,null,null,null,null,null,null,null,null,null,null,null,null,null,null,null,null,null,null,null,null,null,null,null,null,null,null,null,null,null,null,null,null,null,null,null,null,null,null,null,null,null,null,null,null,null,null,null,null,{"$f":"SUM(DE20:DI31)","v":22},null,null,null,null,null,null,null,null,null,null,null,null,null,"\"EIN\" gestellt bleiben; nur wenn unbeding nötig"]
[null,null,null,null,null,null,"E A1-B1",null,null,null,null,null,null,null,null,null,{"$f":"O12","v":"Spielername A1"},null,null,null,null,null,null,null,null,null,null,null,null,null,null,null,null,null,null,null,null,null,null,null,null,null,null,null,null,null,null,{"$f":"CH12","v":"Spielername B1"},null,null,null,null,null,null,null,null,null,null,null,null,null,null,null,null,null,null,null,null,null,null,null,null,null,null,null,null,null,null,11,null,null,null,null,8,null,null,null,null,11,null,null,null,null,8,null,null,null,null,11,null,null,null,null,8,null,null,null,null,null,null,null,null,null,null,null,null,null,null,null,null,null,null,null,null,null,null,null,null,{"$f":"IF(CA24=\"\",\"\",IF(CA24>CF24,1,0)+IF(CK24>CP24,1,0)+IF(CU24>CZ24,1,0)+IF(DE24>DJ24,1,0)+IF(DO24>DT24,1,0))","v":3},null,null,null,null,{"$f":"IF(CA24=\"\",\"\",IF(CA24<CF24,1,0)+IF(CK24<CP24,1,0)+IF(CU24<CZ24,1,0)+IF(DE24<DJ24,1,0)+IF(DO24<DT24,1,0))","v":0},null,null,null,null,{"$f":"IF(DY24=\"\",\"\",IF(DY24>ED24,1,0))","v":1},null,null,null,{"$f":"IF(DY24=\"\",\"\",IF(DY24<ED24,1,0))","v":0},null,null,null,{"$f":"SUM(DO20:DS31)","v":22},{"$f":"IF(DY24=3,1,0)","v":1},{"$f":"IF(ED24=3,1,0)","v":0},null,null,null,null,null,null,null,null,null,null,null,"kann man den Blattschautz mit \"AUS\" aufheben."]
[null,null,null,null,null,null,"E A2-B2",null,null,null,null,null,null,null,null,null,{"$f":"O13","v":"Spielername A2"},null,null,null,null,null,null,null,null,null,null,null,null,null,null,null,null,null,null,null,null,null,null,null,null,null,null,null,null,null,null,{"$f":"CH13","v":"Spielername B1"},null,null,null,null,null,null,null,null,null,null,null,null,null,null,null,null,null,null,null,null,null,null,null,null,null,null,null,null,null,null,11,null,null,null,null,13,null,null,null,null,11,null,null,null,null,13,null,null,null,null,11,null,null,null,null,13,null,null,null,null,null,null,null,null,null,null,null,null,null,null,null,null,null,null,null,null,null,null,null,null,{"$f":"IF(CA25=\"\",\"\",IF(CA25>CF25,1,0)+IF(CK25>CP25,1,0)+IF(CU25>CZ25,1,0)+IF(DE25>DJ25,1,0)+IF(DO25>DT25,1,0))","v":0},null,null,null,null,{"$f":"IF(CA25=\"\",\"\",IF(CA25<CF25,1,0)+IF(CK25<CP25,1,0)+IF(CU25<CZ25,1,0)+IF(DE25<DJ25,1,0)+IF(DO25<DT25,1,0))","v":3},null,null,null,null,{"$f":"IF(DY25=\"\",\"\",IF(DY25>ED25,1,0))","v":0},null,null,null,{"$f":"IF(DY25=\"\",\"\",IF(DY25<ED25,1,0))","v":1},null,null,null,{"$f":"SUM(EQ20:EQ24)","v":374},{"$f":"IF(DY25=3,1,0)","v":0},{"$f":"IF(ED25=3,1,0)","v":1}]
[null,null,null,null,null,null,"E A3-B3",null,null,null,null,null,null,null,null,null,{"$f":"O14","v":"Spielername A3"},null,null,null,null,null,null,null,null,null,null,null,null,null,null,null,null,null,null,null,null,null,null,null,null,null,null,null,null,null,null,{"$f":"CH14","v":"Spielername B1"},null,null,null,null,null,null,null,null,null,null,null,null,null,null,null,null,null,null,null,null,null,null,null,null,null,null,null,null,null,null,11,null,null,null,null,8,null,null,null,null,11,null,null,null,null,8,null,null,null,null,11,null,null,null,null,8,null,null,null,null,null,null,null,null,null,null,null,null,null,null,null,null,null,null,null,null,null,null,null,null,{"$f":"IF(CA26=\"\",\"\",IF(CA26>CF26,1,0)+IF(CK26>CP26,1,0)+IF(CU26>CZ26,1,0)+IF(DE26>DJ26,1,0)+IF(DO26>DT26,1,0))","v":3},null,null,null,null,{"$f":"IF(CA26=\"\",\"\",IF(CA26<CF26,1,0)+IF(CK26<CP26,1,0)+IF(CU26<CZ26,1,0)+IF(DE26<DJ26,1,0)+IF(DO26<DT26,1,0))","v":0},null,null,null,null,{"$f":"IF(DY26=\"\",\"\",IF(DY26>ED26,1,0))","v":1},null,null,null,{"$f":"IF(DY26=\"\",\"\",IF(DY26<ED26,1,0))","v":0},null,null,null,null,1,0,null,null,null,null,null,null,null,null,null,null,"\"Heimeintrag verdeckt\" kann man dann anklicken"]
[null,null,null,null,null,null,"E A4-B4",null,null,null,null,null,null,null,null,null,{"$f":"O15","v":"Spielername A4"},null,null,null,null,null,null,null,null,null,null,null,null,null,null,null,null,null,null,null,null,null,null,null,null,null,null,null,null,null,null,{"$f":"CH15","v":"Spielername B1"},null,null,null,null,null,null,null,null,null,null,null,null,null,null,null,null,null,null,null,null,null,null,null,null,null,null,null,null,null,null,11,null,null,null,null,9,null,null,null,null,11,null,null,null,null,9,null,null,null,null,11,null,null,null,null,9,null,null,null,null,null,null,null,null,null,null,null,null,null,null,null,null,null,null,null,null,null,null,null,null,3,null,null,null,null,0,null,null,null,null,1,null,null,null,0,null,null,null,{"$f":"BU7","v":"Gastmannschaft"},1,0,null,null,null,null,null,null,null,null,null,null,"wenn man den eigenen Eintrag verdecken will."]
[null,null,null,null,null,null,"E A1-B2",null,null,null,null,null,null,null,null,null,{"$f":"O12","v":"Spielername A1"},null,null,null,null,null,null,null,null,null,null,null,null,null,null,null,null,null,null,null,null,null,null,null,null,null,null,null,null,null,null,{"$f":"CH13","v":"Spielername B1"},null,null,null,null,null,null,null,null,null,null,null,null,null,null,null,null,null,null,null,null,null,null,null,null,null,null,null,null,null,null,11,null,null,null,null,9,null,null,null,null,11,null,null,null,null,9,null,null,null,null,11,null,null,null,null,9,null,null,null,null,null,null,null,null,null,null,null,null,null,null,null,null,null,null,null,null,null,null,null,null,3,null,null,null,null,0,null,null,null,null,1,null,null,null,0,null,null,null,{"$f":"SUM(CF20:CJ31)","v":108},1,0,null,null,null,null,null,null,null,null,null,null,"\"Heimeintrag sichtbar\" anklicken; dadurch wird"]
[null,null,null,null,null,null,"E A2-B1",null,null,null,null,null,null,null,null,null,{"$f":"O13","v":"Spielername A2"},null,null,null,null,null,null,null,null,null,null,null,null,null,null,null,null,null,null,null,null,null,null,null,null,null,null,null,null,null,null,{"$f":"CH12","v":"Spielername B1"},null,null,null,null,null,null,null,null,null,null,null,null,null,null,null,null,null,null,null,null,null,null,null,null,null,null,null,null,null,null,11,null,null,null,null,13,null,null,null,null,11,null,null,null,null,13,null,null,null,null,11,null,null,null,null,13,null,null,null,null,null,null,null,null,null,null,null,null,null,null,null,null,null,null,null,null,null,null,null,null,0,null,null,null,null,3,null,null,null,null,0,null,null,null,1,null,null,null,{"$f":"SUM(CP20:CT31)","v":108},0,1,null,null,null,null,null,null,null,null,null,null,"der Eintrag wieder für den Gast einsehbar"]
[null,null,null,null,null,null,"E A3-B4",null,null,null,null,null,null,null,null,null,{"$f":"O14","v":"Spielername A3"},null,null,null,null,null,null,null,null,null,null,null,null,null,null,null,null,null,null,null,null,null,null,null,null,null,null,null,null,null,null,{"$f":"CH15","v":"Spielername B1"},null,null,null,null,null,null,null,null,null,null,null,null,null,null,null,null,null,null,null,null,null,null,null,null,null,null,null,null,null,null,11,null,null,null,null,13,null,null,null,null,11,null,null,null,null,13,null,null,null,null,11,null,null,null,null,13,null,null,null,null,null,null,null,null,null,null,null,null,null,null,null,null,null,null,null,null,null,null,null,null,0,null,null,null,null,3,null,null,null,null,0,null,null,null,1,null,null,null,{"$f":"SUM(CZ20:DD31)","v":108},0,1]
[null,null,null,null,null,null,"E A4-B3",null,null,null,null,null,null,null,null,null,{"$f":"O15","v":"Spielername A4"},null,null,null,null,null,null,null,null,null,null,null,null,null,null,null,null,null,null,null,null,null,null,null,null,null,null,null,null,null,null,{"$f":"CH14","v":"Spielername B1"},null,null,null,null,null,null,null,null,null,null,null,null,null,null,null,null,null,null,null,null,null,null,null,null,null,null,null,null,null,null,11,null,null,null,null,13,null,null,null,null,11,null,null,null,null,13,null,null,null,null,11,null,null,null,null,13,null,null,null,null,null,null,null,null,null,null,null,null,null,null,null,null,null,null,null,null,null,null,null,null,0,null,null,null,null,3,null,null,null,null,0,null,null,null,1,null,null,null,{"$f":"SUM(DJ20:DN31)","v":22},0,1]
[null,null,null,null,null,null,null,null,null,null,null,null,null,null,null,null,null,null,null,null,null,null,null,null,null,null,null,null,null,null,null,null,null,null,null,null,null,null,null,null,null,null,null,null,null,null,null,null,null,null,null,null,null,null,null,null,null,null,null,null,null,null,null,null,null,null,null,null,null,null,null,null,null,null,null,null,null,null,null,null,null,null,null,null,null,null,null,null,null,null,null,null,null,null,null,null,null,null,null,null,null,null,null,null,null,null,null,null,null,null,null,null,null,null,null,null,null,null,null,null,null,null,null,null,null,null,null,null,{"$f":"IF(DY20=\"\",\"\",SUM(DY20:EC31))","v":17},null,null,null,null,{"$f":"IF(ED20=\"\",\"\",SUM(ED20:EH31))","v":17},null,null,null,null,{"$f":"IF(EI20=\"\",\"\",SUM(EI20:EL31))","v":5},null,null,null,{"$f":"IF(EM20=\"\",\"\",SUM(EM20:EP31))","v":5},null,null,null,{"$f":"SUM(DT20:DX31)","v":22}]
[null,null,null,null,null,null,"Spielbeginn :",null,null,null,null,null,null,null,null,null,null,null,null,null,"20:15:00",null,null,null,null,null,null,null,null,null,null,"Uhr",null,null,null,null,null,null,null,null,null,"Spielende :",null,null,null,null,null,null,null,null,null,null,null,null,null,"22:10:00",null,null,null,null,null,null,null,null,null,null,"Uhr",null,null,null,null,null,null,null,null,null,null,null,null,null,null,null,null,null,null,null,null,null,{"$f":"EQ25","v":374},null,null,null,null,null,":",null,{"$f":"EQ33","v":368},null,null,null,null,null," Bälle",null,null,null,null,null,null,null,null,null,null,null,null,null,null,null,null,null,null,null,null,null,null,null,null,null,null,null,null,null,null,null,null,null,null,null,null,null,null,null,null,null,null,null,{"$f":"SUM(EQ28:EQ32)","v":368},{"$f":"SUM(ER20:ER31)","v":5},{"$f":"SUM(ES20:ES31)","v":5}]
[]
[]
[null,null,null,null,null,null,{"$f":"IF(BL36=BS36,\"\",IF(BL36>BS36,EQ13,EQ15))","v":""},null,null,null,null,null,null,null,null,null,null,":",null,{"$f":"EQ12","v":"Unentschieden"},null,null,null,null,null,null,null,null,null,null,null,null,null,null,null,null,null,null,null,null,null,null,null,null,null,null,null,null,null,null,null,null,null,null,null,null,"mit :",null,null,null,null,null,null,{"$f":"IF(EI32>EM32,EI32,EM32)","v":5},null,null,null,null,":",null,{"$f":"IF(EI32<EM32,EI32,EM32)","v":5},null,null,null,null,"Spielen",null,null,null,null,null,null,null,null,null,null,null,"und",null,null,null,null,null,null,{"$f":"IF(EI32>=EM32,DY32,ED32)","v":17},null,null,null,null,":",null,{"$f":"IF(EI32<EM32,DY32,ED32)","v":17},null,null,null,null,"Sätzen",null,null,null,null,null,null,null,null,null,null,"und",null,null,null,null,null,null,{"$f":"IF(EI32>=EM32,EQ25,EQ33)","v":374},null,null,null,null,null,":",null,{"$f":"IF(EI32<EM32,EQ25,EQ33)","v":368},null,null,null,null,null," Bälle"]
[]
[null,null,null,null,null,null,"Spielort",null,null,null,null,null,null,null,null,":",null,"Heimspielort",null,null,null,null,null,null,null,null,null,null,null,null,null,null,null,null,null,null,null,null,null,null,null,null,null,null,null,null,null,null,null,null,null,null,null,null,null,null,null,null,null,null,null,null,null,null,null,null,null,{"$f":"G7","v":"Heimmannschaft"},null,null,null,null,null,null,null,null,null,null,null,null,null,null,null,null,null,null,null,null,null,"Unterschriften Mannschaftsführer",null,null,null,null,null,null,null,null,null,null,null,null,null,null,null,null,null,null,null,null,null,null,null,null,null,null,null,null,null,null,null,null,null,null,{"$f":"BU7","v":"Gastmannschaft"}]
[]
[]
[]
[]
[null,null,null,null,null,null,"Datum",null,null,null,null,null,null,null,null,":",null,{"$f":"TODAY()","v":"2018-08-13"}]
[]
[]
[]
[null,null,null,null,null,null,null,null,null,null,null,null,null,null,null,null,null,null,null,null,null,null,null,null,null,null,null,null,null,null,null,null,null,null,null,null,null,null,null,null,null,null,null,null,{"$f":"T2","v":"TT-Berzirk 6"}]
[]
[null,null,null,null,null,null,"X",null,null,null,null,"kein Protest"]
[null,null,null,null,null,null,null,null,null,null,null,null,null,null,null,null,null,null,null,null,null,null,null,null,null,null,null,null,null,null,null,null,null,null,null,null,null,null,null,null,null,null,null,null,{"$f":"AZ2","v":"Oberfranken Ost"}]
[]
[null,null,null,null,null,null,null,null,null,null,null,null,null,null,null,null,null,null,null,null,null,null,null,null,null,null,null,null,null,null,null,null,null,null,null,null,null,null,null,null,null,null,null,null,"Bereich"]
[]
[null,null,null,null,null,null,null,null,null,null,null,"Protest - siehe Anlage"]
[null,null,null,null,null,null,null,null,null,null,null,null,null,null,null,null,null,null,null,null,null,null,null,null,null,null,null,null,null,null,null,null,null,null,null,null,null,null,null,null,null,null,null,null,{"$f":"AU5","v":"Hof-KC-BT/KU"}]
[null,null,null,null,null,null,null,null,null,null,null,null,null,null,null,null,null,null,null,null,null,null,null,null,null,null,null,null,null,null,null,null,null,null,null,null,null,null,null,null,null,null,null,null,null,null,null,null,null,null,null,null,null,null,null,null,null,null,null,null,null,null,null,null,null,null,null,"Mf.:",null,null,null,null,"Spielführername Heim",null,null,null,null,null,null,null,null,null,null,null,null,null,null,null,null,null,null,null,null,null,null,null,null,null,null,null,null,null,null,null,null,null,null,null,"Mf.:",null,null,null,null,"Spielführername GaSst"]
[]
[]
[]
[null,null,null,null,null,null,"Staffelleiter (3er)",null,null,null,null,null,null,null,null,null,null,null,null,null,null,null,null,null,":","Name, Vorname",null,null,null,null,null,null,null,null,null,null,null,null,null,null,null,null,null,null,null,null,null,null,"Tel.-Nr.:",null,null,null,null,null,null,null,"00000-000000",null,null,null,null,null,null,null,null,null,null,null,null,null,null,null,null,"Mobil:",null,null,null,null,null,"0123-1234567",null,null,null,null,null,null,null,null,null,null,null,null,null,null,null,null,"Email:",null,null,null,null,null,null,"Vorname.Name@ttbezirk6.de"]
[null,null,null,null,null,null,"Mannschaftsführer",null,null,null,null,null,null,null,null,null,null,null,null,null,null,null,null,null,":","Name, Vorname",null,null,null,null,null,null,null,null,null,null,null,null,null,null,null,null,null,null,null,null,null,null,"Tel.-Nr.:",null,null,null,null,null,null,null,"00000-000001",null,null,null,null,null,null,null,null,null,null,null,null,null,null,null,null,"Mobil:",null,null,null,null,null,"0123-4567890",null,null,null,null,null,null,null,null,null,null,null,null,null,null,null,null,"Email:",null,null,null,null,null,null,"abcdefghi@sowieso.de"]
["creadet by Gerhard Nidetzky"]

{"sheet":"Spielleiter","index":9,"n_rows":37,"n_cols":104,"rows_kept":37,"cut":false,"hidden":false,"merged":[[1,0,1,145],[2,6,2,23],[2,25,2,47],[2,48,2,55],[2,56,2,72],[2,73,2,78],[2,79,2,95],[2,96,2,102],[2,103,2,145],[3,96,3,102],[3,103,3,145],[5,6,5,23],[5,25,5,47],[5,48,5,55],[5,56,5,72],[5,73,5,78],[5,79,5,95],[5,96,5,102],[5,103,5,145],[3,6,3,23],[3,25,3,47],[3,48,3,55],[3,56,3,72],[3,73,3,78],[3,79,3,95],[6,96,6,102],[6,103,6,145],[8,6,8,23],[8,25,8,47],[8,48,8,55],[8,56,8,72],[8,73,8,78],[8,79,8,95],[8,96,8,102],[8,103,8,145],[6,6,6,23],[6,25,6,47],[6,48,6,55],[6,56,6,72],[6,73,6,78],[6,79,6,95],[9,96,9,102],[9,103,9,145],[11,6,11,23],[11,25,11,47],[11,48,11,55],[11,56,11,72],[11,73,11,78],[11,79,11,95],[11,96,11,102],[11,103,11,145],[9,6,9,23],[9,25,9,47],[9,48,9,55],[9,56,9,72],[9,73,9,78],[9,79,9,95],[12,96,12,102],[12,103,12,145],[14,6,14,23],[14,25,14,47],[14,48,14,55],[14,56,14,72],[14,73,14,78],[14,79,14,95],[14,96,14,102],[14,103,14,145],[12,6,12,23],[12,25,12,47],[12,48,12,55],[12,56,12,72],[12,73,12,78],[12,79,12,95],[15,96,15,102],[15,103,15,145],[17,6,17,23],[17,25,17,47],[17,48,17,55],[17,56,17,72],[17,73,17,78],[17,79,17,95],[17,96,17,102],[17,103,17,145],[15,6,15,23],[15,25,15,47],[15,48,15,55],[15,56,15,72],[15,73,15,78],[15,79,15,95],[18,96,18,102],[18,103,18,145],[20,6,20,23],[20,25,20,47],[20,48,20,55],[20,56,20,72],[20,73,20,78],[20,79,20,95],[20,96,20,102],[20,103,20,145],[18,6,18,23],[18,25,18,47],[18,48,18,55],[18,56,18,72],[18,73,18,78],[18,79,18,95],[21,96,21,102],[21,103,21,145],[23,6,23,23],[23,25,23,47],[23,48,23,55],[23,56,23,72],[23,73,23,78],[23,79,23,95],[23,96,23,102],[23,103,23,145],[21,6,21,23],[21,25,21,47],[21,48,21,55],[21,56,21,72],[21,73,21,78],[21,79,21,95],[24,96,24,102],[24,103,24,145],[26,6,26,23],[26,25,26,47],[26,48,26,55],[26,56,26,72],[26,73,26,78],[26,79,26,95],[26,96,26,102],[26,103,26,145],[24,6,24,23],[24,25,24,47],[24,48,24,55],[24,56,24,72],[24,73,24,78],[24,79,24,95],[27,96,27,102],[27,103,27,145],[29,6,29,23],[29,25,29,47],[29,48,29,55],[29,56,29,72],[29,73,29,78],[29,79,29,95],[29,96,29,102],[29,103,29,145],[27,6,27,23],[27,25,27,47],[27,48,27,55],[27,56,27,72],[27,73,27,78],[27,79,27,95],[30,96,30,102],[30,103,30,145],[32,6,32,23],[32,25,32,47],[32,48,32,55],[32,56,32,72],[32,73,32,78],[32,79,32,95],[32,96,32,102],[32,103,32,145],[30,6,30,23],[30,25,30,47],[30,48,30,55],[30,56,30,72],[30,73,30,78],[30,79,30,95],[36,96,36,102],[36,103,36,145],[36,6,36,23],[36,25,36,47],[36,48,36,55],[36,56,36,72],[36,73,36,78],[36,79,36,95],[33,96,33,102],[33,103,33,145],[35,6,35,23],[35,25,35,47],[35,48,35,55],[35,56,35,72],[35,73,35,78],[35,79,35,95],[35,96,35,102],[35,103,35,145],[33,6,33,23],[33,25,33,47],[33,48,33,55],[33,56,33,72],[33,73,33,78],[33,79,33,95]]}
[]
[]
[null,null,null,null,null,null," Staffelleiter",null,null,null,null,null,null,null,null,null,null,null,null,null,null,null,null,null,":","Daniel Geßenich",null,null,null,null,null,null,null,null,null,null,null,null,null,null,null,null,null,null,null,null,null,null,"Tel.-Nr.:",null,null,null,null,null,null,null,null,null,null,null,null,null,null,null,null,null,null,null,null,null,null,null,null,"Mobil:",null,null,null,null,null,"0176-27425593",null,null,null,null,null,null,null,null,null,null,null,null,null,null,null,null,"Email:",null,null,null,null,null,null,"daniel.gessenich@ttbezirk6.de"]
[null,null,null,null,null,null,"Mannschaftsführer",null,null,null,null,null,null,null,null,null,null,null,null,null,null,null,null,null,":",null,null,null,null,null,null,null,null,null,null,null,null,null,null,null,null,null,null,null,null,null,null,null,"Tel.-Nr.:",null,null,null,null,null,null,null,null,null,null,null,null,null,null,null,null,null,null,null,null,null,null,null,null,"Mobil:",null,null,null,null,null,null,null,null,null,null,null,null,null,null,null,null,null,null,null,null,null,null,"Email:"]
[]
[null,null,null,null,null,null," Staffelleiter",null,null,null,null,null,null,null,null,null,null,null,null,null,null,null,null,null,":","Edgar Kraus",null,null,null,null,null,null,null,null,null,null,null,null,null,null,null,null,null,null,null,null,null,null,"Tel.-Nr.:",null,null,null,null,null,null,null,"09261-4644",null,null,null,null,null,null,null,null,null,null,null,null,null,null,null,null,"Mobil:",null,null,null,null,null,"0151-54042886",null,null,null,null,null,null,null,null,null,null,null,null,null,null,null,null,"Email:",null,null,null,null,null,null,"edgar.kraus@ttbezirk6.de"]
[null,null,null,null,null,null,"Mannschaftsführer",null,null,null,null,null,null,null,null,null,null,null,null,null,null,null,null,null,":",null,null,null,null,null,null,null,null,null,null,null,null,null,null,null,null,null,null,null,null,null,null,null,"Tel.-Nr.:",null,null,null,null,null,null,null,null,null,null,null,null,null,null,null,null,null,null,null,null,null,null,null,null,"Mobil:",null,null,null,null,null,null,null,null,null,null,null,null,null,null,null,null,null,null,null,null,null,null,"Email:"]
[]
[null,null,null,null,null,null," Staffelleiter",null,null,null,null,null,null,null,null,null,null,null,null,null,null,null,null,null,":","Thomas Wahl",null,null,null,null,null,null,null,null,null,null,null,null,null,null,null,null,null,null,null,null,null,null,"Tel.-Nr.:",null,null,null,null,null,null,null,"09254-1666",null,null,null,null,null,null,null,null,null,null,null,null,null,null,null,null,"Mobil:",null,null,null,null,null,"0175-2621052",null,null,null,null,null,null,null,null,null,null,null,null,null,null,null,null,"Email:",null,null,null,null,null,null,"thomas.wahl63@ttbezirk6.de"]
[null,null,null,null,null,null,"Mannschaftsführer",null,null,null,null,null,null,null,null,null,null,null,null,null,null,null,null,null,":",null,null,null,null,null,null,null,null,null,null,null,null,null,null,null,null,null,null,null,null,null,null,null,"Tel.-Nr.:",null,null,null,null,null,null,null,null,null,null,null,null,null,null,null,null,null,null,null,null,null,null,null,null,"Mobil:",null,null,null,null,null,null,null,null,null,null,null,null,null,null,null,null,null,null,null,null,null,null,"Email:"]
[]
[null,null,null,null,null,null," Staffelleiter",null,null,null,null,null,null,null,null,null,null,null,null,null,null,null,null,null,":","Peter Hoffmann",null,null,null,null,null,null,null,null,null,null,null,null,null,null,null,null,null,null,null,null,null,null,"Tel.-Nr.:",null,null,null,null,null,null,null,null,null,null,null,null,null,null,null,null,null,null,null,null,null,null,null,null,"Mobil:",null,null,null,null,null,null,null,null,null,null,null,null,null,null,null,null,null,null,null,null,null,null,"Email:",null,null,null,null,null,null,"peter.hoffmann@ttbezirk6.de"]
[null,null,null,null,null,null,"Mannschaftsführer",null,null,null,null,null,null,null,null,null,null,null,null,null,null,null,null,null,":",null,null,null,null,null,null,null,null,null,null,null,null,null,null,null,null,null,null,null,null,null,null,null,"Tel.-Nr.:",null,null,null,null,null,null,null,null,null,null,null,null,null,null,null,null,null,null,null,null,null,null,null,null,"Mobil:",null,null,null,null,null,null,null,null,null,null,null,null,null,null,null,null,null,null,null,null,null,null,"Email:"]
[]
[null,null,null,null,null,null," Staffelleiter",null,null,null,null,null,null,null,null,null,null,null,null,null,null,null,null,null,":","Sebastian Kaske",null,null,null,null,null,null,null,null,null,null,null,null,null,null,null,null,null,null,null,null,null,null,"Tel.-Nr.:",null,null,null,null,null,null,null,null,null,null,null,null,null,null,null,null,null,null,null,null,null,null,null,null,"Mobil:",null,null,null,null,null,"0160/99704271",null,null,null,null,null,null,null,null,null,null,null,null,null,null,null,null,"Email:",null,null,null,null,null,null,"sebastian.kaske@ttbezirk6.de"]
[null,null,null,null,null,null,"Mannschaftsführer",null,null,null,null,null,null,null,null,null,null,null,null,null,null,null,null,null,":",null,null,null,null,null,null,null,null,null,null,null,null,null,null,null,null,null,null,null,null,null,null,null,"Tel.-Nr.:",null,null,null,null,null,null,null,null,null,null,null,null,null,null,null,null,null,null,null,null,null,null,null,null,"Mobil:",null,null,null,null,null,null,null,null,null,null,null,null,null,null,null,null,null,null,null,null,null,null,"Email:"]
[]
[null,null,null,null,null,null," Staffelleiter",null,null,null,null,null,null,null,null,null,null,null,null,null,null,null,null,null,":","Günther Hanna",null,null,null,null,null,null,null,null,null,null,null,null,null,null,null,null,null,null,null,null,null,null,"Tel.-Nr.:",null,null,null,null,null,null,null,"09261-20295",null,null,null,null,null,null,null,null,null,null,null,null,null,null,null,null,"Mobil:",null,null,null,null,null,"0173 294 2773",null,null,null,null,null,null,null,null,null,null,null,null,null,null,null,null,"Email:",null,null,null,null,null,null,"guenther.hanna@ttbezirk6.de"]
[null,null,null,null,null,null,"Mannschaftsführer",null,null,null,null,null,null,null,null,null,null,null,null,null,null,null,null,null,":",null,null,null,null,null,null,null,null,null,null,null,null,null,null,null,null,null,null,null,null,null,null,null,"Tel.-Nr.:",null,null,null,null,null,null,null,null,null,null,null,null,null,null,null,null,null,null,null,null,null,null,null,null,"Mobil:",null,null,null,null,null,null,null,null,null,null,null,null,null,null,null,null,null,null,null,null,null,null,"Email:"]
[]
[null,null,null,null,null,null," Staffelleiter",null,null,null,null,null,null,null,null,null,null,null,null,null,null,null,null,null,":","Jan Bodenschlägel",null,null,null,null,null,null,null,null,null,null,null,null,null,null,null,null,null,null,null,null,null,null,"Tel.-Nr.:",null,null,null,null,null,null,null,null,null,null,null,null,null,null,null,null,null,null,null,null,null,null,null,null,"Mobil:",null,null,null,null,null,"0176/31754640",null,null,null,null,null,null,null,null,null,null,null,null,null,null,null,null,"Email:",null,null,null,null,null,null,"jan.bodenschlaegel@ttbezirk6.de"]
[null,null,null,null,null,null,"Mannschaftsführer",null,null,null,null,null,null,null,null,null,null,null,null,null,null,null,null,null,":",null,null,null,null,null,null,null,null,null,null,null,null,null,null,null,null,null,null,null,null,null,null,null,"Tel.-Nr.:",null,null,null,null,null,null,null,null,null,null,null,null,null,null,null,null,null,null,null,null,null,null,null,null,"Mobil:",null,null,null,null,null,null,null,null,null,null,null,null,null,null,null,null,null,null,null,null,null,null,"Email:"]
[]
[null,null,null,null,null,null," Staffelleiter",null,null,null,null,null,null,null,null,null,null,null,null,null,null,null,null,null,":","Frederic Pauli",null,null,null,null,null,null,null,null,null,null,null,null,null,null,null,null,null,null,null,null,null,null,"Tel.-Nr.:",null,null,null,null,null,null,null,"09268/913979",null,null,null,null,null,null,null,null,null,null,null,null,null,null,null,null,"Mobil:",null,null,null,null,null,"0171/3408611",null,null,null,null,null,null,null,null,null,null,null,null,null,null,null,null,"Email:",null,null,null,null,null,null,"frederic.pauli@ttbezirk6.de"]
[null,null,null,null,null,null,"Mannschaftsführer",null,null,null,null,null,null,null,null,null,null,null,null,null,null,null,null,null,":",null,null,null,null,null,null,null,null,null,null,null,null,null,null,null,null,null,null,null,null,null,null,null,"Tel.-Nr.:",null,null,null,null,null,null,null,null,null,null,null,null,null,null,null,null,null,null,null,null,null,null,null,null,"Mobil:",null,null,null,null,null,null,null,null,null,null,null,null,null,null,null,null,null,null,null,null,null,null,"Email:"]
[]
[null,null,null,null,null,null," Staffelleiter",null,null,null,null,null,null,null,null,null,null,null,null,null,null,null,null,null,":",null,null,null,null,null,null,null,null,null,null,null,null,null,null,null,null,null,null,null,null,null,null,null,"Tel.-Nr.:",null,null,null,null,null,null,null,null,null,null,null,null,null,null,null,null,null,null,null,null,null,null,null,null,"Mobil:",null,null,null,null,null,null,null,null,null,null,null,null,null,null,null,null,null,null,null,null,null,null,"Email:"]
[null,null,null,null,null,null,"Mannschaftsführer",null,null,null,null,null,null,null,null,null,null,null,null,null,null,null,null,null,":",null,null,null,null,null,null,null,null,null,null,null,null,null,null,null,null,null,null,null,null,null,null,null,"Tel.-Nr.:",null,null,null,null,null,null,null,null,null,null,null,null,null,null,null,null,null,null,null,null,null,null,null,null,"Mobil:",null,null,null,null,null,null,null,null,null,null,null,null,null,null,null,null,null,null,null,null,null,null,"Email:"]
[]
[null,null,null,null,null,null," Staffelleiter",null,null,null,null,null,null,null,null,null,null,null,null,null,null,null,null,null,":",null,null,null,null,null,null,null,null,null,null,null,null,null,null,null,null,null,null,null,null,null,null,null,"Tel.-Nr.:",null,null,null,null,null,null,null,null,null,null,null,null,null,null,null,null,null,null,null,null,null,null,null,null,"Mobil:",null,null,null,null,null,null,null,null,null,null,null,null,null,null,null,null,null,null,null,null,null,null,"Email:"]
[null,null,null,null,null,null,"Mannschaftsführer",null,null,null,null,null,null,null,null,null,null,null,null,null,null,null,null,null,":",null,null,null,null,null,null,null,null,null,null,null,null,null,null,null,null,null,null,null,null,null,null,null,"Tel.-Nr.:",null,null,null,null,null,null,null,null,null,null,null,null,null,null,null,null,null,null,null,null,null,null,null,null,"Mobil:",null,null,null,null,null,null,null,null,null,null,null,null,null,null,null,null,null,null,null,null,null,null,"Email:"]
[]
[null,null,null,null,null,null," Staffelleiter",null,null,null,null,null,null,null,null,null,null,null,null,null,null,null,null,null,":",null,null,null,null,null,null,null,null,null,null,null,null,null,null,null,null,null,null,null,null,null,null,null,"Tel.-Nr.:",null,null,null,null,null,null,null,null,null,null,null,null,null,null,null,null,null,null,null,null,null,null,null,null,"Mobil:",null,null,null,null,null,null,null,null,null,null,null,null,null,null,null,null,null,null,null,null,null,null,"Email:"]
[null,null,null,null,null,null,"Mannschaftsführer",null,null,null,null,null,null,null,null,null,null,null,null,null,null,null,null,null,":",null,null,null,null,null,null,null,null,null,null,null,null,null,null,null,null,null,null,null,null,null,null,null,"Tel.-Nr.:",null,null,null,null,null,null,null,null,null,null,null,null,null,null,null,null,null,null,null,null,null,null,null,null,"Mobil:",null,null,null,null,null,null,null,null,null,null,null,null,null,null,null,null,null,null,null,null,null,null,"Email:"]
[]
[null,null,null,null,null,null," Staffelleiter",null,null,null,null,null,null,null,null,null,null,null,null,null,null,null,null,null,":",null,null,null,null,null,null,null,null,null,null,null,null,null,null,null,null,null,null,null,null,null,null,null,"Tel.-Nr.:",null,null,null,null,null,null,null,null,null,null,null,null,null,null,null,null,null,null,null,null,null,null,null,null,"Mobil:",null,null,null,null,null,null,null,null,null,null,null,null,null,null,null,null,null,null,null,null,null,null,"Email:"]
[null,null,null,null,null,null," Mannschaftsführer",null,null,null,null,null,null,null,null,null,null,null,null,null,null,null,null,null,":",null,null,null,null,null,null,null,null,null,null,null,null,null,null,null,null,null,null,null,null,null,null,null,"Tel.-Nr.:",null,null,null,null,null,null,null,null,null,null,null,null,null,null,null,null,null,null,null,null,null,null,null,null,"Mobil:",null,null,null,null,null,null,null,null,null,null,null,null,null,null,null,null,null,null,null,null,null,null,"Email:"]

{"sheet":"Vereins Nummern","index":10,"n_rows":37,"n_cols":9,"rows_kept":37,"cut":false,"hidden":false,"merged":[[0,1,1,8]]}
[null,"Vereine in den einzelnen Bereichen KC - HO - BT/KU"]
[]
[null,"Bereich Kronach","Ver.-Nr.",null,"Bereich Hof","Ver.-Nr.",null,"Bereich BT / KU","Ver.-Nr."]
[null,"TTC Alexanderhütte",206001,null,"TSV Bad Steben ",206004,null,"SC Altenplos",206002]
[null,"TTC Au e.V. ",206003,null,"SV Berg ",206008,null,"BSV Bayreuth ",206005]
[null,"TTC Brauersdorf ",206011,null,"ASGV Döhlau ",206013,null,"SC Raiffeisen Bayreuth ",206006]
[null,"TSV 1894 Ebersdorf e.V. ",206015,null,"SpVgg Fassmannsreuth ",206016,null,"1. FC Bayreuth ",206007]
[null,"SV Fischbach ",206017,null,"SG Schwarz-W. Gattendorf ",206019,null,"TSV Bindlach ",206009]
[null,"SV Friesen ",206018,null,"Post und Telekom SV Hof",206027,null,"TSV Bischofsgrün ",206010]
[null,"TV Eichenkranz Gehülz ",206022,null,"SV 1911 Hof ",206028,null,"TTC Creussen ",206012]
[null,"FC Wacker Haig ",206024,null,"TTC 1990 Hof ",206029,null,"TSV Donndorf-Eckersdorf ",206014]
[null,"SC 1947 Haßlach b.T. e.V. ",206025,null,"TSV Hof 1861 e.V. ",206030,null,"SF 1984 Gefrees e.V. ",206020]
[null,"SV Hummendorf ",206032,null,"SV Issigau ",206033,null,"TV 1862 Gefrees ",206021]
[null,"ASV Kleintettau ",206036,null,"TTC Köditz 1950 e.V. ",206037,null,"BGV Gollenbach-Plösen",206023]
[null,"TS 1861 Kronach ",206039,null,"TV Konradsreuth ",206038,null,"SV 1921 Heinersreuth ",206026]
[null,"SV Langenau ",206042,null,"ASV Marktleuthen e.V.",206048,null,"ASV Hollfeld ",206031]
[null,"TSV Ludwigsstadt ",206044,null,"SV Marlesreuth ",206049,null,"TSV Kirchenlaibach ",206034]
[null,"TV 1906 Marienroth e.V. ",206046,null,"TV Meierhof von 1905 e.V. ",206050,null,"SSV Kirchenpingarten ",206035]
[null,"DJK SV Neufang ",206057,null,"TTV Moschendorf ",206053,null,"Post SV Kulmbach ",206040]
[null,"SG Neuses ",206059,null,"CVJM Naila ",206054,null,"ATS Kulmbach 1861 e.V. ",206041]
[null,"FC Nordhalben ",206060,null,"Freie Turnerschaft Naila ",206055,null,"TTC Mainleus ",206045]
[null,"SV Nurn ",206061,null,"ATSV Oberkotzau ",206062,null,"TV 1910 Marktleugast ",206047]
[null,"1. FC Pressig ",206067,null,"TSV Presseck 1891 ",206066,null,"TSV Mistelbach 1909 e.V. ",206051]
[null,"ATSV Reichenbach ",206070,null,"SG Regnitzlosau ",206068,null,"SV Mistelgau e.V. ",206052]
[null,"SC Rennsteig e.V. ",206071,null,"TV Rehau 1884 ",206069,null,"ASV Nemmersdorf ",206056]
[null,"SV Rothenkirchen 1946",206072,null,"TTV Schauenstein ",206074,null,"SV Neunkirchen am Main ",206058]
[null,"TSV Steinberg 1910 e.V. ",206079,null,"TS Schwarzenbach/Saale ",206075,null,"TSV 1909 Obernsees ",206063]
[null,"TSV 1889 Stockheim ",206080,null,"SV Sparneck 1910 ",206076,null,"SV Glückauf Pegnitz ",206064]
[null,"TSV Teuschnitz ",206082,null,"TTC Stammbach ",206078,null,"TSC Pottenstein ",206065]
[null,"TTC Wallenfels 1963 e.V. ",206086,null,"BSC Tauperlitz 1930 ",206081,null,"TTC Rugendorf e.V. ",206073]
[null,"TSV Weißenbrunn 1911 ",206088,null,"TuS Töpen ",206084,null,"TSV 1862 Stadtsteinach e.V",206077]
[null,"TSV Windheim 1904 ",206090,null,"TSV Zell ",206093,null,"TSV 1902 Thurnau ",206083]
[null,"TTV Wolfersdorf ",206091,null,"Vereine",29,null,"TTC Trebgast-Lanzendorf ",206085]
[null,"Vereine",30,null,null,null,null,"SV Weidenberg ",206087]
[null,null,null,null,null,null,null,"TTC Willmersreuth e.V. ",206089]
[null,null,null,null,null,null,null,"SpVgg Wonsees ",206092]
[null,null,null,null,null,null,null,"Vereine",33]